{"text_format":"1","workbook":"xlsx","n_sheets":15,"sheets":["Übersicht","Vorlagen","Informationsblatt","Maßnahmenübersicht","Datenvalidierung","Mastertabelle","1 Unternehmensführung ...","2 Veranstaltungsstätte","3 Standbetreiberinnen & Konzept","4 Klimaschutzmaßnahmen","5 Beschaffung","6 Unterkunft","7 Gastronomie","8 Soziale Aspekte & Inklusion","9 Kommunikation"],"not_rendered":{"charts":0,"images":0,"macros":1,"external_links":0,"defined_names":35,"comments":0,"pivot_tables":0},"unopened":[],"bounds":{"document_bytes":16777216,"sheet_cells":100000,"rows_first":2000,"rows_last":500,"rows_between":2000,"halvings":0,"cell_chars":16384,"cell_head_chars":4096},"cells_cut":0,"cells_raw":0,"read":"whole","date_system":"1900"}

{"sheet":"Übersicht","index":0,"n_rows":40,"n_cols":11,"rows_kept":40,"cut":false,"hidden":false,"merged":[[35,2,35,5],[39,10,41,13],[1,1,2,14],[34,9,38,13],[18,10,20,13],[27,10,33,13],[6,9,17,13],[21,9,24,13],[25,9,26,13],[6,2,6,5],[10,2,10,5],[15,2,15,5],[18,2,18,5],[22,2,22,5],[25,2,25,5],[27,2,27,5],[31,2,31,5]]}
[]
[null,"Der Green Events Standard für Hamburg (Version 1.0)"]
[]
[]
[null,"    Inhaltsverzeichnis",null,null,null,null,null,null,null,"Bearbeitung und Bewertung"]
[]
[null,null,"1 Unternehmensführung & Organisationskultur",null,null,null,null,null,null,"Einleitung\nDer Green Events Standard ist ein Angebot an alle Veranstaltenden in der Metropolregion Hamburg. Es richtet sich vorrangig – jedoch nicht ausschließlich – an größere, öffentliche Veranstaltungen und solche, die auf öffentlichen Flächen organisiert oder mit öffentlichen Geldern finanziert sind. Durch eine gemeinnützige Stelle (voraussichtlich der Green Events Hamburg (GEHH) Geschäftsstelle) geprüft, dürfen erfolgreiche Veranstaltende das Green Events Siegel nutzen, um glaubwürdig und leicht verständlich über die Nachhaltigkeitsinitiativen ihrer Veranstaltung zu kommunizieren. Es eignet sich besonders für wiederkehrende Veranstaltungen, da es bei identischer Ausrichtung für einen Zeitraum von bis zu fünf Jahren vergeben wird. Der vorliegende Kriterienkatalog stellt hierbei ein effektives Managementwerkzeug dar, das einen einfachen Zugang zum komplexen Thema Nachhaltigkeit von Veranstaltungen ermöglicht. \n\nAufbau des Standards\nDie Kriterien des Standards sind unterteilt in drei Anforderungsniveaus, die den Aufwand und die Wirkung der umzusetzenden Maßnahme gewichten. Die Gewichtung lautet wie folgt:"]
[null,null,null,"1.1 Nachhaltigkeitsmanagement"]
[null,null,null,"1.2 Qualifikation & Identifikation"]
[null,null,null,"1.3 Mehrkosten & Preisgestaltung"]
[null,null,"2 Veranstaltungsstätte/-ort"]
[null,null,null,"2.1 Standortwahl"]
[null,null,null,"2.2 Ressourcenschonender Betrieb"]
[null,null,null,"2.3 Natur- & Flächenschutz"]
[null,null,null,"2.4 Abbau von Barrieren"]
[null,null,"3 Standbetreiber:innen & Konzept"]
[null,null,null,"3.1 Programmgestaltung"]
[null,null,null,"3.2 Beauftragung & Verträge"]
[null,null,"4 Klimaschutzmaßnahmen",null,null,null,null,null,null,null,{"$f":"\"basic = 1 Punkt (\"&COUNTIF(Mastertabelle!Q:Q,\"basic\")&\" Kriterien)\nadvanced = 2 Punkte (\"&COUNTIF(Mastertabelle!Q:Q,\"advanced\")&\" Kriterien)\nprofessional = 3 Punkte (\"&COUNTIF(Mastertabelle!Q:Q,\"professional\")&\" Kriterien)\"","v":"basic = 1 Punkt (67 Kriterien)\nadvanced = 2 Punkte (38 Kriterien)\nprofessional = 3 Punkte (14 Kriterien)"}]
[null,null,null,"4.1 Klimawirkung der Veranstaltung"]
[null,null,null,"4.2 Mobilität"]
[null,null,null,"4.3 Energie",null,null,null,null,null,{"$f":"\"Der Standard ist zudem in drei Abstufungen erhältlich - Basis, Medium und Premium. Im Grundmodell müssen für Basis \"&ROUND(Mastertabelle!B3,2)*100&\"% der Gesamtpunkte erreicht werden, für Medium \"&ROUND(Mastertabelle!B4,2)*100&\"% und für Premium \"&ROUND(Mastertabelle!B5,2)*100&\"%. Um ein möglichst effektives und relevantes Nachhaltigkeitsmanagement zu gewährleistet, werden bei der Auswahl der Kriterien Parametern wie Größe der Veranstaltung, Indoor/Outdoor, Kostenlos/Eintritt, etc. berücksichtig.\"","v":"Der Standard ist zudem in drei Abstufungen erhältlich - Basis, Medium und Premium. Im Grundmodell müssen für Basis 40% der Gesamtpunkte erreicht werden, für Medium 60% und für Premium 80%. Um ein möglichst effektives und relevantes Nachhaltigkeitsmanagement zu gewährleistet, werden bei der Auswahl der Kriterien Parametern wie Größe der Veranstaltung, Indoor/Outdoor, Kostenlos/Eintritt, etc. berücksichtig."}]
[null,null,"5 Beschaffung & Abfallmanagement"]
[null,null,null,"5.1 Veranstaltungsmaterial"]
[null,null,null,"5.2 Abfallmanagement"]
[null,null,"6 Unterkunft",null,null,null,null,null,null,"Bearbeitung durch den/die Veranstaltende(n)\nVeranstaltende, die den Standard auf einer der drei Stufen erreichen möchten, nutzen den vorliegenden Excel-Kriterienkatalog  als Checkliste. Die Bearbeitung findet hierbei in drei Phasen statt."]
[null,null,null,"6.1 Hotelauswahl"]
[null,null,"7 Gastronomie",null,null,null,null,null,null,null,"Die erste Phase findet im Vorfeld der Veranstaltung statt. Als Teil des für die Bewerbung vorzulegenden Nachhaltigkeitskonzeptes wird eine erste Maßnahmenplanung vorgenommen und in der Datei festgehalten. \nDie zweite Phase ist die Umsetzungsphase, in der die ausgewählten Maßnahmen im Rahmen der Veranstaltungsorganisation verfolgt werden. Wichtig ist hierbei bereits die Nachweise zu berücksichtigen, die belegen, dass ein bestimmtes Kriterium erfüllt worden ist.\nDie dritte Phase findet im Nachgang der Veranstaltung statt. Hierbei wird die tatsächlich erfolgte Umsetzung der Maßnahme beschrieben und mit den entsprechenden Nachweisen hinterlegt.\n\n"]
[null,null,null,"7.1 Catering"]
[null,null,null,"7.2 Konsumverhalten"]
[null,null,null,"7.3 Mehrweg & Verpackungen"]
[null,null,"8 Soziale Aspekte & Inklusion"]
[null,null,null,"8.1 Zugänglichkeit der Veranstaltung"]
[null,null,null,"8.2 Gesundheit & Sicherheit"]
[null,null,null,"8.3 Anwohner:innen",null,null,null,null,null,"Prüfung durch Green Events Hamburg\nDie Green Events Hamburg Geschäftsstelle begleitet die Veranstaltenden während der Bearbeitung, angefangen mit einem Vorgespräch, in dem die Ziele gemeinsam definiert werden und eine Absichtserklärung unterzeichnet wird. Auch in der anschließenden Beratung zum Nachhaltigkeitskonzept und zur Erfüllung der einzelnen Maßnahmen bis hin zur Verleihung des erreichten Standards steht GEHH den Veranstaltenden zur Seite. Prüfungen erfolgen:"]
[null,null,"9 Kommunikation"]
[null,null,null,"9.1 Interne Kommunikation"]
[null,null,null,"9.2 Kommunikation nach außen"]
[]
[null,null,null,null,null,null,null,null,null,null,"- nach Phase 1: Bearbeitung das Nachhaltigkeitskonzept und Ausgangsbilanz, inklusive der etwaigen Verleihung eines Anwärtersiegels.\n- nach Phase 3: alle einzureichenden Nachweise, um den jeweiligen Erfüllungsgrad und die damit erreichte Stufe des Standards zu ermitteln."]

{"sheet":"Vorlagen","index":1,"n_rows":15,"n_cols":5,"rows_kept":15,"cut":false,"hidden":true,"merged":[]}
["Vorlagen, Listen, Beispiele","Beschreibung/Anforderung","Links","Wer?","Stand"]
["Absichtserklärung","Umsetzungsabsicht gemäß Nachhaltigkeitskonzept, Einhaltung von Gesetzen wird vorausgesetzt",null,"Mara"]
["Nachhaltigkeitskonzept",null,null,"Birte","Entwurf liegt vor"]
["einfache Ausgangsbilanz","Formular, das vor und nach der Veranstaltung ausgefüllt wird",null,"Birte","Entwurf liegt vor"]
["erweiterte Ausgangsbilanz","Formular, das vor und nach der Veranstaltung ausgefüllt wird",null,"Birte","Entwurf liegt vor"]
["Liste der Partner:innen & Liste der Dienstleistenden"]
["Klimabilanz",null,null,"GEHH"]
["Abfallkonzept",null,null,"Birte","Entwurf liegt vor"]
["Awarenesskonzept",null,"https://safethedance.de/awareness-leitfaden/\nhttps://awareness-akademie.de/wp-content/uploads/sites/14/2023/08/Awareness-auf-Festivals_HoemexActAware-Guide.pdf","Mara"]
["Schutzkonzept (für Naturräume)",null,null,"Birte","Entwurf liegt vor"]
["Checkliste barrierefreie Veranstaltungen",null,"https://www.bundesfachstelle-barrierefreiheit.de/SharedDocs/Downloads/DE/Veroeffentlichungen/checkliste-barrierefreie-veranstaltung.pdf?__blob=publicationFile&v=6"]
["Vertragsvorlage oder Checkliste für Standbetreiber:innen",null,null,"GEHH"]
["Catering-Liste","eine gesammelte Liste, in der alle Aspekte bzgl. der verwendeten Lebensmittel dargestellt werden; Angaben zu Saisonalität, Regionalität und Bio-Zertifizierung der Hauptzutaten beim Catering; auch artgerechte Tierhaltung, koscher&halal einbeziehen"]
["Checkliste anti-diskriminierende Öffentlichkeitsarbeit"]
["sowie Verweise zur Handreichung GEHH"]

{"sheet":"Informationsblatt","index":2,"n_rows":36,"n_cols":5,"rows_kept":36,"cut":false,"hidden":false,"merged":[]}
[]
[null,null,"Informationsblatt zur Veranstaltung"]
[]
[null,null,null,"Veranstaltung"]
[]
[null,null,null,null,"Name der Veranstaltung"]
[]
[null,null,null,null,"Ort der Ausrichtung"]
[]
[null,null,null,null,"Datum bzw. Zeitraum "]
[]
[null,null,null,null,"Art der Veranstaltung"]
[]
[null,null,null,null,"Eintrittsgebühr"]
[]
[null,null,null,null,"Erwartete Besucher:innenzahl pro Tag"]
[]
[null,null,null,null,"Ist die Veranstaltung ein Empfang, Kongress, Seminar, eine Tagung, o.ä.?"]
[]
[null,null,null,null,"Sind Nebenveranstaltungen geplant?"]
[]
[null,null,null,"Organisation"]
[]
[null,null,null,null,"Name"]
[]
[null,null,null,null,"Adresse"]
[]
[null,null,null,null,"Website"]
[]
[null,null,null,"Ansprechpartner:in"]
[]
[null,null,null,null,"Name"]
[]
[null,null,null,null,"Emailadresse"]
[]
[null,null,null,null,"Telefonnummer"]

{"sheet":"Maßnahmenübersicht","index":3,"n_rows":123,"n_cols":10,"rows_kept":123,"cut":false,"hidden":false,"merged":[[21,8,22,9],[13,8,14,9]]}
[]
[]
[null,"Kriterium",null,"Priorität",null,"Umsetzungsstatus",null,null,"Punkteübersicht"]
[]
[null,{"$f":"_xlfn._xlws.SORT(Mastertabelle!H2:K120,4,-1)","v":"1.1.1"},"Nachhaltigkeitsbeauftragte:r*","",0,{"$f":"INDEX(Mastertabelle!$N$2:$N$120,MATCH(Maßnahmenübersicht!B5,Mastertabelle!$H$2:$H$120,0))","v":""},null,null,"Max. Punkte erreichbar",{"$f":"Mastertabelle!D2","v":185}]
[null,"1.1.2","Nachhaltigkeitskonzept*","",0,{"$f":"INDEX(Mastertabelle!$N$2:$N$120,MATCH(Maßnahmenübersicht!B6,Mastertabelle!$H$2:$H$120,0))","v":""},null,null,"Punkte (geplant)",{"$f":"SUMPRODUCT(Mastertabelle!L:L,Mastertabelle!R:R)","v":0}]
[null,"1.1.3","Einfache Ausgangsbilanz*","",0,{"$f":"INDEX(Mastertabelle!$N$2:$N$120,MATCH(Maßnahmenübersicht!B7,Mastertabelle!$H$2:$H$120,0))","v":""},null,null,"Siegelstufe (geplant)",{"$f":"IF(J6>=Datenvalidierung!I3,Datenvalidierung!H3,IF(J6>=Datenvalidierung!I2,Datenvalidierung!H2,IF(J6>=Datenvalidierung!I1,Datenvalidierung!H1,\"Punkte nicht ausreichend\")))","v":"Punkte nicht ausreichend"}]
[null,"1.1.4","Erweiterte Ausgangsbilanz","",0,{"$f":"INDEX(Mastertabelle!$N$2:$N$120,MATCH(Maßnahmenübersicht!B8,Mastertabelle!$H$2:$H$120,0))","v":""},null,null,"Punkte zur vorherigen Stufe",{"$f":"IFERROR((INDEX(Datenvalidierung!I1:I3,MATCH(Maßnahmenübersicht!J6,Datenvalidierung!I1:I3,1)-1)-J6)*-1,0)","v":0}]
[null,"1.1.5","Nachhaltigkeitsbericht","",0,{"$f":"INDEX(Mastertabelle!$N$2:$N$120,MATCH(Maßnahmenübersicht!B9,Mastertabelle!$H$2:$H$120,0))","v":""},null,null,"Punkte bis nächste Stufe",{"$f":"IFERROR(INDEX(Datenvalidierung!I1:I3,IFERROR(MATCH(Maßnahmenübersicht!J6,Datenvalidierung!I1:I3,1),0)+1)-J6,0)","v":74}]
[null,"1.2.1","Nachhaltigkeitswissen","",0,{"$f":"INDEX(Mastertabelle!$N$2:$N$120,MATCH(Maßnahmenübersicht!B10,Mastertabelle!$H$2:$H$120,0))","v":""},null,null,"Punkte (umgesetzt)",{"$f":"SUMPRODUCT(Mastertabelle!O:O,Mastertabelle!R:R)","v":0}]
[null,"1.2.2","Erweitertes Nachhaltigkeitswissen","",0,{"$f":"INDEX(Mastertabelle!$N$2:$N$120,MATCH(Maßnahmenübersicht!B11,Mastertabelle!$H$2:$H$120,0))","v":""},null,null,"Punkte (auditiert)",{"$f":"SUMPRODUCT(Mastertabelle!P:P,Mastertabelle!R:R)","v":0}]
[null,"1.2.3","Nachhaltigkeitsbriefing","",0,{"$f":"INDEX(Mastertabelle!$N$2:$N$120,MATCH(Maßnahmenübersicht!B12,Mastertabelle!$H$2:$H$120,0))","v":""}]
[null,"1.3.1","Dokumentation von Mehrkosten","",0,{"$f":"INDEX(Mastertabelle!$N$2:$N$120,MATCH(Maßnahmenübersicht!B13,Mastertabelle!$H$2:$H$120,0))","v":""}]
[null,"1.3.2","Kostenkommunikation","",0,{"$f":"INDEX(Mastertabelle!$N$2:$N$120,MATCH(Maßnahmenübersicht!B14,Mastertabelle!$H$2:$H$120,0))","v":""},null,null,"Siegelstufen - Punkteschwellen"]
[null,"1.3.3","Solidarische Kostenumlegung","",0,{"$f":"INDEX(Mastertabelle!$N$2:$N$120,MATCH(Maßnahmenübersicht!B15,Mastertabelle!$H$2:$H$120,0))","v":""}]
[null,"2.1.1","klimafreundliche Erreichbarkeit","",0,{"$f":"INDEX(Mastertabelle!$N$2:$N$120,MATCH(Maßnahmenübersicht!B16,Mastertabelle!$H$2:$H$120,0))","v":""}]
[null,"2.1.2","barrierearme Erreichbarkeit und Teilnahme","",0,{"$f":"INDEX(Mastertabelle!$N$2:$N$120,MATCH(Maßnahmenübersicht!B17,Mastertabelle!$H$2:$H$120,0))","v":""},null,null,{"$f":"Mastertabelle!A3&\" - \"&Mastertabelle!B3*100&\"% Gesamtpkt.\"","v":"Basis - 40% Gesamtpkt."},{"$f":"Mastertabelle!D3","v":74}]
[null,"2.1.3","barrierefreie Erreichbarkeit und Teilnahme pro","",0,{"$f":"INDEX(Mastertabelle!$N$2:$N$120,MATCH(Maßnahmenübersicht!B18,Mastertabelle!$H$2:$H$120,0))","v":""},null,null,{"$f":"Mastertabelle!A4&\" - \"&Mastertabelle!B4*100&\"% Gesamtpkt.\"","v":"Medium - 60% Gesamtpkt."},{"$f":"Mastertabelle!D4","v":111}]
[null,"2.1.4","Beratung barrierefreie Gestaltung","",0,{"$f":"INDEX(Mastertabelle!$N$2:$N$120,MATCH(Maßnahmenübersicht!B19,Mastertabelle!$H$2:$H$120,0))","v":""},null,null,{"$f":"Mastertabelle!A5&\" - \"&Mastertabelle!B5*100&\"% Gesamtpkt.\"","v":"Premium - 80% Gesamtpkt."},{"$f":"Mastertabelle!D5","v":148}]
[null,"2.1.5","nachhaltige Veranstaltungsstätte","",0,{"$f":"INDEX(Mastertabelle!$N$2:$N$120,MATCH(Maßnahmenübersicht!B20,Mastertabelle!$H$2:$H$120,0))","v":""}]
[null,"2.1.6","geeignete Freiflächen","",0,{"$f":"INDEX(Mastertabelle!$N$2:$N$120,MATCH(Maßnahmenübersicht!B21,Mastertabelle!$H$2:$H$120,0))","v":""}]
[null,"2.2.1","Energie","",0,{"$f":"INDEX(Mastertabelle!$N$2:$N$120,MATCH(Maßnahmenübersicht!B22,Mastertabelle!$H$2:$H$120,0))","v":""},null,null,"Maßnahmenmöglichleiten"]
[null,"2.2.2","Materialien","",0,{"$f":"INDEX(Mastertabelle!$N$2:$N$120,MATCH(Maßnahmenübersicht!B23,Mastertabelle!$H$2:$H$120,0))","v":""}]
[null,"2.2.3","Reinigungsmittel","",0,{"$f":"INDEX(Mastertabelle!$N$2:$N$120,MATCH(Maßnahmenübersicht!B24,Mastertabelle!$H$2:$H$120,0))","v":""}]
[null,"2.2.4","Wasser","",0,{"$f":"INDEX(Mastertabelle!$N$2:$N$120,MATCH(Maßnahmenübersicht!B25,Mastertabelle!$H$2:$H$120,0))","v":""},null,null,"basic",{"$f":"COUNTIF(Mastertabelle!R:R,ROW(A1))","v":67}]
[null,"2.2.5","Abwasser","",0,{"$f":"INDEX(Mastertabelle!$N$2:$N$120,MATCH(Maßnahmenübersicht!B26,Mastertabelle!$H$2:$H$120,0))","v":""},null,null,"advanced",{"$f":"COUNTIF(Mastertabelle!R:R,ROW(A2))","v":38}]
[null,"2.2.6","Mobile Toiletten","",0,{"$f":"INDEX(Mastertabelle!$N$2:$N$120,MATCH(Maßnahmenübersicht!B27,Mastertabelle!$H$2:$H$120,0))","v":""},null,null,"professional",{"$f":"COUNTIF(Mastertabelle!R:R,ROW(A3))","v":14}]
[null,"2.2.7","Mobile Toiletten pro","",0,{"$f":"INDEX(Mastertabelle!$N$2:$N$120,MATCH(Maßnahmenübersicht!B28,Mastertabelle!$H$2:$H$120,0))","v":""}]
[null,"2.3.1","Ausschluss geschützter Gebiete","",0,{"$f":"INDEX(Mastertabelle!$N$2:$N$120,MATCH(Maßnahmenübersicht!B29,Mastertabelle!$H$2:$H$120,0))","v":""}]
[null,"2.3.2","Schutzkonzept","",0,{"$f":"INDEX(Mastertabelle!$N$2:$N$120,MATCH(Maßnahmenübersicht!B30,Mastertabelle!$H$2:$H$120,0))","v":""}]
[null,"2.3.1","Ausschluss geschützter Gebiete","",0,{"$f":"INDEX(Mastertabelle!$N$2:$N$120,MATCH(Maßnahmenübersicht!B31,Mastertabelle!$H$2:$H$120,0))","v":""}]
[null,"2.3.2","Schutzkonzept","",0,{"$f":"INDEX(Mastertabelle!$N$2:$N$120,MATCH(Maßnahmenübersicht!B32,Mastertabelle!$H$2:$H$120,0))","v":""}]
[null,"3.1.1","Veranstaltungsprogramm","",0,{"$f":"INDEX(Mastertabelle!$N$2:$N$120,MATCH(Maßnahmenübersicht!B33,Mastertabelle!$H$2:$H$120,0))","v":""}]
[null,"3.1.2","Gleichstellung","",0,{"$f":"INDEX(Mastertabelle!$N$2:$N$120,MATCH(Maßnahmenübersicht!B34,Mastertabelle!$H$2:$H$120,0))","v":""}]
[null,"3.2.1","Einbindung lokaler Akteur:innen","",0,{"$f":"INDEX(Mastertabelle!$N$2:$N$120,MATCH(Maßnahmenübersicht!B35,Mastertabelle!$H$2:$H$120,0))","v":""}]
[null,"3.2.2","regionale Beauftragung","",0,{"$f":"INDEX(Mastertabelle!$N$2:$N$120,MATCH(Maßnahmenübersicht!B36,Mastertabelle!$H$2:$H$120,0))","v":""}]
[null,"3.2.3","nachhaltigkeitsorientierte Auftragsvergabe","",0,{"$f":"INDEX(Mastertabelle!$N$2:$N$120,MATCH(Maßnahmenübersicht!B37,Mastertabelle!$H$2:$H$120,0))","v":""}]
[null,"3.2.4","verbindliche Nachhaltigkeitskriterien","",0,{"$f":"INDEX(Mastertabelle!$N$2:$N$120,MATCH(Maßnahmenübersicht!B38,Mastertabelle!$H$2:$H$120,0))","v":""}]
[null,"3.2.5","Nachhaltigkeitsanreize","",0,{"$f":"INDEX(Mastertabelle!$N$2:$N$120,MATCH(Maßnahmenübersicht!B39,Mastertabelle!$H$2:$H$120,0))","v":""}]
[null,"4.1.1","einfache Klimabilanz","",0,{"$f":"INDEX(Mastertabelle!$N$2:$N$120,MATCH(Maßnahmenübersicht!B40,Mastertabelle!$H$2:$H$120,0))","v":""}]
[null,"4.1.2","erweiterte Klimabilanz","",0,{"$f":"INDEX(Mastertabelle!$N$2:$N$120,MATCH(Maßnahmenübersicht!B41,Mastertabelle!$H$2:$H$120,0))","v":""}]
[null,"4.1.3","Klimakompensation und Klimaverantwortung","",0,{"$f":"INDEX(Mastertabelle!$N$2:$N$120,MATCH(Maßnahmenübersicht!B42,Mastertabelle!$H$2:$H$120,0))","v":""}]
[null,"4.2.1","Kommunikation","",0,{"$f":"INDEX(Mastertabelle!$N$2:$N$120,MATCH(Maßnahmenübersicht!B43,Mastertabelle!$H$2:$H$120,0))","v":""}]
[null,"4.2.2","Fahrplanoptimierung","",0,{"$f":"INDEX(Mastertabelle!$N$2:$N$120,MATCH(Maßnahmenübersicht!B44,Mastertabelle!$H$2:$H$120,0))","v":""}]
[null,"4.2.3","integrierte ÖPNV-Fahrkarte","",0,{"$f":"INDEX(Mastertabelle!$N$2:$N$120,MATCH(Maßnahmenübersicht!B45,Mastertabelle!$H$2:$H$120,0))","v":""}]
[null,"4.2.4","Erreichbarkeit von Nebenveranstaltungen","",0,{"$f":"INDEX(Mastertabelle!$N$2:$N$120,MATCH(Maßnahmenübersicht!B46,Mastertabelle!$H$2:$H$120,0))","v":""}]
[null,"4.2.5","Fahrradstellplätze","",0,{"$f":"INDEX(Mastertabelle!$N$2:$N$120,MATCH(Maßnahmenübersicht!B47,Mastertabelle!$H$2:$H$120,0))","v":""}]
[null,"4.2.6","Förderung und Anreize","",0,{"$f":"INDEX(Mastertabelle!$N$2:$N$120,MATCH(Maßnahmenübersicht!B48,Mastertabelle!$H$2:$H$120,0))","v":""}]
[null,"4.2.7","Reisepolicy","",0,{"$f":"INDEX(Mastertabelle!$N$2:$N$120,MATCH(Maßnahmenübersicht!B49,Mastertabelle!$H$2:$H$120,0))","v":""}]
[null,"4.2.8","Logisitk","",0,{"$f":"INDEX(Mastertabelle!$N$2:$N$120,MATCH(Maßnahmenübersicht!B50,Mastertabelle!$H$2:$H$120,0))","v":""}]
[null,"4.3.1","Energiebedarfsplanung","",0,{"$f":"INDEX(Mastertabelle!$N$2:$N$120,MATCH(Maßnahmenübersicht!B51,Mastertabelle!$H$2:$H$120,0))","v":""}]
[null,"4.3.2","Zertifizierter Ökostrom","",0,{"$f":"INDEX(Mastertabelle!$N$2:$N$120,MATCH(Maßnahmenübersicht!B52,Mastertabelle!$H$2:$H$120,0))","v":""}]
[null,"4.3.3","eigene Energieerzeugung","",0,{"$f":"INDEX(Mastertabelle!$N$2:$N$120,MATCH(Maßnahmenübersicht!B53,Mastertabelle!$H$2:$H$120,0))","v":""}]
[null,"4.3.4","keine Generatoren","",0,{"$f":"INDEX(Mastertabelle!$N$2:$N$120,MATCH(Maßnahmenübersicht!B54,Mastertabelle!$H$2:$H$120,0))","v":""}]
[null,"4.3.5","keine Heizpilze","",0,{"$f":"INDEX(Mastertabelle!$N$2:$N$120,MATCH(Maßnahmenübersicht!B55,Mastertabelle!$H$2:$H$120,0))","v":""}]
[null,"4.3.6","effiziente Veranstaltungstechnik","",0,{"$f":"INDEX(Mastertabelle!$N$2:$N$120,MATCH(Maßnahmenübersicht!B56,Mastertabelle!$H$2:$H$120,0))","v":""}]
[null,"4.3.7","effiziente Gastrotechnik","",0,{"$f":"INDEX(Mastertabelle!$N$2:$N$120,MATCH(Maßnahmenübersicht!B57,Mastertabelle!$H$2:$H$120,0))","v":""}]
[null,"5.1.1","nachhaltige Dekoration und Ausstattung","",0,{"$f":"INDEX(Mastertabelle!$N$2:$N$120,MATCH(Maßnahmenübersicht!B58,Mastertabelle!$H$2:$H$120,0))","v":""}]
[null,"5.1.2","Verzicht auf neue Dekoration und Ausstattung","",0,{"$f":"INDEX(Mastertabelle!$N$2:$N$120,MATCH(Maßnahmenübersicht!B59,Mastertabelle!$H$2:$H$120,0))","v":""}]
[null,"5.1.3","ökologische Druckerzeugnisse","",0,{"$f":"INDEX(Mastertabelle!$N$2:$N$120,MATCH(Maßnahmenübersicht!B60,Mastertabelle!$H$2:$H$120,0))","v":""}]
[null,"5.1.4","Verzicht auf Druckerzeugnisse","",0,{"$f":"INDEX(Mastertabelle!$N$2:$N$120,MATCH(Maßnahmenübersicht!B61,Mastertabelle!$H$2:$H$120,0))","v":""}]
[null,"5.1.5","ökologische & faire Give Aways","",0,{"$f":"INDEX(Mastertabelle!$N$2:$N$120,MATCH(Maßnahmenübersicht!B62,Mastertabelle!$H$2:$H$120,0))","v":""}]
[null,"5.1.6","Verzicht auf Give Aways","",0,{"$f":"INDEX(Mastertabelle!$N$2:$N$120,MATCH(Maßnahmenübersicht!B63,Mastertabelle!$H$2:$H$120,0))","v":""}]
[null,"5.1.7","ressourcenschonender\nBlumenschmuck","",0,{"$f":"INDEX(Mastertabelle!$N$2:$N$120,MATCH(Maßnahmenübersicht!B64,Mastertabelle!$H$2:$H$120,0))","v":""}]
[null,"5.1.8","Verzicht auf Blumenschmuck","",0,{"$f":"INDEX(Mastertabelle!$N$2:$N$120,MATCH(Maßnahmenübersicht!B65,Mastertabelle!$H$2:$H$120,0))","v":""}]
[null,"5.1.9","Banner und Planen","",0,{"$f":"INDEX(Mastertabelle!$N$2:$N$120,MATCH(Maßnahmenübersicht!B66,Mastertabelle!$H$2:$H$120,0))","v":""}]
[null,"5.1.10","ökologische & faire Kleidung","",0,{"$f":"INDEX(Mastertabelle!$N$2:$N$120,MATCH(Maßnahmenübersicht!B67,Mastertabelle!$H$2:$H$120,0))","v":""}]
[null,"5.1.1","Verzicht auf neue Kleidung","",0,{"$f":"INDEX(Mastertabelle!$N$2:$N$120,MATCH(Maßnahmenübersicht!B68,Mastertabelle!$H$2:$H$120,0))","v":""}]
[null,"5.1.2","Papierlose Öffentlichkeitsarbeit","",0,{"$f":"INDEX(Mastertabelle!$N$2:$N$120,MATCH(Maßnahmenübersicht!B69,Mastertabelle!$H$2:$H$120,0))","v":""}]
[null,"5.2.1","Abfallkonzept","",0,{"$f":"INDEX(Mastertabelle!$N$2:$N$120,MATCH(Maßnahmenübersicht!B70,Mastertabelle!$H$2:$H$120,0))","v":""}]
[null,"5.2.2","Briefing zu Abfallvermeidung/-trennung","",0,{"$f":"INDEX(Mastertabelle!$N$2:$N$120,MATCH(Maßnahmenübersicht!B71,Mastertabelle!$H$2:$H$120,0))","v":""}]
[null,"5.2.3","Abfalltrennung im Besucher:innenbereich","",0,{"$f":"INDEX(Mastertabelle!$N$2:$N$120,MATCH(Maßnahmenübersicht!B72,Mastertabelle!$H$2:$H$120,0))","v":""}]
[null,"5.2.4","Beschriftung und Piktogramme","",0,{"$f":"INDEX(Mastertabelle!$N$2:$N$120,MATCH(Maßnahmenübersicht!B73,Mastertabelle!$H$2:$H$120,0))","v":""}]
[null,"5.2.5","Kontrolle und Unterstützung","",0,{"$f":"INDEX(Mastertabelle!$N$2:$N$120,MATCH(Maßnahmenübersicht!B74,Mastertabelle!$H$2:$H$120,0))","v":""}]
[null,"6.1.1","Nachhaltige Unterkünfte","",0,{"$f":"INDEX(Mastertabelle!$N$2:$N$120,MATCH(Maßnahmenübersicht!B75,Mastertabelle!$H$2:$H$120,0))","v":""}]
[null,"6.1.2","Nachhaltige Unterkünfte pro","",0,{"$f":"INDEX(Mastertabelle!$N$2:$N$120,MATCH(Maßnahmenübersicht!B76,Mastertabelle!$H$2:$H$120,0))","v":""}]
[null,"6.1.3","Erreichbarkeit","",0,{"$f":"INDEX(Mastertabelle!$N$2:$N$120,MATCH(Maßnahmenübersicht!B77,Mastertabelle!$H$2:$H$120,0))","v":""}]
[null,"7.1.1","Regionalität der Zutaten","",0,{"$f":"INDEX(Mastertabelle!$N$2:$N$120,MATCH(Maßnahmenübersicht!B78,Mastertabelle!$H$2:$H$120,0))","v":""}]
[null,"7.1.2","Saisonalität","",0,{"$f":"INDEX(Mastertabelle!$N$2:$N$120,MATCH(Maßnahmenübersicht!B79,Mastertabelle!$H$2:$H$120,0))","v":""}]
[null,"7.1.3","bio-zertifizierte Lebensmittel","",0,{"$f":"INDEX(Mastertabelle!$N$2:$N$120,MATCH(Maßnahmenübersicht!B80,Mastertabelle!$H$2:$H$120,0))","v":""}]
[null,"7.1.4","Fair Trade","",0,{"$f":"INDEX(Mastertabelle!$N$2:$N$120,MATCH(Maßnahmenübersicht!B81,Mastertabelle!$H$2:$H$120,0))","v":""}]
[null,"7.1.5","vegetarisches Angebot","",0,{"$f":"INDEX(Mastertabelle!$N$2:$N$120,MATCH(Maßnahmenübersicht!B82,Mastertabelle!$H$2:$H$120,0))","v":""}]
[null,"7.1.6","veganes Angebot","",0,{"$f":"INDEX(Mastertabelle!$N$2:$N$120,MATCH(Maßnahmenübersicht!B83,Mastertabelle!$H$2:$H$120,0))","v":""}]
[null,"7.1.7","artgerechte Haltung\n","",0,{"$f":"INDEX(Mastertabelle!$N$2:$N$120,MATCH(Maßnahmenübersicht!B84,Mastertabelle!$H$2:$H$120,0))","v":""}]
[null,"7.1.8","regionale Getränke","",0,{"$f":"INDEX(Mastertabelle!$N$2:$N$120,MATCH(Maßnahmenübersicht!B85,Mastertabelle!$H$2:$H$120,0))","v":""}]
[null,"7.1.9","Bio Getränke ","",0,{"$f":"INDEX(Mastertabelle!$N$2:$N$120,MATCH(Maßnahmenübersicht!B86,Mastertabelle!$H$2:$H$120,0))","v":""}]
[null,"7.1.10","Kulturelle/soziale Aspekte","",0,{"$f":"INDEX(Mastertabelle!$N$2:$N$120,MATCH(Maßnahmenübersicht!B87,Mastertabelle!$H$2:$H$120,0))","v":""}]
[null,"7.1.11","Kulturelle/soziale Aspekte pro","",0,{"$f":"INDEX(Mastertabelle!$N$2:$N$120,MATCH(Maßnahmenübersicht!B88,Mastertabelle!$H$2:$H$120,0))","v":""}]
[null,"7.1.12","Lebensmittelallergien/-unverträglichkeiten","",0,{"$f":"INDEX(Mastertabelle!$N$2:$N$120,MATCH(Maßnahmenübersicht!B89,Mastertabelle!$H$2:$H$120,0))","v":""}]
[null,"7.2.1","Regionalität und Saisonalität der Zutaten und Getränke","",0,{"$f":"INDEX(Mastertabelle!$N$2:$N$120,MATCH(Maßnahmenübersicht!B90,Mastertabelle!$H$2:$H$120,0))","v":""}]
[null,"7.2.2","bio-zertifizierte und Fairtrade Lebensmittel ","",0,{"$f":"INDEX(Mastertabelle!$N$2:$N$120,MATCH(Maßnahmenübersicht!B91,Mastertabelle!$H$2:$H$120,0))","v":""}]
[null,"7.2.3","vegetarisches Catering","",0,{"$f":"INDEX(Mastertabelle!$N$2:$N$120,MATCH(Maßnahmenübersicht!B92,Mastertabelle!$H$2:$H$120,0))","v":""}]
[null,"7.2.4","veganes Catering","",0,{"$f":"INDEX(Mastertabelle!$N$2:$N$120,MATCH(Maßnahmenübersicht!B93,Mastertabelle!$H$2:$H$120,0))","v":""}]
[null,"7.2.5","artgerechte Haltung\n","",0,{"$f":"INDEX(Mastertabelle!$N$2:$N$120,MATCH(Maßnahmenübersicht!B94,Mastertabelle!$H$2:$H$120,0))","v":""}]
[null,"7.3.1","Anstöße und Anreize I","",0,{"$f":"INDEX(Mastertabelle!$N$2:$N$120,MATCH(Maßnahmenübersicht!B95,Mastertabelle!$H$2:$H$120,0))","v":""}]
[null,"7.3.2","Anstöße und Anreize II","",0,{"$f":"INDEX(Mastertabelle!$N$2:$N$120,MATCH(Maßnahmenübersicht!B96,Mastertabelle!$H$2:$H$120,0))","v":""}]
[null,"7.3.3","Lebensmittelreste","",0,{"$f":"INDEX(Mastertabelle!$N$2:$N$120,MATCH(Maßnahmenübersicht!B97,Mastertabelle!$H$2:$H$120,0))","v":""}]
[null,"7.4.1","Mehrweggeschirr","",0,{"$f":"INDEX(Mastertabelle!$N$2:$N$120,MATCH(Maßnahmenübersicht!B98,Mastertabelle!$H$2:$H$120,0))","v":""}]
[null,"7.4.2","Eigenes Geschirr","",0,{"$f":"INDEX(Mastertabelle!$N$2:$N$120,MATCH(Maßnahmenübersicht!B99,Mastertabelle!$H$2:$H$120,0))","v":""}]
[null,"7.4.3","Spülmobile/-maschinen","",0,{"$f":"INDEX(Mastertabelle!$N$2:$N$120,MATCH(Maßnahmenübersicht!B100,Mastertabelle!$H$2:$H$120,0))","v":""}]
[null,"7.4.4","Mehrweg-/Großgebinde","",0,{"$f":"INDEX(Mastertabelle!$N$2:$N$120,MATCH(Maßnahmenübersicht!B101,Mastertabelle!$H$2:$H$120,0))","v":""}]
[null,"7.4.5","Einweggeschirr/-servietten","",0,{"$f":"INDEX(Mastertabelle!$N$2:$N$120,MATCH(Maßnahmenübersicht!B102,Mastertabelle!$H$2:$H$120,0))","v":""}]
[null,"7.4.6","keine Einwegkunststoff-verpackungen","",0,{"$f":"INDEX(Mastertabelle!$N$2:$N$120,MATCH(Maßnahmenübersicht!B103,Mastertabelle!$H$2:$H$120,0))","v":""}]
[null,"7.4.7","Leitungswasser","",0,{"$f":"INDEX(Mastertabelle!$N$2:$N$120,MATCH(Maßnahmenübersicht!B104,Mastertabelle!$H$2:$H$120,0))","v":""}]
[null,"8.1.1","Anti-Diskriminierende Öffentlichkeitsarbeit","",0,{"$f":"INDEX(Mastertabelle!$N$2:$N$120,MATCH(Maßnahmenübersicht!B105,Mastertabelle!$H$2:$H$120,0))","v":""}]
[null,"8.1.2","Reduzierung sozialer Barrieren","",0,{"$f":"INDEX(Mastertabelle!$N$2:$N$120,MATCH(Maßnahmenübersicht!B106,Mastertabelle!$H$2:$H$120,0))","v":""}]
[null,"8.1.3","Barrierefreies Informationsmaterial","",0,{"$f":"INDEX(Mastertabelle!$N$2:$N$120,MATCH(Maßnahmenübersicht!B107,Mastertabelle!$H$2:$H$120,0))","v":""}]
[null,"8.1.4","Vergünstigungen","",0,{"$f":"INDEX(Mastertabelle!$N$2:$N$120,MATCH(Maßnahmenübersicht!B108,Mastertabelle!$H$2:$H$120,0))","v":""}]
[null,"8.1.5","kostenloser Zugang","",0,{"$f":"INDEX(Mastertabelle!$N$2:$N$120,MATCH(Maßnahmenübersicht!B109,Mastertabelle!$H$2:$H$120,0))","v":""}]
[null,"8.1.6","präsenzlose Teilnahme","",0,{"$f":"INDEX(Mastertabelle!$N$2:$N$120,MATCH(Maßnahmenübersicht!B110,Mastertabelle!$H$2:$H$120,0))","v":""}]
[null,"8.2.1","Schutz vor Umwelteinflüssen","",0,{"$f":"INDEX(Mastertabelle!$N$2:$N$120,MATCH(Maßnahmenübersicht!B111,Mastertabelle!$H$2:$H$120,0))","v":""}]
[null,"8.2.2","Schutz vor negativen gesundheitlichen Folgen","",0,{"$f":"INDEX(Mastertabelle!$N$2:$N$120,MATCH(Maßnahmenübersicht!B112,Mastertabelle!$H$2:$H$120,0))","v":""}]
[null,"8.2.3","Sicherheits- und Gesundheitskonzept","",0,{"$f":"INDEX(Mastertabelle!$N$2:$N$120,MATCH(Maßnahmenübersicht!B113,Mastertabelle!$H$2:$H$120,0))","v":""}]
[null,"8.2.4","Awareness-Konzept","",0,{"$f":"INDEX(Mastertabelle!$N$2:$N$120,MATCH(Maßnahmenübersicht!B114,Mastertabelle!$H$2:$H$120,0))","v":""}]
[null,"8.3.1","Belastungsreduktion","",0,{"$f":"INDEX(Mastertabelle!$N$2:$N$120,MATCH(Maßnahmenübersicht!B115,Mastertabelle!$H$2:$H$120,0))","v":""}]
[null,"8.3.2","Nachbarschaftsbeteiligung","",0,{"$f":"INDEX(Mastertabelle!$N$2:$N$120,MATCH(Maßnahmenübersicht!B116,Mastertabelle!$H$2:$H$120,0))","v":""}]
[null,"9.1.1","Auswahlkriterien für Partner:innen","",0,{"$f":"INDEX(Mastertabelle!$N$2:$N$120,MATCH(Maßnahmenübersicht!B117,Mastertabelle!$H$2:$H$120,0))","v":""}]
[null,"9.1.2","Kommunikation mit Stakeholdern","",0,{"$f":"INDEX(Mastertabelle!$N$2:$N$120,MATCH(Maßnahmenübersicht!B118,Mastertabelle!$H$2:$H$120,0))","v":""}]
[null,"9.1.3","Partner:innen-Feedback","",0,{"$f":"INDEX(Mastertabelle!$N$2:$N$120,MATCH(Maßnahmenübersicht!B119,Mastertabelle!$H$2:$H$120,0))","v":""}]
[null,"9.2.1","Kommunikation mit Besucher:innen","",0,{"$f":"INDEX(Mastertabelle!$N$2:$N$120,MATCH(Maßnahmenübersicht!B120,Mastertabelle!$H$2:$H$120,0))","v":""}]
[null,"9.2.2","Information & Unterstützung","",0,{"$f":"INDEX(Mastertabelle!$N$2:$N$120,MATCH(Maßnahmenübersicht!B121,Mastertabelle!$H$2:$H$120,0))","v":""}]
[null,"9.2.3","Besucher:innen-Feedback","",0,{"$f":"INDEX(Mastertabelle!$N$2:$N$120,MATCH(Maßnahmenübersicht!B122,Mastertabelle!$H$2:$H$120,0))","v":""}]
[null,"9.2.4","Öffentlichkeitsarbeit","",0,{"$f":"INDEX(Mastertabelle!$N$2:$N$120,MATCH(Maßnahmenübersicht!B123,Mastertabelle!$H$2:$H$120,0))","v":""}]

{"sheet":"Datenvalidierung","index":4,"n_rows":5,"n_cols":11,"rows_kept":5,"cut":false,"hidden":true,"merged":[]}
["Ja",1,"Hoch",5,"In Bearbeitung","Basic",1,{"$f":"Mastertabelle!A3","v":"Basis"},{"$f":"Mastertabelle!D3","v":74},"Indoor","<1.000"]
["Nein",0,"Mittel-hoch",4,"Abgeschlossen","Advanced",2,{"$f":"Mastertabelle!A4","v":"Medium"},{"$f":"Mastertabelle!D4","v":111},"Outdoor",">1.000"]
["Nicht relevant",0,"Mittel",3,null,"Professional",3,{"$f":"Mastertabelle!A5","v":"Premium"},{"$f":"Mastertabelle!D5","v":148},null,">5.000"]
[null,null,"Mittel-niedrig",2,null,null,null,null,null,null,">10.000"]
[null,null,"Niedrig",1]

{"sheet":"Mastertabelle","index":5,"n_rows":120,"n_cols":22,"rows_kept":120,"cut":false,"hidden":true,"merged":[]}
[null,"Prozente","Gesamt allg.","Gesamt diese VA (Indoor vs. Outdoor, nicht relevant, etc)",null,null," ",{"$f":"'1 Unternehmensführung ...'!B2","v":0},{"$f":"'1 Unternehmensführung ...'!C2","v":"Kriterium"},"Priorisierung","Priorisierung Nr","Umsetzung geplant","Kriterium relevant?","Umsetzungsstatus","Umgesetzt","Audit","Level","Level Punkte aktuelle VA","Level Punkte absolut","Ausnahmen","Gilt indoor","Gilt outdoor"]
["Punkte",1,{"$f":"SUM(S:S)","v":185},{"$f":"SUMPRODUCT(R:R,M:M)","v":185},null,null,{"$f":"LEFT(H:H,1)","v":"1"},{"$f":"'1 Unternehmensführung ...'!B4","v":"1.1.1"},{"$f":"'1 Unternehmensführung ...'!C4","v":"Nachhaltigkeitsbeauftragte:r*"},{"$f":"IF('1 Unternehmensführung ...'!K4=0,\"\",'1 Unternehmensführung ...'!K4)","v":""},{"$f":"IFERROR(INDEX(Datenvalidierung!$D$1:$D$5,MATCH('1 Unternehmensführung ...'!K4,Datenvalidierung!$C$1:$C$5,0)),0)","v":0},{"$f":"IFERROR(INDEX(Datenvalidierung!$B$1:$B$3,MATCH('1 Unternehmensführung ...'!J4,Datenvalidierung!$A$1:$A$3,0)),\"\")","v":""},{"$f":"IF('1 Unternehmensführung ...'!J4=Datenvalidierung!$A$3,0,1)","v":1},{"$f":"IF('1 Unternehmensführung ...'!L4=0,\"\",'1 Unternehmensführung ...'!L4)","v":""},{"$f":"IF(N2=Datenvalidierung!$E$2,1,0)","v":0},{"$f":"IF('1 Unternehmensführung ...'!O4=\"Ja\",1,'1 Unternehmensführung ...'!O4)","v":0},{"$f":"'1 Unternehmensführung ...'!E4","v":"basic"},{"$f":"'1 Unternehmensführung ...'!F4*M2","v":1},{"$f":"INDEX(Datenvalidierung!$G$1:$G$3,MATCH(Q2,Datenvalidierung!$F$1:$F$3,0))","v":1},{"$f":"'1 Unternehmensführung ...'!H4","v":0},1,1]
["Basis",0.4,{"$f":"ROUND($C$2*B3,0)","v":74},{"$f":"ROUND($D$2*B3,0)","v":74},null,null,{"$f":"LEFT(H:H,1)","v":"1"},{"$f":"'1 Unternehmensführung ...'!B5","v":"1.1.2"},{"$f":"'1 Unternehmensführung ...'!C5","v":"Nachhaltigkeitskonzept*"},{"$f":"IF('1 Unternehmensführung ...'!K5=0,\"\",'1 Unternehmensführung ...'!K5)","v":""},{"$f":"IFERROR(INDEX(Datenvalidierung!$D$1:$D$5,MATCH('1 Unternehmensführung ...'!K5,Datenvalidierung!$C$1:$C$5,0)),0)","v":0},{"$f":"IFERROR(INDEX(Datenvalidierung!$B$1:$B$3,MATCH('1 Unternehmensführung ...'!J5,Datenvalidierung!$A$1:$A$3,0)),\"\")","v":""},{"$f":"IF('1 Unternehmensführung ...'!J5=Datenvalidierung!$A$3,0,1)","v":1},{"$f":"IF('1 Unternehmensführung ...'!L5=0,\"\",'1 Unternehmensführung ...'!L5)","v":""},{"$f":"IF(N3=Datenvalidierung!$E$2,1,0)","v":0},{"$f":"IF('1 Unternehmensführung ...'!O5=\"Ja\",1,'1 Unternehmensführung ...'!O5)","v":0},{"$f":"'1 Unternehmensführung ...'!E5","v":"advanced"},{"$f":"'1 Unternehmensführung ...'!F5*M3","v":2},{"$f":"INDEX(Datenvalidierung!$G$1:$G$3,MATCH(Q3,Datenvalidierung!$F$1:$F$3,0))","v":2},{"$f":"'1 Unternehmensführung ...'!H5","v":0},1,1]
["Medium",0.6,{"$f":"ROUND($C$2*B4,0)","v":111},{"$f":"ROUND($D$2*B4,0)","v":111},null,null,"1",{"$f":"'1 Unternehmensführung ...'!B6","v":"1.1.3"},{"$f":"'1 Unternehmensführung ...'!C6","v":"Einfache Ausgangsbilanz*"},{"$f":"IF('1 Unternehmensführung ...'!K6=0,\"\",'1 Unternehmensführung ...'!K6)","v":""},{"$f":"IFERROR(INDEX(Datenvalidierung!$D$1:$D$5,MATCH('1 Unternehmensführung ...'!K6,Datenvalidierung!$C$1:$C$5,0)),0)","v":0},{"$f":"IFERROR(INDEX(Datenvalidierung!$B$1:$B$3,MATCH('1 Unternehmensführung ...'!J6,Datenvalidierung!$A$1:$A$3,0)),\"\")","v":""},{"$f":"IF('1 Unternehmensführung ...'!J6=Datenvalidierung!$A$3,0,1)","v":1},{"$f":"IF('1 Unternehmensführung ...'!L6=0,\"\",'1 Unternehmensführung ...'!L6)","v":""},{"$f":"IF(N4=Datenvalidierung!$E$2,1,0)","v":0},{"$f":"IF('1 Unternehmensführung ...'!O6=\"Ja\",1,'1 Unternehmensführung ...'!O6)","v":0},{"$f":"'1 Unternehmensführung ...'!E6","v":"basic"},{"$f":"'1 Unternehmensführung ...'!F6*M4","v":1},{"$f":"INDEX(Datenvalidierung!$G$1:$G$3,MATCH(Q4,Datenvalidierung!$F$1:$F$3,0))","v":1},{"$f":"'1 Unternehmensführung ...'!H6","v":0},1,1]
["Premium",0.8,148,{"$f":"ROUND($D$2*B5,0)","v":148},null,null,"1",{"$f":"'1 Unternehmensführung ...'!B7","v":"1.1.4"},{"$f":"'1 Unternehmensführung ...'!C7","v":"Erweiterte Ausgangsbilanz"},{"$f":"IF('1 Unternehmensführung ...'!K7=0,\"\",'1 Unternehmensführung ...'!K7)","v":""},{"$f":"IFERROR(INDEX(Datenvalidierung!$D$1:$D$5,MATCH('1 Unternehmensführung ...'!K7,Datenvalidierung!$C$1:$C$5,0)),0)","v":0},{"$f":"IFERROR(INDEX(Datenvalidierung!$B$1:$B$3,MATCH('1 Unternehmensführung ...'!J7,Datenvalidierung!$A$1:$A$3,0)),\"\")","v":""},{"$f":"IF('1 Unternehmensführung ...'!J7=Datenvalidierung!$A$3,0,1)","v":1},{"$f":"IF('1 Unternehmensführung ...'!L7=0,\"\",'1 Unternehmensführung ...'!L7)","v":""},{"$f":"IF(N5=Datenvalidierung!$E$2,1,0)","v":0},{"$f":"IF('1 Unternehmensführung ...'!O7=\"Ja\",1,'1 Unternehmensführung ...'!O7)","v":0},{"$f":"'1 Unternehmensführung ...'!E7","v":"advanced"},{"$f":"'1 Unternehmensführung ...'!F7*M5","v":2},{"$f":"INDEX(Datenvalidierung!$G$1:$G$3,MATCH(Q5,Datenvalidierung!$F$1:$F$3,0))","v":2},{"$f":"'1 Unternehmensführung ...'!H7","v":0},1,1]
[null,null,null,null,null,null,"1",{"$f":"'1 Unternehmensführung ...'!B8","v":"1.1.5"},{"$f":"'1 Unternehmensführung ...'!C8","v":"Nachhaltigkeitsbericht"},{"$f":"IF('1 Unternehmensführung ...'!K8=0,\"\",'1 Unternehmensführung ...'!K8)","v":""},{"$f":"IFERROR(INDEX(Datenvalidierung!$D$1:$D$5,MATCH('1 Unternehmensführung ...'!K8,Datenvalidierung!$C$1:$C$5,0)),0)","v":0},{"$f":"IFERROR(INDEX(Datenvalidierung!$B$1:$B$3,MATCH('1 Unternehmensführung ...'!J8,Datenvalidierung!$A$1:$A$3,0)),\"\")","v":""},{"$f":"IF('1 Unternehmensführung ...'!J8=Datenvalidierung!$A$3,0,1)","v":1},{"$f":"IF('1 Unternehmensführung ...'!L8=0,\"\",'1 Unternehmensführung ...'!L8)","v":""},{"$f":"IF(N6=Datenvalidierung!$E$2,1,0)","v":0},{"$f":"IF('1 Unternehmensführung ...'!O8=\"Ja\",1,'1 Unternehmensführung ...'!O8)","v":0},{"$f":"'1 Unternehmensführung ...'!E8","v":"advanced"},{"$f":"'1 Unternehmensführung ...'!F8*M6","v":2},{"$f":"INDEX(Datenvalidierung!$G$1:$G$3,MATCH(Q6,Datenvalidierung!$F$1:$F$3,0))","v":2},{"$f":"'1 Unternehmensführung ...'!H8","v":0},1,1]
[null,null,null,null,null,null,"1",{"$f":"'1 Unternehmensführung ...'!B10","v":"1.2.1"},{"$f":"'1 Unternehmensführung ...'!C10","v":"Nachhaltigkeitswissen"},{"$f":"IF('1 Unternehmensführung ...'!K10=0,\"\",'1 Unternehmensführung ...'!K10)","v":""},{"$f":"IFERROR(INDEX(Datenvalidierung!$D$1:$D$5,MATCH('1 Unternehmensführung ...'!K10,Datenvalidierung!$C$1:$C$5,0)),0)","v":0},{"$f":"IFERROR(INDEX(Datenvalidierung!$B$1:$B$3,MATCH('1 Unternehmensführung ...'!J10,Datenvalidierung!$A$1:$A$3,0)),\"\")","v":""},{"$f":"IF('1 Unternehmensführung ...'!J10=Datenvalidierung!$A$3,0,1)","v":1},{"$f":"IF('1 Unternehmensführung ...'!L10=0,\"\",'1 Unternehmensführung ...'!L10)","v":""},{"$f":"IF(N7=Datenvalidierung!$E$2,1,0)","v":0},{"$f":"IF('1 Unternehmensführung ...'!O10=\"Ja\",1,'1 Unternehmensführung ...'!O10)","v":0},{"$f":"'1 Unternehmensführung ...'!E10","v":"basic"},{"$f":"'1 Unternehmensführung ...'!F10*M7","v":1},{"$f":"INDEX(Datenvalidierung!$G$1:$G$3,MATCH(Q7,Datenvalidierung!$F$1:$F$3,0))","v":1},{"$f":"'1 Unternehmensführung ...'!H10","v":0},1,1]
["Anzahl Kriterien pro VA-Art",null,null,null,null,null,"1",{"$f":"'1 Unternehmensführung ...'!B11","v":"1.2.2"},{"$f":"'1 Unternehmensführung ...'!C11","v":"Erweitertes Nachhaltigkeitswissen"},{"$f":"IF('1 Unternehmensführung ...'!K11=0,\"\",'1 Unternehmensführung ...'!K11)","v":""},{"$f":"IFERROR(INDEX(Datenvalidierung!$D$1:$D$5,MATCH('1 Unternehmensführung ...'!K11,Datenvalidierung!$C$1:$C$5,0)),0)","v":0},{"$f":"IFERROR(INDEX(Datenvalidierung!$B$1:$B$3,MATCH('1 Unternehmensführung ...'!J11,Datenvalidierung!$A$1:$A$3,0)),\"\")","v":""},{"$f":"IF('1 Unternehmensführung ...'!J11=Datenvalidierung!$A$3,0,1)","v":1},{"$f":"IF('1 Unternehmensführung ...'!L11=0,\"\",'1 Unternehmensführung ...'!L11)","v":""},{"$f":"IF(N8=Datenvalidierung!$E$2,1,0)","v":0},{"$f":"IF('1 Unternehmensführung ...'!O11=\"Ja\",1,'1 Unternehmensführung ...'!O11)","v":0},{"$f":"'1 Unternehmensführung ...'!E11","v":"advanced"},{"$f":"'1 Unternehmensführung ...'!F11*M8","v":2},{"$f":"INDEX(Datenvalidierung!$G$1:$G$3,MATCH(Q8,Datenvalidierung!$F$1:$F$3,0))","v":2},{"$f":"'1 Unternehmensführung ...'!H11","v":0},1,1]
[null,"Basic","Advanced","Professional","Gesamt",null,"1",{"$f":"'1 Unternehmensführung ...'!B12","v":"1.2.3"},{"$f":"'1 Unternehmensführung ...'!C12","v":"Nachhaltigkeitsbriefing"},{"$f":"IF('1 Unternehmensführung ...'!K12=0,\"\",'1 Unternehmensführung ...'!K12)","v":""},{"$f":"IFERROR(INDEX(Datenvalidierung!$D$1:$D$5,MATCH('1 Unternehmensführung ...'!K12,Datenvalidierung!$C$1:$C$5,0)),0)","v":0},{"$f":"IFERROR(INDEX(Datenvalidierung!$B$1:$B$3,MATCH('1 Unternehmensführung ...'!J12,Datenvalidierung!$A$1:$A$3,0)),\"\")","v":""},{"$f":"IF('1 Unternehmensführung ...'!J12=Datenvalidierung!$A$3,0,1)","v":1},{"$f":"IF('1 Unternehmensführung ...'!L12=0,\"\",'1 Unternehmensführung ...'!L12)","v":""},{"$f":"IF(N9=Datenvalidierung!$E$2,1,0)","v":0},{"$f":"IF('1 Unternehmensführung ...'!O12=\"Ja\",1,'1 Unternehmensführung ...'!O12)","v":0},{"$f":"'1 Unternehmensführung ...'!E12","v":"basic"},{"$f":"'1 Unternehmensführung ...'!F12*M9","v":1},{"$f":"INDEX(Datenvalidierung!$G$1:$G$3,MATCH(Q9,Datenvalidierung!$F$1:$F$3,0))","v":1},{"$f":"'1 Unternehmensführung ...'!H12","v":0},1,1]
["Indoor",{"$f":"COUNTIFS($Q:$Q,B9,$U:$U,1)","v":57},{"$f":"COUNTIFS($Q:$Q,C9,$U:$U,1)","v":34},{"$f":"COUNTIFS($Q:$Q,D9,$U:$U,1)","v":13},{"$f":"SUM(B10:D10)","v":104},null,"1",{"$f":"'1 Unternehmensführung ...'!B14","v":"1.3.1"},{"$f":"'1 Unternehmensführung ...'!C14","v":"Dokumentation von Mehrkosten"},{"$f":"IF('1 Unternehmensführung ...'!K14=0,\"\",'1 Unternehmensführung ...'!K14)","v":""},{"$f":"IFERROR(INDEX(Datenvalidierung!$D$1:$D$5,MATCH('1 Unternehmensführung ...'!K14,Datenvalidierung!$C$1:$C$5,0)),0)","v":0},{"$f":"IFERROR(INDEX(Datenvalidierung!$B$1:$B$3,MATCH('1 Unternehmensführung ...'!J14,Datenvalidierung!$A$1:$A$3,0)),\"\")","v":""},{"$f":"IF('1 Unternehmensführung ...'!J14=Datenvalidierung!$A$3,0,1)","v":1},{"$f":"IF('1 Unternehmensführung ...'!L14=0,\"\",'1 Unternehmensführung ...'!L14)","v":""},{"$f":"IF(N10=Datenvalidierung!$E$2,1,0)","v":0},{"$f":"IF('1 Unternehmensführung ...'!O14=\"Ja\",1,'1 Unternehmensführung ...'!O14)","v":0},{"$f":"'1 Unternehmensführung ...'!E14","v":"advanced"},{"$f":"'1 Unternehmensführung ...'!F14*M10","v":2},{"$f":"INDEX(Datenvalidierung!$G$1:$G$3,MATCH(Q10,Datenvalidierung!$F$1:$F$3,0))","v":2},{"$f":"'1 Unternehmensführung ...'!H14","v":0},1,1]
["Outdoor",{"$f":"COUNTIFS($Q:$Q,B9,$V:$V,1)","v":67},{"$f":"COUNTIFS($Q:$Q,C9,$V:$V,1)","v":37},{"$f":"COUNTIFS($Q:$Q,D9,$V:$V,1)","v":14},{"$f":"SUM(B11:D11)","v":118},null,"1",{"$f":"'1 Unternehmensführung ...'!B15","v":"1.3.2"},{"$f":"'1 Unternehmensführung ...'!C15","v":"Kostenkommunikation"},{"$f":"IF('1 Unternehmensführung ...'!K15=0,\"\",'1 Unternehmensführung ...'!K15)","v":""},{"$f":"IFERROR(INDEX(Datenvalidierung!$D$1:$D$5,MATCH('1 Unternehmensführung ...'!K15,Datenvalidierung!$C$1:$C$5,0)),0)","v":0},{"$f":"IFERROR(INDEX(Datenvalidierung!$B$1:$B$3,MATCH('1 Unternehmensführung ...'!J15,Datenvalidierung!$A$1:$A$3,0)),\"\")","v":""},{"$f":"IF('1 Unternehmensführung ...'!J15=Datenvalidierung!$A$3,0,1)","v":1},{"$f":"IF('1 Unternehmensführung ...'!L15=0,\"\",'1 Unternehmensführung ...'!L15)","v":""},{"$f":"IF(N11=Datenvalidierung!$E$2,1,0)","v":0},{"$f":"IF('1 Unternehmensführung ...'!O15=\"Ja\",1,'1 Unternehmensführung ...'!O15)","v":0},{"$f":"'1 Unternehmensführung ...'!E15","v":"basic"},{"$f":"'1 Unternehmensführung ...'!F15*M11","v":1},{"$f":"INDEX(Datenvalidierung!$G$1:$G$3,MATCH(Q11,Datenvalidierung!$F$1:$F$3,0))","v":1},{"$f":"'1 Unternehmensführung ...'!H15","v":0},1,1]
[null,null,null,null,null,null,"1",{"$f":"'1 Unternehmensführung ...'!B16","v":"1.3.3"},{"$f":"'1 Unternehmensführung ...'!C16","v":"Solidarische Kostenumlegung"},{"$f":"IF('1 Unternehmensführung ...'!K16=0,\"\",'1 Unternehmensführung ...'!K16)","v":""},{"$f":"IFERROR(INDEX(Datenvalidierung!$D$1:$D$5,MATCH('1 Unternehmensführung ...'!K16,Datenvalidierung!$C$1:$C$5,0)),0)","v":0},{"$f":"IFERROR(INDEX(Datenvalidierung!$B$1:$B$3,MATCH('1 Unternehmensführung ...'!J16,Datenvalidierung!$A$1:$A$3,0)),\"\")","v":""},{"$f":"IF('1 Unternehmensführung ...'!J16=Datenvalidierung!$A$3,0,1)","v":1},{"$f":"IF('1 Unternehmensführung ...'!L16=0,\"\",'1 Unternehmensführung ...'!L16)","v":""},{"$f":"IF(N12=Datenvalidierung!$E$2,1,0)","v":0},{"$f":"IF('1 Unternehmensführung ...'!O16=\"Ja\",1,'1 Unternehmensführung ...'!O16)","v":0},{"$f":"'1 Unternehmensführung ...'!E16","v":"advanced"},{"$f":"'1 Unternehmensführung ...'!F16*M12","v":2},{"$f":"INDEX(Datenvalidierung!$G$1:$G$3,MATCH(Q12,Datenvalidierung!$F$1:$F$3,0))","v":2},{"$f":"'1 Unternehmensführung ...'!H16","v":0},1,1]
[null,null,null,null,null,null,"2",{"$f":"'2 Veranstaltungsstätte'!B4","v":"2.1.1"},{"$f":"'2 Veranstaltungsstätte'!C4","v":"klimafreundliche Erreichbarkeit"},{"$f":"IF('2 Veranstaltungsstätte'!K4=0,\"\",'2 Veranstaltungsstätte'!K4)","v":""},{"$f":"IFERROR(INDEX(Datenvalidierung!$D$1:$D$5,MATCH('2 Veranstaltungsstätte'!K4,Datenvalidierung!$C$1:$C$5,0)),0)","v":0},{"$f":"IFERROR(INDEX(Datenvalidierung!$B$1:$B$3,MATCH('2 Veranstaltungsstätte'!J4,Datenvalidierung!$A$1:$A$3,0)),\"\")","v":""},{"$f":"IF('2 Veranstaltungsstätte'!J4=Datenvalidierung!$A$3,0,1)","v":1},{"$f":"IF('2 Veranstaltungsstätte'!L4=0,\"\",'2 Veranstaltungsstätte'!L4)","v":""},{"$f":"IF(N13=Datenvalidierung!$E$2,1,0)","v":0},{"$f":"IF('2 Veranstaltungsstätte'!O4=\"Ja\",1,'2 Veranstaltungsstätte'!O4)","v":0},{"$f":"'2 Veranstaltungsstätte'!E4","v":"basic"},{"$f":"'2 Veranstaltungsstätte'!F4*M13","v":1},{"$f":"INDEX(Datenvalidierung!$G$1:$G$3,MATCH(Q13,Datenvalidierung!$F$1:$F$3,0))","v":1},{"$f":"'2 Veranstaltungsstätte'!H4","v":0},1,1]
[null,null,null,null,null,null,"2",{"$f":"'2 Veranstaltungsstätte'!B5","v":"2.1.2"},{"$f":"'2 Veranstaltungsstätte'!C5","v":"barrierearme Erreichbarkeit und Teilnahme"},{"$f":"IF('2 Veranstaltungsstätte'!K5=0,\"\",'2 Veranstaltungsstätte'!K5)","v":""},{"$f":"IFERROR(INDEX(Datenvalidierung!$D$1:$D$5,MATCH('2 Veranstaltungsstätte'!K5,Datenvalidierung!$C$1:$C$5,0)),0)","v":0},{"$f":"IFERROR(INDEX(Datenvalidierung!$B$1:$B$3,MATCH('2 Veranstaltungsstätte'!J5,Datenvalidierung!$A$1:$A$3,0)),\"\")","v":""},{"$f":"IF('2 Veranstaltungsstätte'!J5=Datenvalidierung!$A$3,0,1)","v":1},{"$f":"IF('2 Veranstaltungsstätte'!L5=0,\"\",'2 Veranstaltungsstätte'!L5)","v":""},{"$f":"IF(N14=Datenvalidierung!$E$2,1,0)","v":0},{"$f":"IF('2 Veranstaltungsstätte'!O5=\"Ja\",1,'2 Veranstaltungsstätte'!O5)","v":0},{"$f":"'2 Veranstaltungsstätte'!E5","v":"basic"},{"$f":"'2 Veranstaltungsstätte'!F5*M14","v":1},{"$f":"INDEX(Datenvalidierung!$G$1:$G$3,MATCH(Q14,Datenvalidierung!$F$1:$F$3,0))","v":1},{"$f":"'2 Veranstaltungsstätte'!H5","v":0},1,1]
[null,null,null,null,null,null,"2",{"$f":"'2 Veranstaltungsstätte'!B6","v":"2.1.3"},{"$f":"'2 Veranstaltungsstätte'!C6","v":"barrierefreie Erreichbarkeit und Teilnahme pro"},{"$f":"IF('2 Veranstaltungsstätte'!K6=0,\"\",'2 Veranstaltungsstätte'!K6)","v":""},{"$f":"IFERROR(INDEX(Datenvalidierung!$D$1:$D$5,MATCH('2 Veranstaltungsstätte'!K6,Datenvalidierung!$C$1:$C$5,0)),0)","v":0},{"$f":"IFERROR(INDEX(Datenvalidierung!$B$1:$B$3,MATCH('2 Veranstaltungsstätte'!J6,Datenvalidierung!$A$1:$A$3,0)),\"\")","v":""},{"$f":"IF('2 Veranstaltungsstätte'!J6=Datenvalidierung!$A$3,0,1)","v":1},{"$f":"IF('2 Veranstaltungsstätte'!L6=0,\"\",'2 Veranstaltungsstätte'!L6)","v":""},{"$f":"IF(N15=Datenvalidierung!$E$2,1,0)","v":0},{"$f":"IF('2 Veranstaltungsstätte'!O6=\"Ja\",1,'2 Veranstaltungsstätte'!O6)","v":0},{"$f":"'2 Veranstaltungsstätte'!E6","v":"professional"},{"$f":"'2 Veranstaltungsstätte'!F6*M15","v":3},{"$f":"INDEX(Datenvalidierung!$G$1:$G$3,MATCH(Q15,Datenvalidierung!$F$1:$F$3,0))","v":3},{"$f":"'2 Veranstaltungsstätte'!H6","v":0},1,1]
["1 Unternehmensführung & Organisationskultur",{"$f":"COUNTIF(G:G,LEFT(A16,1))","v":11},null,null,null,null,"2",{"$f":"'2 Veranstaltungsstätte'!B7","v":"2.1.4"},{"$f":"'2 Veranstaltungsstätte'!C7","v":"Beratung barrierefreie Gestaltung"},{"$f":"IF('2 Veranstaltungsstätte'!K7=0,\"\",'2 Veranstaltungsstätte'!K7)","v":""},{"$f":"IFERROR(INDEX(Datenvalidierung!$D$1:$D$5,MATCH('2 Veranstaltungsstätte'!K7,Datenvalidierung!$C$1:$C$5,0)),0)","v":0},{"$f":"IFERROR(INDEX(Datenvalidierung!$B$1:$B$3,MATCH('2 Veranstaltungsstätte'!J7,Datenvalidierung!$A$1:$A$3,0)),\"\")","v":""},{"$f":"IF('2 Veranstaltungsstätte'!J7=Datenvalidierung!$A$3,0,1)","v":1},{"$f":"IF('2 Veranstaltungsstätte'!L7=0,\"\",'2 Veranstaltungsstätte'!L7)","v":""},{"$f":"IF(N16=Datenvalidierung!$E$2,1,0)","v":0},{"$f":"IF('2 Veranstaltungsstätte'!O7=\"Ja\",1,'2 Veranstaltungsstätte'!O7)","v":0},{"$f":"'2 Veranstaltungsstätte'!E7","v":"professional"},{"$f":"'2 Veranstaltungsstätte'!F7*M16","v":3},{"$f":"INDEX(Datenvalidierung!$G$1:$G$3,MATCH(Q16,Datenvalidierung!$F$1:$F$3,0))","v":3},{"$f":"'2 Veranstaltungsstätte'!H7","v":0},1,1]
["2 Veranstaltungsstätte/-ort",{"$f":"COUNTIF(G:G,LEFT(A17,1))","v":17},null,null,null,null,"2",{"$f":"'2 Veranstaltungsstätte'!B8","v":"2.1.5"},{"$f":"'2 Veranstaltungsstätte'!C8","v":"nachhaltige Veranstaltungsstätte"},{"$f":"IF('2 Veranstaltungsstätte'!K8=0,\"\",'2 Veranstaltungsstätte'!K8)","v":""},{"$f":"IFERROR(INDEX(Datenvalidierung!$D$1:$D$5,MATCH('2 Veranstaltungsstätte'!K8,Datenvalidierung!$C$1:$C$5,0)),0)","v":0},{"$f":"IFERROR(INDEX(Datenvalidierung!$B$1:$B$3,MATCH('2 Veranstaltungsstätte'!J8,Datenvalidierung!$A$1:$A$3,0)),\"\")","v":""},{"$f":"IF('2 Veranstaltungsstätte'!J8=Datenvalidierung!$A$3,0,1)","v":1},{"$f":"IF('2 Veranstaltungsstätte'!L8=0,\"\",'2 Veranstaltungsstätte'!L8)","v":""},{"$f":"IF(N17=Datenvalidierung!$E$2,1,0)","v":0},{"$f":"IF('2 Veranstaltungsstätte'!O8=\"Ja\",1,'2 Veranstaltungsstätte'!O8)","v":0},{"$f":"'2 Veranstaltungsstätte'!E8","v":"advanced"},{"$f":"'2 Veranstaltungsstätte'!F8*M17","v":2},{"$f":"INDEX(Datenvalidierung!$G$1:$G$3,MATCH(Q17,Datenvalidierung!$F$1:$F$3,0))","v":2},{"$f":"'2 Veranstaltungsstätte'!H8","v":"gilt nur Indoor"},1,0]
["3 Standbetreiber:innen & Konzept",7,null,null,null,null,"2",{"$f":"'2 Veranstaltungsstätte'!B9","v":"2.1.6"},{"$f":"'2 Veranstaltungsstätte'!C9","v":"geeignete Freiflächen"},{"$f":"IF('2 Veranstaltungsstätte'!K9=0,\"\",'2 Veranstaltungsstätte'!K9)","v":""},{"$f":"IFERROR(INDEX(Datenvalidierung!$D$1:$D$5,MATCH('2 Veranstaltungsstätte'!K9,Datenvalidierung!$C$1:$C$5,0)),0)","v":0},{"$f":"IFERROR(INDEX(Datenvalidierung!$B$1:$B$3,MATCH('2 Veranstaltungsstätte'!J9,Datenvalidierung!$A$1:$A$3,0)),\"\")","v":""},{"$f":"IF('2 Veranstaltungsstätte'!J9=Datenvalidierung!$A$3,0,1)","v":1},{"$f":"IF('2 Veranstaltungsstätte'!L9=0,\"\",'2 Veranstaltungsstätte'!L9)","v":""},{"$f":"IF(N18=Datenvalidierung!$E$2,1,0)","v":0},{"$f":"IF('2 Veranstaltungsstätte'!O9=\"Ja\",1,'2 Veranstaltungsstätte'!O9)","v":0},{"$f":"'2 Veranstaltungsstätte'!E9","v":"advanced"},{"$f":"'2 Veranstaltungsstätte'!F9*M18","v":2},{"$f":"INDEX(Datenvalidierung!$G$1:$G$3,MATCH(Q18,Datenvalidierung!$F$1:$F$3,0))","v":2},{"$f":"'2 Veranstaltungsstätte'!H9","v":"gilt nur Outdoor"},0,1]
["4 Klimaschutzmaßnahmen",18,null,null,null,null,"2",{"$f":"'2 Veranstaltungsstätte'!B11","v":"2.2.1"},{"$f":"'2 Veranstaltungsstätte'!C11","v":"Energie"},{"$f":"IF('2 Veranstaltungsstätte'!K11=0,\"\",'2 Veranstaltungsstätte'!K11)","v":""},{"$f":"IFERROR(INDEX(Datenvalidierung!$D$1:$D$5,MATCH('2 Veranstaltungsstätte'!K11,Datenvalidierung!$C$1:$C$5,0)),0)","v":0},{"$f":"IFERROR(INDEX(Datenvalidierung!$B$1:$B$3,MATCH('2 Veranstaltungsstätte'!J11,Datenvalidierung!$A$1:$A$3,0)),\"\")","v":""},{"$f":"IF('2 Veranstaltungsstätte'!J11=Datenvalidierung!$A$3,0,1)","v":1},{"$f":"IF('2 Veranstaltungsstätte'!L11=0,\"\",'2 Veranstaltungsstätte'!L11)","v":""},{"$f":"IF(N19=Datenvalidierung!$E$2,1,0)","v":0},{"$f":"IF('2 Veranstaltungsstätte'!O11=\"Ja\",1,'2 Veranstaltungsstätte'!O11)","v":0},{"$f":"'2 Veranstaltungsstätte'!E11","v":"basic"},{"$f":"'2 Veranstaltungsstätte'!F11*M19","v":1},{"$f":"INDEX(Datenvalidierung!$G$1:$G$3,MATCH(Q19,Datenvalidierung!$F$1:$F$3,0))","v":1},{"$f":"'2 Veranstaltungsstätte'!H11","v":0},1,1]
["5 Beschaffung & Abfallmanagement",17,null,null,null,null,"2",{"$f":"'2 Veranstaltungsstätte'!B12","v":"2.2.2"},{"$f":"'2 Veranstaltungsstätte'!C12","v":"Materialien"},{"$f":"IF('2 Veranstaltungsstätte'!K12=0,\"\",'2 Veranstaltungsstätte'!K12)","v":""},{"$f":"IFERROR(INDEX(Datenvalidierung!$D$1:$D$5,MATCH('2 Veranstaltungsstätte'!K12,Datenvalidierung!$C$1:$C$5,0)),0)","v":0},{"$f":"IFERROR(INDEX(Datenvalidierung!$B$1:$B$3,MATCH('2 Veranstaltungsstätte'!J12,Datenvalidierung!$A$1:$A$3,0)),\"\")","v":""},{"$f":"IF('2 Veranstaltungsstätte'!J12=Datenvalidierung!$A$3,0,1)","v":1},{"$f":"IF('2 Veranstaltungsstätte'!L12=0,\"\",'2 Veranstaltungsstätte'!L12)","v":""},{"$f":"IF(N20=Datenvalidierung!$E$2,1,0)","v":0},{"$f":"IF('2 Veranstaltungsstätte'!O12=\"Ja\",1,'2 Veranstaltungsstätte'!O12)","v":0},{"$f":"'2 Veranstaltungsstätte'!E12","v":"basic"},{"$f":"'2 Veranstaltungsstätte'!F12*M20","v":1},{"$f":"INDEX(Datenvalidierung!$G$1:$G$3,MATCH(Q20,Datenvalidierung!$F$1:$F$3,0))","v":1},{"$f":"'2 Veranstaltungsstätte'!H12","v":0},1,1]
["6 Unterkunft",3,null,null,null,null,"2",{"$f":"'2 Veranstaltungsstätte'!B13","v":"2.2.3"},{"$f":"'2 Veranstaltungsstätte'!C13","v":"Reinigungsmittel"},{"$f":"IF('2 Veranstaltungsstätte'!K13=0,\"\",'2 Veranstaltungsstätte'!K13)","v":""},{"$f":"IFERROR(INDEX(Datenvalidierung!$D$1:$D$5,MATCH('2 Veranstaltungsstätte'!K13,Datenvalidierung!$C$1:$C$5,0)),0)","v":0},{"$f":"IFERROR(INDEX(Datenvalidierung!$B$1:$B$3,MATCH('2 Veranstaltungsstätte'!J13,Datenvalidierung!$A$1:$A$3,0)),\"\")","v":""},{"$f":"IF('2 Veranstaltungsstätte'!J13=Datenvalidierung!$A$3,0,1)","v":1},{"$f":"IF('2 Veranstaltungsstätte'!L13=0,\"\",'2 Veranstaltungsstätte'!L13)","v":""},{"$f":"IF(N21=Datenvalidierung!$E$2,1,0)","v":0},{"$f":"IF('2 Veranstaltungsstätte'!O13=\"Ja\",1,'2 Veranstaltungsstätte'!O13)","v":0},{"$f":"'2 Veranstaltungsstätte'!E13","v":"basic"},{"$f":"'2 Veranstaltungsstätte'!F13*M21","v":1},{"$f":"INDEX(Datenvalidierung!$G$1:$G$3,MATCH(Q21,Datenvalidierung!$F$1:$F$3,0))","v":1},{"$f":"'2 Veranstaltungsstätte'!H13","v":0},1,1]
["7 Gastronomie",27,null,null,null,null,"2",{"$f":"'2 Veranstaltungsstätte'!B14","v":"2.2.4"},{"$f":"'2 Veranstaltungsstätte'!C14","v":"Wasser"},{"$f":"IF('2 Veranstaltungsstätte'!K14=0,\"\",'2 Veranstaltungsstätte'!K14)","v":""},{"$f":"IFERROR(INDEX(Datenvalidierung!$D$1:$D$5,MATCH('2 Veranstaltungsstätte'!K14,Datenvalidierung!$C$1:$C$5,0)),0)","v":0},{"$f":"IFERROR(INDEX(Datenvalidierung!$B$1:$B$3,MATCH('2 Veranstaltungsstätte'!J14,Datenvalidierung!$A$1:$A$3,0)),\"\")","v":""},{"$f":"IF('2 Veranstaltungsstätte'!J14=Datenvalidierung!$A$3,0,1)","v":1},{"$f":"IF('2 Veranstaltungsstätte'!L14=0,\"\",'2 Veranstaltungsstätte'!L14)","v":""},{"$f":"IF(N22=Datenvalidierung!$E$2,1,0)","v":0},{"$f":"IF('2 Veranstaltungsstätte'!O14=\"Ja\",1,'2 Veranstaltungsstätte'!O14)","v":0},{"$f":"'2 Veranstaltungsstätte'!E14","v":"basic"},{"$f":"'2 Veranstaltungsstätte'!F14*M22","v":1},{"$f":"INDEX(Datenvalidierung!$G$1:$G$3,MATCH(Q22,Datenvalidierung!$F$1:$F$3,0))","v":1},{"$f":"'2 Veranstaltungsstätte'!H14","v":0},1,1]
["8 Soziale Aspekte & Inklusion",12,null,null,null,null,"2",{"$f":"'2 Veranstaltungsstätte'!B15","v":"2.2.5"},{"$f":"'2 Veranstaltungsstätte'!C15","v":"Abwasser"},{"$f":"IF('2 Veranstaltungsstätte'!K15=0,\"\",'2 Veranstaltungsstätte'!K15)","v":""},{"$f":"IFERROR(INDEX(Datenvalidierung!$D$1:$D$5,MATCH('2 Veranstaltungsstätte'!K15,Datenvalidierung!$C$1:$C$5,0)),0)","v":0},{"$f":"IFERROR(INDEX(Datenvalidierung!$B$1:$B$3,MATCH('2 Veranstaltungsstätte'!J15,Datenvalidierung!$A$1:$A$3,0)),\"\")","v":""},{"$f":"IF('2 Veranstaltungsstätte'!J15=Datenvalidierung!$A$3,0,1)","v":1},{"$f":"IF('2 Veranstaltungsstätte'!L15=0,\"\",'2 Veranstaltungsstätte'!L15)","v":""},{"$f":"IF(N23=Datenvalidierung!$E$2,1,0)","v":0},{"$f":"IF('2 Veranstaltungsstätte'!O15=\"Ja\",1,'2 Veranstaltungsstätte'!O15)","v":0},{"$f":"'2 Veranstaltungsstätte'!E15","v":"basic"},{"$f":"'2 Veranstaltungsstätte'!F15*M23","v":1},{"$f":"INDEX(Datenvalidierung!$G$1:$G$3,MATCH(Q23,Datenvalidierung!$F$1:$F$3,0))","v":1},{"$f":"'2 Veranstaltungsstätte'!H15","v":"gilt nur Outdoor"},0,1]
["9 Kommunikation",7,null,null,null,null,"2",{"$f":"'2 Veranstaltungsstätte'!B16","v":"2.2.6"},{"$f":"'2 Veranstaltungsstätte'!C16","v":"Mobile Toiletten"},{"$f":"IF('2 Veranstaltungsstätte'!K16=0,\"\",'2 Veranstaltungsstätte'!K16)","v":""},{"$f":"IFERROR(INDEX(Datenvalidierung!$D$1:$D$5,MATCH('2 Veranstaltungsstätte'!K16,Datenvalidierung!$C$1:$C$5,0)),0)","v":0},{"$f":"IFERROR(INDEX(Datenvalidierung!$B$1:$B$3,MATCH('2 Veranstaltungsstätte'!J16,Datenvalidierung!$A$1:$A$3,0)),\"\")","v":""},{"$f":"IF('2 Veranstaltungsstätte'!J16=Datenvalidierung!$A$3,0,1)","v":1},{"$f":"IF('2 Veranstaltungsstätte'!L16=0,\"\",'2 Veranstaltungsstätte'!L16)","v":""},{"$f":"IF(N24=Datenvalidierung!$E$2,1,0)","v":0},{"$f":"IF('2 Veranstaltungsstätte'!O16=\"Ja\",1,'2 Veranstaltungsstätte'!O16)","v":0},{"$f":"'2 Veranstaltungsstätte'!E16","v":"basic"},{"$f":"'2 Veranstaltungsstätte'!F16*M24","v":1},{"$f":"INDEX(Datenvalidierung!$G$1:$G$3,MATCH(Q24,Datenvalidierung!$F$1:$F$3,0))","v":1},{"$f":"'2 Veranstaltungsstätte'!H16","v":"gilt nur Outdoor"},0,1]
[null,null,null,null,null,null,"2",{"$f":"'2 Veranstaltungsstätte'!B17","v":"2.2.7"},{"$f":"'2 Veranstaltungsstätte'!C17","v":"Mobile Toiletten pro"},{"$f":"IF('2 Veranstaltungsstätte'!K17=0,\"\",'2 Veranstaltungsstätte'!K17)","v":""},{"$f":"IFERROR(INDEX(Datenvalidierung!$D$1:$D$5,MATCH('2 Veranstaltungsstätte'!K17,Datenvalidierung!$C$1:$C$5,0)),0)","v":0},{"$f":"IFERROR(INDEX(Datenvalidierung!$B$1:$B$3,MATCH('2 Veranstaltungsstätte'!J17,Datenvalidierung!$A$1:$A$3,0)),\"\")","v":""},{"$f":"IF('2 Veranstaltungsstätte'!J17=Datenvalidierung!$A$3,0,1)","v":1},{"$f":"IF('2 Veranstaltungsstätte'!L17=0,\"\",'2 Veranstaltungsstätte'!L17)","v":""},{"$f":"IF(N25=Datenvalidierung!$E$2,1,0)","v":0},{"$f":"IF('2 Veranstaltungsstätte'!O17=\"Ja\",1,'2 Veranstaltungsstätte'!O17)","v":0},{"$f":"'2 Veranstaltungsstätte'!E17","v":"professional"},{"$f":"'2 Veranstaltungsstätte'!F17*M25","v":3},{"$f":"INDEX(Datenvalidierung!$G$1:$G$3,MATCH(Q25,Datenvalidierung!$F$1:$F$3,0))","v":3},{"$f":"'2 Veranstaltungsstätte'!H17","v":"gilt nur Outdoor"},0,1]
[null,null,null,null,null,null,"2",{"$f":"'2 Veranstaltungsstätte'!B19","v":"2.3.1"},{"$f":"'2 Veranstaltungsstätte'!C19","v":"Ausschluss geschützter Gebiete"},{"$f":"IF('2 Veranstaltungsstätte'!K19=0,\"\",'2 Veranstaltungsstätte'!K19)","v":""},{"$f":"IFERROR(INDEX(Datenvalidierung!$D$1:$D$5,MATCH('2 Veranstaltungsstätte'!K19,Datenvalidierung!$C$1:$C$5,0)),0)","v":0},{"$f":"IFERROR(INDEX(Datenvalidierung!$B$1:$B$3,MATCH('2 Veranstaltungsstätte'!J19,Datenvalidierung!$A$1:$A$3,0)),\"\")","v":""},{"$f":"IF('2 Veranstaltungsstätte'!J19=Datenvalidierung!$A$3,0,1)","v":1},{"$f":"IF('2 Veranstaltungsstätte'!L19=0,\"\",'2 Veranstaltungsstätte'!L19)","v":""},{"$f":"IF(N26=Datenvalidierung!$E$2,1,0)","v":0},{"$f":"IF('2 Veranstaltungsstätte'!O19=\"Ja\",1,'2 Veranstaltungsstätte'!O19)","v":0},{"$f":"'2 Veranstaltungsstätte'!E19","v":"basic"},{"$f":"'2 Veranstaltungsstätte'!F19*M26","v":1},{"$f":"INDEX(Datenvalidierung!$G$1:$G$3,MATCH(Q26,Datenvalidierung!$F$1:$F$3,0))","v":1},{"$f":"'2 Veranstaltungsstätte'!H19","v":"gilt nur Outdoor"},0,1]
[null,null,null,null,null,null,"2",{"$f":"'2 Veranstaltungsstätte'!B20","v":"2.3.2"},{"$f":"'2 Veranstaltungsstätte'!C20","v":"Schutzkonzept"},{"$f":"IF('2 Veranstaltungsstätte'!K20=0,\"\",'2 Veranstaltungsstätte'!K20)","v":""},{"$f":"IFERROR(INDEX(Datenvalidierung!$D$1:$D$5,MATCH('2 Veranstaltungsstätte'!K20,Datenvalidierung!$C$1:$C$5,0)),0)","v":0},{"$f":"IFERROR(INDEX(Datenvalidierung!$B$1:$B$3,MATCH('2 Veranstaltungsstätte'!J20,Datenvalidierung!$A$1:$A$3,0)),\"\")","v":""},{"$f":"IF('2 Veranstaltungsstätte'!J20=Datenvalidierung!$A$3,0,1)","v":1},{"$f":"IF('2 Veranstaltungsstätte'!L20=0,\"\",'2 Veranstaltungsstätte'!L20)","v":""},{"$f":"IF(N27=Datenvalidierung!$E$2,1,0)","v":0},{"$f":"IF('2 Veranstaltungsstätte'!O20=\"Ja\",1,'2 Veranstaltungsstätte'!O20)","v":0},{"$f":"'2 Veranstaltungsstätte'!E20","v":"basic"},{"$f":"'2 Veranstaltungsstätte'!F20*M27","v":1},{"$f":"INDEX(Datenvalidierung!$G$1:$G$3,MATCH(Q27,Datenvalidierung!$F$1:$F$3,0))","v":1},{"$f":"'2 Veranstaltungsstätte'!H20","v":"gilt nur Outdoor"},0,1]
[null,null,null,null,null,null,"2",{"$f":"'2 Veranstaltungsstätte'!B19","v":"2.3.1"},{"$f":"'2 Veranstaltungsstätte'!C19","v":"Ausschluss geschützter Gebiete"},{"$f":"IF('2 Veranstaltungsstätte'!K19=0,\"\",'2 Veranstaltungsstätte'!K19)","v":""},{"$f":"IFERROR(INDEX(Datenvalidierung!$D$1:$D$5,MATCH('2 Veranstaltungsstätte'!K19,Datenvalidierung!$C$1:$C$5,0)),0)","v":0},{"$f":"IFERROR(INDEX(Datenvalidierung!$B$1:$B$3,MATCH('2 Veranstaltungsstätte'!J19,Datenvalidierung!$A$1:$A$3,0)),\"\")","v":""},{"$f":"IF('2 Veranstaltungsstätte'!J19=Datenvalidierung!$A$3,0,1)","v":1},{"$f":"IF('2 Veranstaltungsstätte'!L19=0,\"\",'2 Veranstaltungsstätte'!L19)","v":""},{"$f":"IF(N28=Datenvalidierung!$E$2,1,0)","v":0},{"$f":"IF('2 Veranstaltungsstätte'!O19=\"Ja\",1,'2 Veranstaltungsstätte'!O19)","v":0},{"$f":"'2 Veranstaltungsstätte'!E19","v":"basic"},{"$f":"'2 Veranstaltungsstätte'!F19*M28","v":1},{"$f":"INDEX(Datenvalidierung!$G$1:$G$3,MATCH(Q28,Datenvalidierung!$F$1:$F$3,0))","v":1},{"$f":"'2 Veranstaltungsstätte'!H19","v":"gilt nur Outdoor"},0,1]
[null,null,null,null,null,null,"2",{"$f":"'2 Veranstaltungsstätte'!B20","v":"2.3.2"},{"$f":"'2 Veranstaltungsstätte'!C20","v":"Schutzkonzept"},{"$f":"IF('2 Veranstaltungsstätte'!K20=0,\"\",'2 Veranstaltungsstätte'!K20)","v":""},{"$f":"IFERROR(INDEX(Datenvalidierung!$D$1:$D$5,MATCH('2 Veranstaltungsstätte'!K20,Datenvalidierung!$C$1:$C$5,0)),0)","v":0},{"$f":"IFERROR(INDEX(Datenvalidierung!$B$1:$B$3,MATCH('2 Veranstaltungsstätte'!J20,Datenvalidierung!$A$1:$A$3,0)),\"\")","v":""},{"$f":"IF('2 Veranstaltungsstätte'!J20=Datenvalidierung!$A$3,0,1)","v":1},{"$f":"IF('2 Veranstaltungsstätte'!L20=0,\"\",'2 Veranstaltungsstätte'!L20)","v":""},{"$f":"IF(N29=Datenvalidierung!$E$2,1,0)","v":0},{"$f":"IF('2 Veranstaltungsstätte'!O20=\"Ja\",1,'2 Veranstaltungsstätte'!O20)","v":0},{"$f":"'2 Veranstaltungsstätte'!E20","v":"basic"},{"$f":"'2 Veranstaltungsstätte'!F20*M29","v":1},{"$f":"INDEX(Datenvalidierung!$G$1:$G$3,MATCH(Q29,Datenvalidierung!$F$1:$F$3,0))","v":1},{"$f":"'2 Veranstaltungsstätte'!H20","v":"gilt nur Outdoor"},0,1]
[null,null,null,null,null,null,"3",{"$f":"'3 Standbetreiberinnen & Konzept'!B4","v":"3.1.1"},{"$f":"'3 Standbetreiberinnen & Konzept'!C4","v":"Veranstaltungsprogramm"},{"$f":"IF('3 Standbetreiberinnen & Konzept'!K4=0,\"\",'3 Standbetreiberinnen & Konzept'!K4)","v":""},{"$f":"IFERROR(INDEX(Datenvalidierung!$D$1:$D$5,MATCH('3 Standbetreiberinnen & Konzept'!K4,Datenvalidierung!$C$1:$C$5,0)),0)","v":0},{"$f":"IFERROR(INDEX(Datenvalidierung!$B$1:$B$3,MATCH('3 Standbetreiberinnen & Konzept'!J4,Datenvalidierung!$A$1:$A$3,0)),\"\")","v":""},{"$f":"IF('3 Standbetreiberinnen & Konzept'!J4=Datenvalidierung!$A$3,0,1)","v":1},{"$f":"IF('3 Standbetreiberinnen & Konzept'!L4=0,\"\",'3 Standbetreiberinnen & Konzept'!L4)","v":""},{"$f":"IF(N30=Datenvalidierung!$E$2,1,0)","v":0},{"$f":"IF('3 Standbetreiberinnen & Konzept'!O4=\"Ja\",1,'3 Standbetreiberinnen & Konzept'!O4)","v":0},{"$f":"'3 Standbetreiberinnen & Konzept'!E4","v":"professional"},{"$f":"'3 Standbetreiberinnen & Konzept'!F4*M30","v":3},{"$f":"INDEX(Datenvalidierung!$G$1:$G$3,MATCH(Q30,Datenvalidierung!$F$1:$F$3,0))","v":3},{"$f":"'3 Standbetreiberinnen & Konzept'!H4","v":0},1,1]
[null,null,null,null,null,null,"3",{"$f":"'3 Standbetreiberinnen & Konzept'!B5","v":"3.1.2"},{"$f":"'3 Standbetreiberinnen & Konzept'!C5","v":"Gleichstellung"},{"$f":"IF('3 Standbetreiberinnen & Konzept'!K5=0,\"\",'3 Standbetreiberinnen & Konzept'!K5)","v":""},{"$f":"IFERROR(INDEX(Datenvalidierung!$D$1:$D$5,MATCH('3 Standbetreiberinnen & Konzept'!K5,Datenvalidierung!$C$1:$C$5,0)),0)","v":0},{"$f":"IFERROR(INDEX(Datenvalidierung!$B$1:$B$3,MATCH('3 Standbetreiberinnen & Konzept'!J5,Datenvalidierung!$A$1:$A$3,0)),\"\")","v":""},{"$f":"IF('3 Standbetreiberinnen & Konzept'!J5=Datenvalidierung!$A$3,0,1)","v":1},{"$f":"IF('3 Standbetreiberinnen & Konzept'!L5=0,\"\",'3 Standbetreiberinnen & Konzept'!L5)","v":""},{"$f":"IF(N31=Datenvalidierung!$E$2,1,0)","v":0},{"$f":"IF('3 Standbetreiberinnen & Konzept'!O5=\"Ja\",1,'3 Standbetreiberinnen & Konzept'!O5)","v":0},{"$f":"'3 Standbetreiberinnen & Konzept'!E5","v":"advanced"},{"$f":"'3 Standbetreiberinnen & Konzept'!F5*M31","v":2},{"$f":"INDEX(Datenvalidierung!$G$1:$G$3,MATCH(Q31,Datenvalidierung!$F$1:$F$3,0))","v":2},{"$f":"'3 Standbetreiberinnen & Konzept'!H5","v":0},1,1]
[null,null,null,null,null,null,"3",{"$f":"'3 Standbetreiberinnen & Konzept'!B7","v":"3.2.1"},{"$f":"'3 Standbetreiberinnen & Konzept'!C7","v":"Einbindung lokaler Akteur:innen"},{"$f":"IF('3 Standbetreiberinnen & Konzept'!K7=0,\"\",'3 Standbetreiberinnen & Konzept'!K7)","v":""},{"$f":"IFERROR(INDEX(Datenvalidierung!$D$1:$D$5,MATCH('3 Standbetreiberinnen & Konzept'!K7,Datenvalidierung!$C$1:$C$5,0)),0)","v":0},{"$f":"IFERROR(INDEX(Datenvalidierung!$B$1:$B$3,MATCH('3 Standbetreiberinnen & Konzept'!J7,Datenvalidierung!$A$1:$A$3,0)),\"\")","v":""},{"$f":"IF('3 Standbetreiberinnen & Konzept'!J7=Datenvalidierung!$A$3,0,1)","v":1},{"$f":"IF('3 Standbetreiberinnen & Konzept'!L7=0,\"\",'3 Standbetreiberinnen & Konzept'!L7)","v":""},{"$f":"IF(N32=Datenvalidierung!$E$2,1,0)","v":0},{"$f":"IF('3 Standbetreiberinnen & Konzept'!O7=\"Ja\",1,'3 Standbetreiberinnen & Konzept'!O7)","v":0},{"$f":"'3 Standbetreiberinnen & Konzept'!E7","v":"basic"},{"$f":"'3 Standbetreiberinnen & Konzept'!F7*M32","v":1},{"$f":"INDEX(Datenvalidierung!$G$1:$G$3,MATCH(Q32,Datenvalidierung!$F$1:$F$3,0))","v":1},{"$f":"'3 Standbetreiberinnen & Konzept'!H7","v":0},1,1]
[null,null,null,null,null,null,"3",{"$f":"'3 Standbetreiberinnen & Konzept'!B8","v":"3.2.2"},{"$f":"'3 Standbetreiberinnen & Konzept'!C8","v":"regionale Beauftragung"},{"$f":"IF('3 Standbetreiberinnen & Konzept'!K8=0,\"\",'3 Standbetreiberinnen & Konzept'!K8)","v":""},{"$f":"IFERROR(INDEX(Datenvalidierung!$D$1:$D$5,MATCH('3 Standbetreiberinnen & Konzept'!K8,Datenvalidierung!$C$1:$C$5,0)),0)","v":0},{"$f":"IFERROR(INDEX(Datenvalidierung!$B$1:$B$3,MATCH('3 Standbetreiberinnen & Konzept'!J8,Datenvalidierung!$A$1:$A$3,0)),\"\")","v":""},{"$f":"IF('3 Standbetreiberinnen & Konzept'!J8=Datenvalidierung!$A$3,0,1)","v":1},{"$f":"IF('3 Standbetreiberinnen & Konzept'!L8=0,\"\",'3 Standbetreiberinnen & Konzept'!L8)","v":""},{"$f":"IF(N33=Datenvalidierung!$E$2,1,0)","v":0},{"$f":"IF('3 Standbetreiberinnen & Konzept'!O8=\"Ja\",1,'3 Standbetreiberinnen & Konzept'!O8)","v":0},{"$f":"'3 Standbetreiberinnen & Konzept'!E8","v":"basic"},{"$f":"'3 Standbetreiberinnen & Konzept'!F8*M33","v":1},{"$f":"INDEX(Datenvalidierung!$G$1:$G$3,MATCH(Q33,Datenvalidierung!$F$1:$F$3,0))","v":1},{"$f":"'3 Standbetreiberinnen & Konzept'!H8","v":"advanced für VA ab 5.000 Personen; \nprofessional für VA ab 10.000 Personen"},1,1]
[null,null,null,null,null,null,"3",{"$f":"'3 Standbetreiberinnen & Konzept'!B9","v":"3.2.3"},{"$f":"'3 Standbetreiberinnen & Konzept'!C9","v":"nachhaltigkeitsorientierte Auftragsvergabe"},{"$f":"IF('3 Standbetreiberinnen & Konzept'!K9=0,\"\",'3 Standbetreiberinnen & Konzept'!K9)","v":""},{"$f":"IFERROR(INDEX(Datenvalidierung!$D$1:$D$5,MATCH('3 Standbetreiberinnen & Konzept'!K9,Datenvalidierung!$C$1:$C$5,0)),0)","v":0},{"$f":"IFERROR(INDEX(Datenvalidierung!$B$1:$B$3,MATCH('3 Standbetreiberinnen & Konzept'!J9,Datenvalidierung!$A$1:$A$3,0)),\"\")","v":""},{"$f":"IF('3 Standbetreiberinnen & Konzept'!J9=Datenvalidierung!$A$3,0,1)","v":1},{"$f":"IF('3 Standbetreiberinnen & Konzept'!L9=0,\"\",'3 Standbetreiberinnen & Konzept'!L9)","v":""},{"$f":"IF(N34=Datenvalidierung!$E$2,1,0)","v":0},{"$f":"IF('3 Standbetreiberinnen & Konzept'!O9=\"Ja\",1,'3 Standbetreiberinnen & Konzept'!O9)","v":0},{"$f":"'3 Standbetreiberinnen & Konzept'!E9","v":"advanced"},{"$f":"'3 Standbetreiberinnen & Konzept'!F9*M34","v":2},{"$f":"INDEX(Datenvalidierung!$G$1:$G$3,MATCH(Q34,Datenvalidierung!$F$1:$F$3,0))","v":2},{"$f":"'3 Standbetreiberinnen & Konzept'!H9","v":"professional für VA über 10.000 Personen"},1,1]
[null,null,null,null,null,null,"3",{"$f":"'3 Standbetreiberinnen & Konzept'!B10","v":"3.2.4"},{"$f":"'3 Standbetreiberinnen & Konzept'!C10","v":"verbindliche Nachhaltigkeitskriterien"},{"$f":"IF('3 Standbetreiberinnen & Konzept'!K10=0,\"\",'3 Standbetreiberinnen & Konzept'!K10)","v":""},{"$f":"IFERROR(INDEX(Datenvalidierung!$D$1:$D$5,MATCH('3 Standbetreiberinnen & Konzept'!K10,Datenvalidierung!$C$1:$C$5,0)),0)","v":0},{"$f":"IFERROR(INDEX(Datenvalidierung!$B$1:$B$3,MATCH('3 Standbetreiberinnen & Konzept'!J10,Datenvalidierung!$A$1:$A$3,0)),\"\")","v":""},{"$f":"IF('3 Standbetreiberinnen & Konzept'!J10=Datenvalidierung!$A$3,0,1)","v":1},{"$f":"IF('3 Standbetreiberinnen & Konzept'!L10=0,\"\",'3 Standbetreiberinnen & Konzept'!L10)","v":""},{"$f":"IF(N35=Datenvalidierung!$E$2,1,0)","v":0},{"$f":"IF('3 Standbetreiberinnen & Konzept'!O10=\"Ja\",1,'3 Standbetreiberinnen & Konzept'!O10)","v":0},{"$f":"'3 Standbetreiberinnen & Konzept'!E10","v":"advanced"},{"$f":"'3 Standbetreiberinnen & Konzept'!F10*M35","v":2},{"$f":"INDEX(Datenvalidierung!$G$1:$G$3,MATCH(Q35,Datenvalidierung!$F$1:$F$3,0))","v":2},{"$f":"'3 Standbetreiberinnen & Konzept'!H10","v":0},1,1]
[null,null,null,null,null,null,"3",{"$f":"'3 Standbetreiberinnen & Konzept'!B11","v":"3.2.5"},{"$f":"'3 Standbetreiberinnen & Konzept'!C11","v":"Nachhaltigkeitsanreize"},{"$f":"IF('3 Standbetreiberinnen & Konzept'!K11=0,\"\",'3 Standbetreiberinnen & Konzept'!K11)","v":""},{"$f":"IFERROR(INDEX(Datenvalidierung!$D$1:$D$5,MATCH('3 Standbetreiberinnen & Konzept'!K11,Datenvalidierung!$C$1:$C$5,0)),0)","v":0},{"$f":"IFERROR(INDEX(Datenvalidierung!$B$1:$B$3,MATCH('3 Standbetreiberinnen & Konzept'!J11,Datenvalidierung!$A$1:$A$3,0)),\"\")","v":""},{"$f":"IF('3 Standbetreiberinnen & Konzept'!J11=Datenvalidierung!$A$3,0,1)","v":1},{"$f":"IF('3 Standbetreiberinnen & Konzept'!L11=0,\"\",'3 Standbetreiberinnen & Konzept'!L11)","v":""},{"$f":"IF(N36=Datenvalidierung!$E$2,1,0)","v":0},{"$f":"IF('3 Standbetreiberinnen & Konzept'!O11=\"Ja\",1,'3 Standbetreiberinnen & Konzept'!O11)","v":0},{"$f":"'3 Standbetreiberinnen & Konzept'!E11","v":"advanced"},{"$f":"'3 Standbetreiberinnen & Konzept'!F11*M36","v":2},{"$f":"INDEX(Datenvalidierung!$G$1:$G$3,MATCH(Q36,Datenvalidierung!$F$1:$F$3,0))","v":2},{"$f":"'3 Standbetreiberinnen & Konzept'!H11","v":0},1,1]
[null,null,null,null,null,null,"4",{"$f":"'4 Klimaschutzmaßnahmen'!B4","v":"4.1.1"},{"$f":"'4 Klimaschutzmaßnahmen'!C4","v":"einfache Klimabilanz"},{"$f":"IF('4 Klimaschutzmaßnahmen'!K4=0,\"\",'4 Klimaschutzmaßnahmen'!K4)","v":""},{"$f":"IFERROR(INDEX(Datenvalidierung!$D$1:$D$5,MATCH('4 Klimaschutzmaßnahmen'!K4,Datenvalidierung!$C$1:$C$5,0)),0)","v":0},{"$f":"IFERROR(INDEX(Datenvalidierung!$B$1:$B$3,MATCH('4 Klimaschutzmaßnahmen'!J4,Datenvalidierung!$A$1:$A$3,0)),\"\")","v":""},{"$f":"IF('4 Klimaschutzmaßnahmen'!J4=Datenvalidierung!$A$3,0,1)","v":1},{"$f":"IF('4 Klimaschutzmaßnahmen'!L4=0,\"\",'4 Klimaschutzmaßnahmen'!L4)","v":""},{"$f":"IF(N37=Datenvalidierung!$E$2,1,0)","v":0},{"$f":"IF('4 Klimaschutzmaßnahmen'!O4=\"Ja\",1,'4 Klimaschutzmaßnahmen'!O4)","v":0},{"$f":"'4 Klimaschutzmaßnahmen'!E4","v":"basic"},{"$f":"'4 Klimaschutzmaßnahmen'!F4*M37","v":1},{"$f":"INDEX(Datenvalidierung!$G$1:$G$3,MATCH(Q37,Datenvalidierung!$F$1:$F$3,0))","v":1},{"$f":"'4 Klimaschutzmaßnahmen'!H4","v":0},1,1]
[null,null,null,null,null,null,"4",{"$f":"'4 Klimaschutzmaßnahmen'!B5","v":"4.1.2"},{"$f":"'4 Klimaschutzmaßnahmen'!C5","v":"erweiterte Klimabilanz"},{"$f":"IF('4 Klimaschutzmaßnahmen'!K5=0,\"\",'4 Klimaschutzmaßnahmen'!K5)","v":""},{"$f":"IFERROR(INDEX(Datenvalidierung!$D$1:$D$5,MATCH('4 Klimaschutzmaßnahmen'!K5,Datenvalidierung!$C$1:$C$5,0)),0)","v":0},{"$f":"IFERROR(INDEX(Datenvalidierung!$B$1:$B$3,MATCH('4 Klimaschutzmaßnahmen'!J5,Datenvalidierung!$A$1:$A$3,0)),\"\")","v":""},{"$f":"IF('4 Klimaschutzmaßnahmen'!J5=Datenvalidierung!$A$3,0,1)","v":1},{"$f":"IF('4 Klimaschutzmaßnahmen'!L5=0,\"\",'4 Klimaschutzmaßnahmen'!L5)","v":""},{"$f":"IF(N38=Datenvalidierung!$E$2,1,0)","v":0},{"$f":"IF('4 Klimaschutzmaßnahmen'!O5=\"Ja\",1,'4 Klimaschutzmaßnahmen'!O5)","v":0},{"$f":"'4 Klimaschutzmaßnahmen'!E5","v":"advanced"},{"$f":"'4 Klimaschutzmaßnahmen'!F5*M38","v":2},{"$f":"INDEX(Datenvalidierung!$G$1:$G$3,MATCH(Q38,Datenvalidierung!$F$1:$F$3,0))","v":2},{"$f":"'4 Klimaschutzmaßnahmen'!H5","v":0},1,1]
[null,null,null,null,null,null,"4",{"$f":"'4 Klimaschutzmaßnahmen'!B6","v":"4.1.3"},{"$f":"'4 Klimaschutzmaßnahmen'!C6","v":"Klimakompensation und Klimaverantwortung"},{"$f":"IF('4 Klimaschutzmaßnahmen'!K6=0,\"\",'4 Klimaschutzmaßnahmen'!K6)","v":""},{"$f":"IFERROR(INDEX(Datenvalidierung!$D$1:$D$5,MATCH('4 Klimaschutzmaßnahmen'!K6,Datenvalidierung!$C$1:$C$5,0)),0)","v":0},{"$f":"IFERROR(INDEX(Datenvalidierung!$B$1:$B$3,MATCH('4 Klimaschutzmaßnahmen'!J6,Datenvalidierung!$A$1:$A$3,0)),\"\")","v":""},{"$f":"IF('4 Klimaschutzmaßnahmen'!J6=Datenvalidierung!$A$3,0,1)","v":1},{"$f":"IF('4 Klimaschutzmaßnahmen'!L6=0,\"\",'4 Klimaschutzmaßnahmen'!L6)","v":""},{"$f":"IF(N39=Datenvalidierung!$E$2,1,0)","v":0},{"$f":"IF('4 Klimaschutzmaßnahmen'!O6=\"Ja\",1,'4 Klimaschutzmaßnahmen'!O6)","v":0},{"$f":"'4 Klimaschutzmaßnahmen'!E6","v":"professional"},{"$f":"'4 Klimaschutzmaßnahmen'!F6*M39","v":3},{"$f":"INDEX(Datenvalidierung!$G$1:$G$3,MATCH(Q39,Datenvalidierung!$F$1:$F$3,0))","v":3},{"$f":"'4 Klimaschutzmaßnahmen'!H6","v":0},1,1]
[null,null,null,null,null,null,"4",{"$f":"'4 Klimaschutzmaßnahmen'!B8","v":"4.2.1"},{"$f":"'4 Klimaschutzmaßnahmen'!C8","v":"Kommunikation"},{"$f":"IF('4 Klimaschutzmaßnahmen'!K8=0,\"\",'4 Klimaschutzmaßnahmen'!K8)","v":""},{"$f":"IFERROR(INDEX(Datenvalidierung!$D$1:$D$5,MATCH('4 Klimaschutzmaßnahmen'!K8,Datenvalidierung!$C$1:$C$5,0)),0)","v":0},{"$f":"IFERROR(INDEX(Datenvalidierung!$B$1:$B$3,MATCH('4 Klimaschutzmaßnahmen'!J8,Datenvalidierung!$A$1:$A$3,0)),\"\")","v":""},{"$f":"IF('4 Klimaschutzmaßnahmen'!J8=Datenvalidierung!$A$3,0,1)","v":1},{"$f":"IF('4 Klimaschutzmaßnahmen'!L8=0,\"\",'4 Klimaschutzmaßnahmen'!L8)","v":""},{"$f":"IF(N40=Datenvalidierung!$E$2,1,0)","v":0},{"$f":"IF('4 Klimaschutzmaßnahmen'!O8=\"Ja\",1,'4 Klimaschutzmaßnahmen'!O8)","v":0},{"$f":"'4 Klimaschutzmaßnahmen'!E8","v":"basic"},{"$f":"'4 Klimaschutzmaßnahmen'!F8*M40","v":1},{"$f":"INDEX(Datenvalidierung!$G$1:$G$3,MATCH(Q40,Datenvalidierung!$F$1:$F$3,0))","v":1},{"$f":"'4 Klimaschutzmaßnahmen'!H8","v":0},1,1]
[null,null,null,null,null,null,"4",{"$f":"'4 Klimaschutzmaßnahmen'!B9","v":"4.2.2"},{"$f":"'4 Klimaschutzmaßnahmen'!C9","v":"Fahrplanoptimierung"},{"$f":"IF('4 Klimaschutzmaßnahmen'!K9=0,\"\",'4 Klimaschutzmaßnahmen'!K9)","v":""},{"$f":"IFERROR(INDEX(Datenvalidierung!$D$1:$D$5,MATCH('4 Klimaschutzmaßnahmen'!K9,Datenvalidierung!$C$1:$C$5,0)),0)","v":0},{"$f":"IFERROR(INDEX(Datenvalidierung!$B$1:$B$3,MATCH('4 Klimaschutzmaßnahmen'!J9,Datenvalidierung!$A$1:$A$3,0)),\"\")","v":""},{"$f":"IF('4 Klimaschutzmaßnahmen'!J9=Datenvalidierung!$A$3,0,1)","v":1},{"$f":"IF('4 Klimaschutzmaßnahmen'!L9=0,\"\",'4 Klimaschutzmaßnahmen'!L9)","v":""},{"$f":"IF(N41=Datenvalidierung!$E$2,1,0)","v":0},{"$f":"IF('4 Klimaschutzmaßnahmen'!O9=\"Ja\",1,'4 Klimaschutzmaßnahmen'!O9)","v":0},{"$f":"'4 Klimaschutzmaßnahmen'!E9","v":"advanced"},{"$f":"'4 Klimaschutzmaßnahmen'!F9*M41","v":2},{"$f":"INDEX(Datenvalidierung!$G$1:$G$3,MATCH(Q41,Datenvalidierung!$F$1:$F$3,0))","v":2},{"$f":"'4 Klimaschutzmaßnahmen'!H9","v":0},1,1]
[null,null,null,null,null,null,"4",{"$f":"'4 Klimaschutzmaßnahmen'!B10","v":"4.2.3"},{"$f":"'4 Klimaschutzmaßnahmen'!C10","v":"integrierte ÖPNV-Fahrkarte"},{"$f":"IF('4 Klimaschutzmaßnahmen'!K10=0,\"\",'4 Klimaschutzmaßnahmen'!K10)","v":""},{"$f":"IFERROR(INDEX(Datenvalidierung!$D$1:$D$5,MATCH('4 Klimaschutzmaßnahmen'!K10,Datenvalidierung!$C$1:$C$5,0)),0)","v":0},{"$f":"IFERROR(INDEX(Datenvalidierung!$B$1:$B$3,MATCH('4 Klimaschutzmaßnahmen'!J10,Datenvalidierung!$A$1:$A$3,0)),\"\")","v":""},{"$f":"IF('4 Klimaschutzmaßnahmen'!J10=Datenvalidierung!$A$3,0,1)","v":1},{"$f":"IF('4 Klimaschutzmaßnahmen'!L10=0,\"\",'4 Klimaschutzmaßnahmen'!L10)","v":""},{"$f":"IF(N42=Datenvalidierung!$E$2,1,0)","v":0},{"$f":"IF('4 Klimaschutzmaßnahmen'!O10=\"Ja\",1,'4 Klimaschutzmaßnahmen'!O10)","v":0},{"$f":"'4 Klimaschutzmaßnahmen'!E10","v":"advanced"},{"$f":"'4 Klimaschutzmaßnahmen'!F10*M42","v":2},{"$f":"INDEX(Datenvalidierung!$G$1:$G$3,MATCH(Q42,Datenvalidierung!$F$1:$F$3,0))","v":2},{"$f":"'4 Klimaschutzmaßnahmen'!H10","v":"gilt nur für kostenpflichtige VA mit >10.000 Besuchenden"},1,1]
[null,null,null,null,null,null,"4",{"$f":"'4 Klimaschutzmaßnahmen'!B11","v":"4.2.4"},{"$f":"'4 Klimaschutzmaßnahmen'!C11","v":"Erreichbarkeit von Nebenveranstaltungen"},{"$f":"IF('4 Klimaschutzmaßnahmen'!K11=0,\"\",'4 Klimaschutzmaßnahmen'!K11)","v":""},{"$f":"IFERROR(INDEX(Datenvalidierung!$D$1:$D$5,MATCH('4 Klimaschutzmaßnahmen'!K11,Datenvalidierung!$C$1:$C$5,0)),0)","v":0},{"$f":"IFERROR(INDEX(Datenvalidierung!$B$1:$B$3,MATCH('4 Klimaschutzmaßnahmen'!J11,Datenvalidierung!$A$1:$A$3,0)),\"\")","v":""},{"$f":"IF('4 Klimaschutzmaßnahmen'!J11=Datenvalidierung!$A$3,0,1)","v":1},{"$f":"IF('4 Klimaschutzmaßnahmen'!L11=0,\"\",'4 Klimaschutzmaßnahmen'!L11)","v":""},{"$f":"IF(N43=Datenvalidierung!$E$2,1,0)","v":0},{"$f":"IF('4 Klimaschutzmaßnahmen'!O11=\"Ja\",1,'4 Klimaschutzmaßnahmen'!O11)","v":0},{"$f":"'4 Klimaschutzmaßnahmen'!E11","v":"basic"},{"$f":"'4 Klimaschutzmaßnahmen'!F11*M43","v":1},{"$f":"INDEX(Datenvalidierung!$G$1:$G$3,MATCH(Q43,Datenvalidierung!$F$1:$F$3,0))","v":1},{"$f":"'4 Klimaschutzmaßnahmen'!H11","v":"gilt nur, falls Neben-veranstaltungen geplant sind"},1,1]
[null,null,null,null,null,null,"4",{"$f":"'4 Klimaschutzmaßnahmen'!B12","v":"4.2.5"},{"$f":"'4 Klimaschutzmaßnahmen'!C12","v":"Fahrradstellplätze"},{"$f":"IF('4 Klimaschutzmaßnahmen'!K12=0,\"\",'4 Klimaschutzmaßnahmen'!K12)","v":""},{"$f":"IFERROR(INDEX(Datenvalidierung!$D$1:$D$5,MATCH('4 Klimaschutzmaßnahmen'!K12,Datenvalidierung!$C$1:$C$5,0)),0)","v":0},{"$f":"IFERROR(INDEX(Datenvalidierung!$B$1:$B$3,MATCH('4 Klimaschutzmaßnahmen'!J12,Datenvalidierung!$A$1:$A$3,0)),\"\")","v":""},{"$f":"IF('4 Klimaschutzmaßnahmen'!J12=Datenvalidierung!$A$3,0,1)","v":1},{"$f":"IF('4 Klimaschutzmaßnahmen'!L12=0,\"\",'4 Klimaschutzmaßnahmen'!L12)","v":""},{"$f":"IF(N44=Datenvalidierung!$E$2,1,0)","v":0},{"$f":"IF('4 Klimaschutzmaßnahmen'!O12=\"Ja\",1,'4 Klimaschutzmaßnahmen'!O12)","v":0},{"$f":"'4 Klimaschutzmaßnahmen'!E12","v":"advanced"},{"$f":"'4 Klimaschutzmaßnahmen'!F12*M44","v":2},{"$f":"INDEX(Datenvalidierung!$G$1:$G$3,MATCH(Q44,Datenvalidierung!$F$1:$F$3,0))","v":2},{"$f":"'4 Klimaschutzmaßnahmen'!H12","v":"gilt nur Outdoor"},0,1]
[null,null,null,null,null,null,"4",{"$f":"'4 Klimaschutzmaßnahmen'!B13","v":"4.2.6"},{"$f":"'4 Klimaschutzmaßnahmen'!C13","v":"Förderung und Anreize"},{"$f":"IF('4 Klimaschutzmaßnahmen'!K13=0,\"\",'4 Klimaschutzmaßnahmen'!K13)","v":""},{"$f":"IFERROR(INDEX(Datenvalidierung!$D$1:$D$5,MATCH('4 Klimaschutzmaßnahmen'!K13,Datenvalidierung!$C$1:$C$5,0)),0)","v":0},{"$f":"IFERROR(INDEX(Datenvalidierung!$B$1:$B$3,MATCH('4 Klimaschutzmaßnahmen'!J13,Datenvalidierung!$A$1:$A$3,0)),\"\")","v":""},{"$f":"IF('4 Klimaschutzmaßnahmen'!J13=Datenvalidierung!$A$3,0,1)","v":1},{"$f":"IF('4 Klimaschutzmaßnahmen'!L13=0,\"\",'4 Klimaschutzmaßnahmen'!L13)","v":""},{"$f":"IF(N45=Datenvalidierung!$E$2,1,0)","v":0},{"$f":"IF('4 Klimaschutzmaßnahmen'!O13=\"Ja\",1,'4 Klimaschutzmaßnahmen'!O13)","v":0},{"$f":"'4 Klimaschutzmaßnahmen'!E13","v":"professional"},{"$f":"'4 Klimaschutzmaßnahmen'!F13*M45","v":3},{"$f":"INDEX(Datenvalidierung!$G$1:$G$3,MATCH(Q45,Datenvalidierung!$F$1:$F$3,0))","v":3},{"$f":"'4 Klimaschutzmaßnahmen'!H13","v":0},1,1]
[null,null,null,null,null,null,"4",{"$f":"'4 Klimaschutzmaßnahmen'!B14","v":"4.2.7"},{"$f":"'4 Klimaschutzmaßnahmen'!C14","v":"Reisepolicy"},{"$f":"IF('4 Klimaschutzmaßnahmen'!K14=0,\"\",'4 Klimaschutzmaßnahmen'!K14)","v":""},{"$f":"IFERROR(INDEX(Datenvalidierung!$D$1:$D$5,MATCH('4 Klimaschutzmaßnahmen'!K14,Datenvalidierung!$C$1:$C$5,0)),0)","v":0},{"$f":"IFERROR(INDEX(Datenvalidierung!$B$1:$B$3,MATCH('4 Klimaschutzmaßnahmen'!J14,Datenvalidierung!$A$1:$A$3,0)),\"\")","v":""},{"$f":"IF('4 Klimaschutzmaßnahmen'!J14=Datenvalidierung!$A$3,0,1)","v":1},{"$f":"IF('4 Klimaschutzmaßnahmen'!L14=0,\"\",'4 Klimaschutzmaßnahmen'!L14)","v":""},{"$f":"IF(N46=Datenvalidierung!$E$2,1,0)","v":0},{"$f":"IF('4 Klimaschutzmaßnahmen'!O14=\"Ja\",1,'4 Klimaschutzmaßnahmen'!O14)","v":0},{"$f":"'4 Klimaschutzmaßnahmen'!E14","v":"basic"},{"$f":"'4 Klimaschutzmaßnahmen'!F14*M46","v":1},{"$f":"INDEX(Datenvalidierung!$G$1:$G$3,MATCH(Q46,Datenvalidierung!$F$1:$F$3,0))","v":1},{"$f":"'4 Klimaschutzmaßnahmen'!H14","v":0},1,1]
[null,null,null,null,null,null,"4",{"$f":"'4 Klimaschutzmaßnahmen'!B15","v":"4.2.8"},{"$f":"'4 Klimaschutzmaßnahmen'!C15","v":"Logisitk"},{"$f":"IF('4 Klimaschutzmaßnahmen'!K15=0,\"\",'4 Klimaschutzmaßnahmen'!K15)","v":""},{"$f":"IFERROR(INDEX(Datenvalidierung!$D$1:$D$5,MATCH('4 Klimaschutzmaßnahmen'!K15,Datenvalidierung!$C$1:$C$5,0)),0)","v":0},{"$f":"IFERROR(INDEX(Datenvalidierung!$B$1:$B$3,MATCH('4 Klimaschutzmaßnahmen'!J15,Datenvalidierung!$A$1:$A$3,0)),\"\")","v":""},{"$f":"IF('4 Klimaschutzmaßnahmen'!J15=Datenvalidierung!$A$3,0,1)","v":1},{"$f":"IF('4 Klimaschutzmaßnahmen'!L15=0,\"\",'4 Klimaschutzmaßnahmen'!L15)","v":""},{"$f":"IF(N47=Datenvalidierung!$E$2,1,0)","v":0},{"$f":"IF('4 Klimaschutzmaßnahmen'!O15=\"Ja\",1,'4 Klimaschutzmaßnahmen'!O15)","v":0},{"$f":"'4 Klimaschutzmaßnahmen'!E15","v":"advanced"},{"$f":"'4 Klimaschutzmaßnahmen'!F15*M47","v":2},{"$f":"INDEX(Datenvalidierung!$G$1:$G$3,MATCH(Q47,Datenvalidierung!$F$1:$F$3,0))","v":2},{"$f":"'4 Klimaschutzmaßnahmen'!H15","v":0},1,1]
[null,null,null,null,null,null,"4",{"$f":"'4 Klimaschutzmaßnahmen'!B17","v":"4.3.1"},{"$f":"'4 Klimaschutzmaßnahmen'!C17","v":"Energiebedarfsplanung"},{"$f":"IF('4 Klimaschutzmaßnahmen'!K17=0,\"\",'4 Klimaschutzmaßnahmen'!K17)","v":""},{"$f":"IFERROR(INDEX(Datenvalidierung!$D$1:$D$5,MATCH('4 Klimaschutzmaßnahmen'!K17,Datenvalidierung!$C$1:$C$5,0)),0)","v":0},{"$f":"IFERROR(INDEX(Datenvalidierung!$B$1:$B$3,MATCH('4 Klimaschutzmaßnahmen'!J17,Datenvalidierung!$A$1:$A$3,0)),\"\")","v":""},{"$f":"IF('4 Klimaschutzmaßnahmen'!J17=Datenvalidierung!$A$3,0,1)","v":1},{"$f":"IF('4 Klimaschutzmaßnahmen'!L17=0,\"\",'4 Klimaschutzmaßnahmen'!L17)","v":""},{"$f":"IF(N48=Datenvalidierung!$E$2,1,0)","v":0},{"$f":"IF('4 Klimaschutzmaßnahmen'!O17=\"Ja\",1,'4 Klimaschutzmaßnahmen'!O17)","v":0},{"$f":"'4 Klimaschutzmaßnahmen'!E17","v":"basic"},{"$f":"'4 Klimaschutzmaßnahmen'!F17*M48","v":1},{"$f":"INDEX(Datenvalidierung!$G$1:$G$3,MATCH(Q48,Datenvalidierung!$F$1:$F$3,0))","v":1},{"$f":"'4 Klimaschutzmaßnahmen'!H17","v":"gilt nur Outdoor"},0,1]
[null,null,null,null,null,null,"4",{"$f":"'4 Klimaschutzmaßnahmen'!B18","v":"4.3.2"},{"$f":"'4 Klimaschutzmaßnahmen'!C18","v":"Zertifizierter Ökostrom"},{"$f":"IF('4 Klimaschutzmaßnahmen'!K18=0,\"\",'4 Klimaschutzmaßnahmen'!K18)","v":""},{"$f":"IFERROR(INDEX(Datenvalidierung!$D$1:$D$5,MATCH('4 Klimaschutzmaßnahmen'!K18,Datenvalidierung!$C$1:$C$5,0)),0)","v":0},{"$f":"IFERROR(INDEX(Datenvalidierung!$B$1:$B$3,MATCH('4 Klimaschutzmaßnahmen'!J18,Datenvalidierung!$A$1:$A$3,0)),\"\")","v":""},{"$f":"IF('4 Klimaschutzmaßnahmen'!J18=Datenvalidierung!$A$3,0,1)","v":1},{"$f":"IF('4 Klimaschutzmaßnahmen'!L18=0,\"\",'4 Klimaschutzmaßnahmen'!L18)","v":""},{"$f":"IF(N49=Datenvalidierung!$E$2,1,0)","v":0},{"$f":"IF('4 Klimaschutzmaßnahmen'!O18=\"Ja\",1,'4 Klimaschutzmaßnahmen'!O18)","v":0},{"$f":"'4 Klimaschutzmaßnahmen'!E18","v":"advanced"},{"$f":"'4 Klimaschutzmaßnahmen'!F18*M49","v":2},{"$f":"INDEX(Datenvalidierung!$G$1:$G$3,MATCH(Q49,Datenvalidierung!$F$1:$F$3,0))","v":2},{"$f":"'4 Klimaschutzmaßnahmen'!H18","v":0},1,1]
[null,null,null,null,null,null,"4",{"$f":"'4 Klimaschutzmaßnahmen'!B19","v":"4.3.3"},{"$f":"'4 Klimaschutzmaßnahmen'!C19","v":"eigene Energieerzeugung"},{"$f":"IF('4 Klimaschutzmaßnahmen'!K19=0,\"\",'4 Klimaschutzmaßnahmen'!K19)","v":""},{"$f":"IFERROR(INDEX(Datenvalidierung!$D$1:$D$5,MATCH('4 Klimaschutzmaßnahmen'!K19,Datenvalidierung!$C$1:$C$5,0)),0)","v":0},{"$f":"IFERROR(INDEX(Datenvalidierung!$B$1:$B$3,MATCH('4 Klimaschutzmaßnahmen'!J19,Datenvalidierung!$A$1:$A$3,0)),\"\")","v":""},{"$f":"IF('4 Klimaschutzmaßnahmen'!J19=Datenvalidierung!$A$3,0,1)","v":1},{"$f":"IF('4 Klimaschutzmaßnahmen'!L19=0,\"\",'4 Klimaschutzmaßnahmen'!L19)","v":""},{"$f":"IF(N50=Datenvalidierung!$E$2,1,0)","v":0},{"$f":"IF('4 Klimaschutzmaßnahmen'!O19=\"Ja\",1,'4 Klimaschutzmaßnahmen'!O19)","v":0},{"$f":"'4 Klimaschutzmaßnahmen'!E19","v":"advanced"},{"$f":"'4 Klimaschutzmaßnahmen'!F19*M50","v":2},{"$f":"INDEX(Datenvalidierung!$G$1:$G$3,MATCH(Q50,Datenvalidierung!$F$1:$F$3,0))","v":2},{"$f":"'4 Klimaschutzmaßnahmen'!H19","v":"gilt nur Outdoor"},0,1]
[null,null,null,null,null,null,"4",{"$f":"'4 Klimaschutzmaßnahmen'!B20","v":"4.3.4"},{"$f":"'4 Klimaschutzmaßnahmen'!C20","v":"keine Generatoren"},{"$f":"IF('4 Klimaschutzmaßnahmen'!K20=0,\"\",'4 Klimaschutzmaßnahmen'!K20)","v":""},{"$f":"IFERROR(INDEX(Datenvalidierung!$D$1:$D$5,MATCH('4 Klimaschutzmaßnahmen'!K20,Datenvalidierung!$C$1:$C$5,0)),0)","v":0},{"$f":"IFERROR(INDEX(Datenvalidierung!$B$1:$B$3,MATCH('4 Klimaschutzmaßnahmen'!J20,Datenvalidierung!$A$1:$A$3,0)),\"\")","v":""},{"$f":"IF('4 Klimaschutzmaßnahmen'!J20=Datenvalidierung!$A$3,0,1)","v":1},{"$f":"IF('4 Klimaschutzmaßnahmen'!L20=0,\"\",'4 Klimaschutzmaßnahmen'!L20)","v":""},{"$f":"IF(N51=Datenvalidierung!$E$2,1,0)","v":0},{"$f":"IF('4 Klimaschutzmaßnahmen'!O20=\"Ja\",1,'4 Klimaschutzmaßnahmen'!O20)","v":0},{"$f":"'4 Klimaschutzmaßnahmen'!E20","v":"basic"},{"$f":"'4 Klimaschutzmaßnahmen'!F20*M51","v":1},{"$f":"INDEX(Datenvalidierung!$G$1:$G$3,MATCH(Q51,Datenvalidierung!$F$1:$F$3,0))","v":1},{"$f":"'4 Klimaschutzmaßnahmen'!H20","v":"gilt nur Outdoor"},0,1]
[null,null,null,null,null,null,"4",{"$f":"'4 Klimaschutzmaßnahmen'!B21","v":"4.3.5"},{"$f":"'4 Klimaschutzmaßnahmen'!C21","v":"keine Heizpilze"},{"$f":"IF('4 Klimaschutzmaßnahmen'!K21=0,\"\",'4 Klimaschutzmaßnahmen'!K21)","v":""},{"$f":"IFERROR(INDEX(Datenvalidierung!$D$1:$D$5,MATCH('4 Klimaschutzmaßnahmen'!K21,Datenvalidierung!$C$1:$C$5,0)),0)","v":0},{"$f":"IFERROR(INDEX(Datenvalidierung!$B$1:$B$3,MATCH('4 Klimaschutzmaßnahmen'!J21,Datenvalidierung!$A$1:$A$3,0)),\"\")","v":""},{"$f":"IF('4 Klimaschutzmaßnahmen'!J21=Datenvalidierung!$A$3,0,1)","v":1},{"$f":"IF('4 Klimaschutzmaßnahmen'!L21=0,\"\",'4 Klimaschutzmaßnahmen'!L21)","v":""},{"$f":"IF(N52=Datenvalidierung!$E$2,1,0)","v":0},{"$f":"IF('4 Klimaschutzmaßnahmen'!O21=\"Ja\",1,'4 Klimaschutzmaßnahmen'!O21)","v":0},{"$f":"'4 Klimaschutzmaßnahmen'!E21","v":"basic"},{"$f":"'4 Klimaschutzmaßnahmen'!F21*M52","v":1},{"$f":"INDEX(Datenvalidierung!$G$1:$G$3,MATCH(Q52,Datenvalidierung!$F$1:$F$3,0))","v":1},{"$f":"'4 Klimaschutzmaßnahmen'!H21","v":0},1,1]
[null,null,null,null,null,null,"4",{"$f":"'4 Klimaschutzmaßnahmen'!B22","v":"4.3.6"},{"$f":"'4 Klimaschutzmaßnahmen'!C22","v":"effiziente Veranstaltungstechnik"},{"$f":"IF('4 Klimaschutzmaßnahmen'!K22=0,\"\",'4 Klimaschutzmaßnahmen'!K22)","v":""},{"$f":"IFERROR(INDEX(Datenvalidierung!$D$1:$D$5,MATCH('4 Klimaschutzmaßnahmen'!K22,Datenvalidierung!$C$1:$C$5,0)),0)","v":0},{"$f":"IFERROR(INDEX(Datenvalidierung!$B$1:$B$3,MATCH('4 Klimaschutzmaßnahmen'!J22,Datenvalidierung!$A$1:$A$3,0)),\"\")","v":""},{"$f":"IF('4 Klimaschutzmaßnahmen'!J22=Datenvalidierung!$A$3,0,1)","v":1},{"$f":"IF('4 Klimaschutzmaßnahmen'!L22=0,\"\",'4 Klimaschutzmaßnahmen'!L22)","v":""},{"$f":"IF(N53=Datenvalidierung!$E$2,1,0)","v":0},{"$f":"IF('4 Klimaschutzmaßnahmen'!O22=\"Ja\",1,'4 Klimaschutzmaßnahmen'!O22)","v":0},{"$f":"'4 Klimaschutzmaßnahmen'!E22","v":"basic"},{"$f":"'4 Klimaschutzmaßnahmen'!F22*M53","v":1},{"$f":"INDEX(Datenvalidierung!$G$1:$G$3,MATCH(Q53,Datenvalidierung!$F$1:$F$3,0))","v":1},{"$f":"'4 Klimaschutzmaßnahmen'!H22","v":"Advanced für Veranstaltung >10.000"},1,1]
[null,null,null,null,null,null,"4",{"$f":"'4 Klimaschutzmaßnahmen'!B23","v":"4.3.7"},{"$f":"'4 Klimaschutzmaßnahmen'!C23","v":"effiziente Gastrotechnik"},{"$f":"IF('4 Klimaschutzmaßnahmen'!K23=0,\"\",'4 Klimaschutzmaßnahmen'!K23)","v":""},{"$f":"IFERROR(INDEX(Datenvalidierung!$D$1:$D$5,MATCH('4 Klimaschutzmaßnahmen'!K23,Datenvalidierung!$C$1:$C$5,0)),0)","v":0},{"$f":"IFERROR(INDEX(Datenvalidierung!$B$1:$B$3,MATCH('4 Klimaschutzmaßnahmen'!J23,Datenvalidierung!$A$1:$A$3,0)),\"\")","v":""},{"$f":"IF('4 Klimaschutzmaßnahmen'!J23=Datenvalidierung!$A$3,0,1)","v":1},{"$f":"IF('4 Klimaschutzmaßnahmen'!L23=0,\"\",'4 Klimaschutzmaßnahmen'!L23)","v":""},{"$f":"IF(N54=Datenvalidierung!$E$2,1,0)","v":0},{"$f":"IF('4 Klimaschutzmaßnahmen'!O23=\"Ja\",1,'4 Klimaschutzmaßnahmen'!O23)","v":0},{"$f":"'4 Klimaschutzmaßnahmen'!E23","v":"basic"},{"$f":"'4 Klimaschutzmaßnahmen'!F23*M54","v":1},{"$f":"INDEX(Datenvalidierung!$G$1:$G$3,MATCH(Q54,Datenvalidierung!$F$1:$F$3,0))","v":1},{"$f":"'4 Klimaschutzmaßnahmen'!H23","v":0},1,1]
[null,null,null,null,null,null,"5",{"$f":"'5 Beschaffung'!B4","v":"5.1.1"},{"$f":"'5 Beschaffung'!C4","v":"nachhaltige Dekoration und Ausstattung"},{"$f":"IF('5 Beschaffung'!K4=0,\"\",'5 Beschaffung'!K4)","v":""},{"$f":"IFERROR(INDEX(Datenvalidierung!$D$1:$D$5,MATCH('5 Beschaffung'!K4,Datenvalidierung!$C$1:$C$5,0)),0)","v":0},{"$f":"IFERROR(INDEX(Datenvalidierung!$B$1:$B$3,MATCH('5 Beschaffung'!J4,Datenvalidierung!$A$1:$A$3,0)),\"\")","v":""},{"$f":"IF('5 Beschaffung'!J4=Datenvalidierung!$A$3,0,1)","v":1},{"$f":"IF('5 Beschaffung'!L4=0,\"\",'5 Beschaffung'!L4)","v":""},{"$f":"IF(N55=Datenvalidierung!$E$2,1,0)","v":0},{"$f":"IF('5 Beschaffung'!O4=\"Ja\",1,'5 Beschaffung'!O4)","v":0},{"$f":"'5 Beschaffung'!E4","v":"basic"},{"$f":"'5 Beschaffung'!F4*M55","v":1},{"$f":"INDEX(Datenvalidierung!$G$1:$G$3,MATCH(Q55,Datenvalidierung!$F$1:$F$3,0))","v":1},{"$f":"'5 Beschaffung'!H4","v":0},1,1]
[null,null,null,null,null,null,"5",{"$f":"'5 Beschaffung'!B5","v":"5.1.2"},{"$f":"'5 Beschaffung'!C5","v":"Verzicht auf neue Dekoration und Ausstattung"},{"$f":"IF('5 Beschaffung'!K5=0,\"\",'5 Beschaffung'!K5)","v":""},{"$f":"IFERROR(INDEX(Datenvalidierung!$D$1:$D$5,MATCH('5 Beschaffung'!K5,Datenvalidierung!$C$1:$C$5,0)),0)","v":0},{"$f":"IFERROR(INDEX(Datenvalidierung!$B$1:$B$3,MATCH('5 Beschaffung'!J5,Datenvalidierung!$A$1:$A$3,0)),\"\")","v":""},{"$f":"IF('5 Beschaffung'!J5=Datenvalidierung!$A$3,0,1)","v":1},{"$f":"IF('5 Beschaffung'!L5=0,\"\",'5 Beschaffung'!L5)","v":""},{"$f":"IF(N56=Datenvalidierung!$E$2,1,0)","v":0},{"$f":"IF('5 Beschaffung'!O5=\"Ja\",1,'5 Beschaffung'!O5)","v":0},{"$f":"'5 Beschaffung'!E5","v":"advanced"},{"$f":"'5 Beschaffung'!F5*M56","v":2},{"$f":"INDEX(Datenvalidierung!$G$1:$G$3,MATCH(Q56,Datenvalidierung!$F$1:$F$3,0))","v":2},{"$f":"'5 Beschaffung'!H5","v":0},1,1]
[null,null,null,null,null,null,"5",{"$f":"'5 Beschaffung'!B6","v":"5.1.3"},{"$f":"'5 Beschaffung'!C6","v":"ökologische Druckerzeugnisse"},{"$f":"IF('5 Beschaffung'!K6=0,\"\",'5 Beschaffung'!K6)","v":""},{"$f":"IFERROR(INDEX(Datenvalidierung!$D$1:$D$5,MATCH('5 Beschaffung'!K6,Datenvalidierung!$C$1:$C$5,0)),0)","v":0},{"$f":"IFERROR(INDEX(Datenvalidierung!$B$1:$B$3,MATCH('5 Beschaffung'!J6,Datenvalidierung!$A$1:$A$3,0)),\"\")","v":""},{"$f":"IF('5 Beschaffung'!J6=Datenvalidierung!$A$3,0,1)","v":1},{"$f":"IF('5 Beschaffung'!L6=0,\"\",'5 Beschaffung'!L6)","v":""},{"$f":"IF(N57=Datenvalidierung!$E$2,1,0)","v":0},{"$f":"IF('5 Beschaffung'!O6=\"Ja\",1,'5 Beschaffung'!O6)","v":0},{"$f":"'5 Beschaffung'!E6","v":"basic"},{"$f":"'5 Beschaffung'!F6*M57","v":1},{"$f":"INDEX(Datenvalidierung!$G$1:$G$3,MATCH(Q57,Datenvalidierung!$F$1:$F$3,0))","v":1},{"$f":"'5 Beschaffung'!H6","v":0},1,1]
[null,null,null,null,null,null,"5",{"$f":"'5 Beschaffung'!B7","v":"5.1.4"},{"$f":"'5 Beschaffung'!C7","v":"Verzicht auf Druckerzeugnisse"},{"$f":"IF('5 Beschaffung'!K7=0,\"\",'5 Beschaffung'!K7)","v":""},{"$f":"IFERROR(INDEX(Datenvalidierung!$D$1:$D$5,MATCH('5 Beschaffung'!K7,Datenvalidierung!$C$1:$C$5,0)),0)","v":0},{"$f":"IFERROR(INDEX(Datenvalidierung!$B$1:$B$3,MATCH('5 Beschaffung'!J7,Datenvalidierung!$A$1:$A$3,0)),\"\")","v":""},{"$f":"IF('5 Beschaffung'!J7=Datenvalidierung!$A$3,0,1)","v":1},{"$f":"IF('5 Beschaffung'!L7=0,\"\",'5 Beschaffung'!L7)","v":""},{"$f":"IF(N58=Datenvalidierung!$E$2,1,0)","v":0},{"$f":"IF('5 Beschaffung'!O7=\"Ja\",1,'5 Beschaffung'!O7)","v":0},{"$f":"'5 Beschaffung'!E7","v":"advanced"},{"$f":"'5 Beschaffung'!F7*M58","v":2},{"$f":"INDEX(Datenvalidierung!$G$1:$G$3,MATCH(Q58,Datenvalidierung!$F$1:$F$3,0))","v":2},{"$f":"'5 Beschaffung'!H7","v":0},1,1]
[null,null,null,null,null,null,"5",{"$f":"'5 Beschaffung'!B8","v":"5.1.5"},{"$f":"'5 Beschaffung'!C8","v":"ökologische & faire Give Aways"},{"$f":"IF('5 Beschaffung'!K8=0,\"\",'5 Beschaffung'!K8)","v":""},{"$f":"IFERROR(INDEX(Datenvalidierung!$D$1:$D$5,MATCH('5 Beschaffung'!K8,Datenvalidierung!$C$1:$C$5,0)),0)","v":0},{"$f":"IFERROR(INDEX(Datenvalidierung!$B$1:$B$3,MATCH('5 Beschaffung'!J8,Datenvalidierung!$A$1:$A$3,0)),\"\")","v":""},{"$f":"IF('5 Beschaffung'!J8=Datenvalidierung!$A$3,0,1)","v":1},{"$f":"IF('5 Beschaffung'!L8=0,\"\",'5 Beschaffung'!L8)","v":""},{"$f":"IF(N59=Datenvalidierung!$E$2,1,0)","v":0},{"$f":"IF('5 Beschaffung'!O8=\"Ja\",1,'5 Beschaffung'!O8)","v":0},{"$f":"'5 Beschaffung'!E8","v":"basic"},{"$f":"'5 Beschaffung'!F8*M59","v":1},{"$f":"INDEX(Datenvalidierung!$G$1:$G$3,MATCH(Q59,Datenvalidierung!$F$1:$F$3,0))","v":1},{"$f":"'5 Beschaffung'!H8","v":"Advanced für Veranstaltungen >10.000"},1,1]
[null,null,null,null,null,null,"5",{"$f":"'5 Beschaffung'!B9","v":"5.1.6"},{"$f":"'5 Beschaffung'!C9","v":"Verzicht auf Give Aways"},{"$f":"IF('5 Beschaffung'!K9=0,\"\",'5 Beschaffung'!K9)","v":""},{"$f":"IFERROR(INDEX(Datenvalidierung!$D$1:$D$5,MATCH('5 Beschaffung'!K9,Datenvalidierung!$C$1:$C$5,0)),0)","v":0},{"$f":"IFERROR(INDEX(Datenvalidierung!$B$1:$B$3,MATCH('5 Beschaffung'!J9,Datenvalidierung!$A$1:$A$3,0)),\"\")","v":""},{"$f":"IF('5 Beschaffung'!J9=Datenvalidierung!$A$3,0,1)","v":1},{"$f":"IF('5 Beschaffung'!L9=0,\"\",'5 Beschaffung'!L9)","v":""},{"$f":"IF(N60=Datenvalidierung!$E$2,1,0)","v":0},{"$f":"IF('5 Beschaffung'!O9=\"Ja\",1,'5 Beschaffung'!O9)","v":0},{"$f":"'5 Beschaffung'!E9","v":"advanced"},{"$f":"'5 Beschaffung'!F9*M60","v":2},{"$f":"INDEX(Datenvalidierung!$G$1:$G$3,MATCH(Q60,Datenvalidierung!$F$1:$F$3,0))","v":2},{"$f":"'5 Beschaffung'!H9","v":0},1,1]
[null,null,null,null,null,null,"5",{"$f":"'5 Beschaffung'!B10","v":"5.1.7"},{"$f":"'5 Beschaffung'!C10","v":"ressourcenschonender\nBlumenschmuck"},{"$f":"IF('5 Beschaffung'!K10=0,\"\",'5 Beschaffung'!K10)","v":""},{"$f":"IFERROR(INDEX(Datenvalidierung!$D$1:$D$5,MATCH('5 Beschaffung'!K10,Datenvalidierung!$C$1:$C$5,0)),0)","v":0},{"$f":"IFERROR(INDEX(Datenvalidierung!$B$1:$B$3,MATCH('5 Beschaffung'!J10,Datenvalidierung!$A$1:$A$3,0)),\"\")","v":""},{"$f":"IF('5 Beschaffung'!J10=Datenvalidierung!$A$3,0,1)","v":1},{"$f":"IF('5 Beschaffung'!L10=0,\"\",'5 Beschaffung'!L10)","v":""},{"$f":"IF(N61=Datenvalidierung!$E$2,1,0)","v":0},{"$f":"IF('5 Beschaffung'!O10=\"Ja\",1,'5 Beschaffung'!O10)","v":0},{"$f":"'5 Beschaffung'!E10","v":"basic"},{"$f":"'5 Beschaffung'!F10*M61","v":1},{"$f":"INDEX(Datenvalidierung!$G$1:$G$3,MATCH(Q61,Datenvalidierung!$F$1:$F$3,0))","v":1},{"$f":"'5 Beschaffung'!H10","v":0},1,1]
[null,null,null,null,null,null,"5",{"$f":"'5 Beschaffung'!B11","v":"5.1.8"},{"$f":"'5 Beschaffung'!C11","v":"Verzicht auf Blumenschmuck"},{"$f":"IF('5 Beschaffung'!K11=0,\"\",'5 Beschaffung'!K11)","v":""},{"$f":"IFERROR(INDEX(Datenvalidierung!$D$1:$D$5,MATCH('5 Beschaffung'!K11,Datenvalidierung!$C$1:$C$5,0)),0)","v":0},{"$f":"IFERROR(INDEX(Datenvalidierung!$B$1:$B$3,MATCH('5 Beschaffung'!J11,Datenvalidierung!$A$1:$A$3,0)),\"\")","v":""},{"$f":"IF('5 Beschaffung'!J11=Datenvalidierung!$A$3,0,1)","v":1},{"$f":"IF('5 Beschaffung'!L11=0,\"\",'5 Beschaffung'!L11)","v":""},{"$f":"IF(N62=Datenvalidierung!$E$2,1,0)","v":0},{"$f":"IF('5 Beschaffung'!O11=\"Ja\",1,'5 Beschaffung'!O11)","v":0},{"$f":"'5 Beschaffung'!E11","v":"advanced"},{"$f":"'5 Beschaffung'!F11*M62","v":2},{"$f":"INDEX(Datenvalidierung!$G$1:$G$3,MATCH(Q62,Datenvalidierung!$F$1:$F$3,0))","v":2},{"$f":"'5 Beschaffung'!H11","v":0},1,1]
[null,null,null,null,null,null,"5",{"$f":"'5 Beschaffung'!B12","v":"5.1.9"},{"$f":"'5 Beschaffung'!C12","v":"Banner und Planen"},{"$f":"IF('5 Beschaffung'!K12=0,\"\",'5 Beschaffung'!K12)","v":""},{"$f":"IFERROR(INDEX(Datenvalidierung!$D$1:$D$5,MATCH('5 Beschaffung'!K12,Datenvalidierung!$C$1:$C$5,0)),0)","v":0},{"$f":"IFERROR(INDEX(Datenvalidierung!$B$1:$B$3,MATCH('5 Beschaffung'!J12,Datenvalidierung!$A$1:$A$3,0)),\"\")","v":""},{"$f":"IF('5 Beschaffung'!J12=Datenvalidierung!$A$3,0,1)","v":1},{"$f":"IF('5 Beschaffung'!L12=0,\"\",'5 Beschaffung'!L12)","v":""},{"$f":"IF(N63=Datenvalidierung!$E$2,1,0)","v":0},{"$f":"IF('5 Beschaffung'!O12=\"Ja\",1,'5 Beschaffung'!O12)","v":0},{"$f":"'5 Beschaffung'!E12","v":"advanced"},{"$f":"'5 Beschaffung'!F12*M63","v":2},{"$f":"INDEX(Datenvalidierung!$G$1:$G$3,MATCH(Q63,Datenvalidierung!$F$1:$F$3,0))","v":2},{"$f":"'5 Beschaffung'!H12","v":0},1,1]
[null,null,null,null,null,null,"5",{"$f":"'5 Beschaffung'!B13","v":"5.1.10"},{"$f":"'5 Beschaffung'!C13","v":"ökologische & faire Kleidung"},{"$f":"IF('5 Beschaffung'!K13=0,\"\",'5 Beschaffung'!K13)","v":""},{"$f":"IFERROR(INDEX(Datenvalidierung!$D$1:$D$5,MATCH('5 Beschaffung'!K13,Datenvalidierung!$C$1:$C$5,0)),0)","v":0},{"$f":"IFERROR(INDEX(Datenvalidierung!$B$1:$B$3,MATCH('5 Beschaffung'!J13,Datenvalidierung!$A$1:$A$3,0)),\"\")","v":""},{"$f":"IF('5 Beschaffung'!J13=Datenvalidierung!$A$3,0,1)","v":1},{"$f":"IF('5 Beschaffung'!L13=0,\"\",'5 Beschaffung'!L13)","v":""},{"$f":"IF(N64=Datenvalidierung!$E$2,1,0)","v":0},{"$f":"IF('5 Beschaffung'!O13=\"Ja\",1,'5 Beschaffung'!O13)","v":0},{"$f":"'5 Beschaffung'!E13","v":"basic"},{"$f":"'5 Beschaffung'!F13*M64","v":1},{"$f":"INDEX(Datenvalidierung!$G$1:$G$3,MATCH(Q64,Datenvalidierung!$F$1:$F$3,0))","v":1},{"$f":"'5 Beschaffung'!H13","v":0},1,1]
[null,null,null,null,null,null,"5",{"$f":"'5 Beschaffung'!B14","v":"5.1.1"},{"$f":"'5 Beschaffung'!C14","v":"Verzicht auf neue Kleidung"},{"$f":"IF('5 Beschaffung'!K14=0,\"\",'5 Beschaffung'!K14)","v":""},{"$f":"IFERROR(INDEX(Datenvalidierung!$D$1:$D$5,MATCH('5 Beschaffung'!K14,Datenvalidierung!$C$1:$C$5,0)),0)","v":0},{"$f":"IFERROR(INDEX(Datenvalidierung!$B$1:$B$3,MATCH('5 Beschaffung'!J14,Datenvalidierung!$A$1:$A$3,0)),\"\")","v":""},{"$f":"IF('5 Beschaffung'!J14=Datenvalidierung!$A$3,0,1)","v":1},{"$f":"IF('5 Beschaffung'!L14=0,\"\",'5 Beschaffung'!L14)","v":""},{"$f":"IF(N65=Datenvalidierung!$E$2,1,0)","v":0},{"$f":"IF('5 Beschaffung'!O14=\"Ja\",1,'5 Beschaffung'!O14)","v":0},{"$f":"'5 Beschaffung'!E14","v":"advanced"},{"$f":"'5 Beschaffung'!F14*M65","v":2},{"$f":"INDEX(Datenvalidierung!$G$1:$G$3,MATCH(Q65,Datenvalidierung!$F$1:$F$3,0))","v":2},{"$f":"'5 Beschaffung'!H14","v":0},1,1]
[null,null,null,null,null,null,"5",{"$f":"'5 Beschaffung'!B15","v":"5.1.2"},{"$f":"'5 Beschaffung'!C15","v":"Papierlose Öffentlichkeitsarbeit"},{"$f":"IF('5 Beschaffung'!K15=0,\"\",'5 Beschaffung'!K15)","v":""},{"$f":"IFERROR(INDEX(Datenvalidierung!$D$1:$D$5,MATCH('5 Beschaffung'!K15,Datenvalidierung!$C$1:$C$5,0)),0)","v":0},{"$f":"IFERROR(INDEX(Datenvalidierung!$B$1:$B$3,MATCH('5 Beschaffung'!J15,Datenvalidierung!$A$1:$A$3,0)),\"\")","v":""},{"$f":"IF('5 Beschaffung'!J15=Datenvalidierung!$A$3,0,1)","v":1},{"$f":"IF('5 Beschaffung'!L15=0,\"\",'5 Beschaffung'!L15)","v":""},{"$f":"IF(N66=Datenvalidierung!$E$2,1,0)","v":0},{"$f":"IF('5 Beschaffung'!O15=\"Ja\",1,'5 Beschaffung'!O15)","v":0},{"$f":"'5 Beschaffung'!E15","v":"basic"},{"$f":"'5 Beschaffung'!F15*M66","v":1},{"$f":"INDEX(Datenvalidierung!$G$1:$G$3,MATCH(Q66,Datenvalidierung!$F$1:$F$3,0))","v":1},{"$f":"'5 Beschaffung'!H15","v":0},1,1]
[null,null,null,null,null,null,{"$f":"LEFT(H:H,1)","v":"5"},{"$f":"'5 Beschaffung'!B17","v":"5.2.1"},{"$f":"'5 Beschaffung'!C17","v":"Abfallkonzept"},{"$f":"IF('5 Beschaffung'!K17=0,\"\",'5 Beschaffung'!K17)","v":""},{"$f":"IFERROR(INDEX(Datenvalidierung!$D$1:$D$5,MATCH('5 Beschaffung'!K17,Datenvalidierung!$C$1:$C$5,0)),0)","v":0},{"$f":"IFERROR(INDEX(Datenvalidierung!$B$1:$B$3,MATCH('5 Beschaffung'!J17,Datenvalidierung!$A$1:$A$3,0)),\"\")","v":""},{"$f":"IF('5 Beschaffung'!J17=Datenvalidierung!$A$3,0,1)","v":1},{"$f":"IF('5 Beschaffung'!L17=0,\"\",'5 Beschaffung'!L17)","v":""},{"$f":"IF(N67=Datenvalidierung!$E$2,1,0)","v":0},{"$f":"IF('5 Beschaffung'!O17=\"Ja\",1,'5 Beschaffung'!O17)","v":0},{"$f":"'5 Beschaffung'!E17","v":"basic"},{"$f":"'5 Beschaffung'!F17*M67","v":1},{"$f":"INDEX(Datenvalidierung!$G$1:$G$3,MATCH(Q67,Datenvalidierung!$F$1:$F$3,0))","v":1},{"$f":"'5 Beschaffung'!H17","v":"gilt nur Outdoor und nur für VA > 1000 Personen"},0,1]
[null,null,null,null,null,null,"5",{"$f":"'5 Beschaffung'!B18","v":"5.2.2"},{"$f":"'5 Beschaffung'!C18","v":"Briefing zu Abfallvermeidung/-trennung"},{"$f":"IF('5 Beschaffung'!K18=0,\"\",'5 Beschaffung'!K18)","v":""},{"$f":"IFERROR(INDEX(Datenvalidierung!$D$1:$D$5,MATCH('5 Beschaffung'!K18,Datenvalidierung!$C$1:$C$5,0)),0)","v":0},{"$f":"IFERROR(INDEX(Datenvalidierung!$B$1:$B$3,MATCH('5 Beschaffung'!J18,Datenvalidierung!$A$1:$A$3,0)),\"\")","v":""},{"$f":"IF('5 Beschaffung'!J18=Datenvalidierung!$A$3,0,1)","v":1},{"$f":"IF('5 Beschaffung'!L18=0,\"\",'5 Beschaffung'!L18)","v":""},{"$f":"IF(N68=Datenvalidierung!$E$2,1,0)","v":0},{"$f":"IF('5 Beschaffung'!O18=\"Ja\",1,'5 Beschaffung'!O18)","v":0},{"$f":"'5 Beschaffung'!E18","v":"basic"},{"$f":"'5 Beschaffung'!F18*M68","v":1},{"$f":"INDEX(Datenvalidierung!$G$1:$G$3,MATCH(Q68,Datenvalidierung!$F$1:$F$3,0))","v":1},{"$f":"'5 Beschaffung'!H18","v":0},1,1]
[null,null,null,null,null,null,"5",{"$f":"'5 Beschaffung'!B19","v":"5.2.3"},{"$f":"'5 Beschaffung'!C19","v":"Abfalltrennung im Besucher:innenbereich"},{"$f":"IF('5 Beschaffung'!K19=0,\"\",'5 Beschaffung'!K19)","v":""},{"$f":"IFERROR(INDEX(Datenvalidierung!$D$1:$D$5,MATCH('5 Beschaffung'!K19,Datenvalidierung!$C$1:$C$5,0)),0)","v":0},{"$f":"IFERROR(INDEX(Datenvalidierung!$B$1:$B$3,MATCH('5 Beschaffung'!J19,Datenvalidierung!$A$1:$A$3,0)),\"\")","v":""},{"$f":"IF('5 Beschaffung'!J19=Datenvalidierung!$A$3,0,1)","v":1},{"$f":"IF('5 Beschaffung'!L19=0,\"\",'5 Beschaffung'!L19)","v":""},{"$f":"IF(N69=Datenvalidierung!$E$2,1,0)","v":0},{"$f":"IF('5 Beschaffung'!O19=\"Ja\",1,'5 Beschaffung'!O19)","v":0},{"$f":"'5 Beschaffung'!E19","v":"advanced"},{"$f":"'5 Beschaffung'!F19*M69","v":2},{"$f":"INDEX(Datenvalidierung!$G$1:$G$3,MATCH(Q69,Datenvalidierung!$F$1:$F$3,0))","v":2},{"$f":"'5 Beschaffung'!H19","v":0},1,1]
[null,null,null,null,null,null,"5",{"$f":"'5 Beschaffung'!B20","v":"5.2.4"},{"$f":"'5 Beschaffung'!C20","v":"Beschriftung und Piktogramme"},{"$f":"IF('5 Beschaffung'!K20=0,\"\",'5 Beschaffung'!K20)","v":""},{"$f":"IFERROR(INDEX(Datenvalidierung!$D$1:$D$5,MATCH('5 Beschaffung'!K20,Datenvalidierung!$C$1:$C$5,0)),0)","v":0},{"$f":"IFERROR(INDEX(Datenvalidierung!$B$1:$B$3,MATCH('5 Beschaffung'!J20,Datenvalidierung!$A$1:$A$3,0)),\"\")","v":""},{"$f":"IF('5 Beschaffung'!J20=Datenvalidierung!$A$3,0,1)","v":1},{"$f":"IF('5 Beschaffung'!L20=0,\"\",'5 Beschaffung'!L20)","v":""},{"$f":"IF(N70=Datenvalidierung!$E$2,1,0)","v":0},{"$f":"IF('5 Beschaffung'!O20=\"Ja\",1,'5 Beschaffung'!O20)","v":0},{"$f":"'5 Beschaffung'!E20","v":"basic"},{"$f":"'5 Beschaffung'!F20*M70","v":1},{"$f":"INDEX(Datenvalidierung!$G$1:$G$3,MATCH(Q70,Datenvalidierung!$F$1:$F$3,0))","v":1},{"$f":"'5 Beschaffung'!H20","v":0},1,1]
[null,null,null,null,null,null,"5",{"$f":"'5 Beschaffung'!B21","v":"5.2.5"},{"$f":"'5 Beschaffung'!C21","v":"Kontrolle und Unterstützung"},{"$f":"IF('5 Beschaffung'!K21=0,\"\",'5 Beschaffung'!K21)","v":""},{"$f":"IFERROR(INDEX(Datenvalidierung!$D$1:$D$5,MATCH('5 Beschaffung'!K21,Datenvalidierung!$C$1:$C$5,0)),0)","v":0},{"$f":"IFERROR(INDEX(Datenvalidierung!$B$1:$B$3,MATCH('5 Beschaffung'!J21,Datenvalidierung!$A$1:$A$3,0)),\"\")","v":""},{"$f":"IF('5 Beschaffung'!J21=Datenvalidierung!$A$3,0,1)","v":1},{"$f":"IF('5 Beschaffung'!L21=0,\"\",'5 Beschaffung'!L21)","v":""},{"$f":"IF(N71=Datenvalidierung!$E$2,1,0)","v":0},{"$f":"IF('5 Beschaffung'!O21=\"Ja\",1,'5 Beschaffung'!O21)","v":0},{"$f":"'5 Beschaffung'!E21","v":"professional"},{"$f":"'5 Beschaffung'!F21*M71","v":3},{"$f":"INDEX(Datenvalidierung!$G$1:$G$3,MATCH(Q71,Datenvalidierung!$F$1:$F$3,0))","v":3},{"$f":"'5 Beschaffung'!H21","v":"nur für VA >1.000 Personen"},1,1]
[null,null,null,null,null,null,"6",{"$f":"'6 Unterkunft'!B4","v":"6.1.1"},{"$f":"'6 Unterkunft'!C4","v":"Nachhaltige Unterkünfte"},{"$f":"IF('6 Unterkunft'!K4=0,\"\",'6 Unterkunft'!K4)","v":""},{"$f":"IFERROR(INDEX(Datenvalidierung!$D$1:$D$5,MATCH('6 Unterkunft'!K4,Datenvalidierung!$C$1:$C$5,0)),0)","v":0},{"$f":"IFERROR(INDEX(Datenvalidierung!$B$1:$B$3,MATCH('6 Unterkunft'!J4,Datenvalidierung!$A$1:$A$3,0)),\"\")","v":""},{"$f":"IF('6 Unterkunft'!J4=Datenvalidierung!$A$3,0,1)","v":1},{"$f":"IF('6 Unterkunft'!L4=0,\"\",'6 Unterkunft'!L4)","v":""},{"$f":"IF(N72=Datenvalidierung!$E$2,1,0)","v":0},{"$f":"IF('6 Unterkunft'!O4=\"Ja\",1,'6 Unterkunft'!O4)","v":0},{"$f":"'6 Unterkunft'!E4","v":"basic"},{"$f":"'6 Unterkunft'!F4*M72","v":1},{"$f":"INDEX(Datenvalidierung!$G$1:$G$3,MATCH(Q72,Datenvalidierung!$F$1:$F$3,0))","v":1},{"$f":"'6 Unterkunft'!H4","v":0},1,1]
[null,null,null,null,null,null,"6",{"$f":"'6 Unterkunft'!B5","v":"6.1.2"},{"$f":"'6 Unterkunft'!C5","v":"Nachhaltige Unterkünfte pro"},{"$f":"IF('6 Unterkunft'!K5=0,\"\",'6 Unterkunft'!K5)","v":""},{"$f":"IFERROR(INDEX(Datenvalidierung!$D$1:$D$5,MATCH('6 Unterkunft'!K5,Datenvalidierung!$C$1:$C$5,0)),0)","v":0},{"$f":"IFERROR(INDEX(Datenvalidierung!$B$1:$B$3,MATCH('6 Unterkunft'!J5,Datenvalidierung!$A$1:$A$3,0)),\"\")","v":""},{"$f":"IF('6 Unterkunft'!J5=Datenvalidierung!$A$3,0,1)","v":1},{"$f":"IF('6 Unterkunft'!L5=0,\"\",'6 Unterkunft'!L5)","v":""},{"$f":"IF(N73=Datenvalidierung!$E$2,1,0)","v":0},{"$f":"IF('6 Unterkunft'!O5=\"Ja\",1,'6 Unterkunft'!O5)","v":0},{"$f":"'6 Unterkunft'!E5","v":"professional"},{"$f":"'6 Unterkunft'!F5*M73","v":3},{"$f":"INDEX(Datenvalidierung!$G$1:$G$3,MATCH(Q73,Datenvalidierung!$F$1:$F$3,0))","v":3},{"$f":"'6 Unterkunft'!H5","v":0},1,1]
[null,null,null,null,null,null,"6",{"$f":"'6 Unterkunft'!B6","v":"6.1.3"},{"$f":"'6 Unterkunft'!C6","v":"Erreichbarkeit"},{"$f":"IF('6 Unterkunft'!K6=0,\"\",'6 Unterkunft'!K6)","v":""},{"$f":"IFERROR(INDEX(Datenvalidierung!$D$1:$D$5,MATCH('6 Unterkunft'!K6,Datenvalidierung!$C$1:$C$5,0)),0)","v":0},{"$f":"IFERROR(INDEX(Datenvalidierung!$B$1:$B$3,MATCH('6 Unterkunft'!J6,Datenvalidierung!$A$1:$A$3,0)),\"\")","v":""},{"$f":"IF('6 Unterkunft'!J6=Datenvalidierung!$A$3,0,1)","v":1},{"$f":"IF('6 Unterkunft'!L6=0,\"\",'6 Unterkunft'!L6)","v":""},{"$f":"IF(N74=Datenvalidierung!$E$2,1,0)","v":0},{"$f":"IF('6 Unterkunft'!O6=\"Ja\",1,'6 Unterkunft'!O6)","v":0},{"$f":"'6 Unterkunft'!E6","v":"basic"},{"$f":"'6 Unterkunft'!F6*M74","v":1},{"$f":"INDEX(Datenvalidierung!$G$1:$G$3,MATCH(Q74,Datenvalidierung!$F$1:$F$3,0))","v":1},{"$f":"'6 Unterkunft'!H6","v":"Advanced für Veranstaltungen >5.000, professional für >10.000"},1,1]
[null,null,null,null,null,null,"7",{"$f":"'7 Gastronomie'!B4","v":"7.1.1"},{"$f":"'7 Gastronomie'!C4","v":"Regionalität der Zutaten"},{"$f":"IF('7 Gastronomie'!K4=0,\"\",'7 Gastronomie'!K4)","v":""},{"$f":"IFERROR(INDEX(Datenvalidierung!$D$1:$D$5,MATCH('7 Gastronomie'!K4,Datenvalidierung!$C$1:$C$5,0)),0)","v":0},{"$f":"IFERROR(INDEX(Datenvalidierung!$B$1:$B$3,MATCH('7 Gastronomie'!J4,Datenvalidierung!$A$1:$A$3,0)),\"\")","v":""},{"$f":"IF('7 Gastronomie'!J4=Datenvalidierung!$A$3,0,1)","v":1},{"$f":"IF('7 Gastronomie'!L4=0,\"\",'7 Gastronomie'!L4)","v":""},{"$f":"IF(N75=Datenvalidierung!$E$2,1,0)","v":0},{"$f":"IF('7 Gastronomie'!O4=\"Ja\",1,'7 Gastronomie'!O4)","v":0},{"$f":"'7 Gastronomie'!E4","v":"basic"},{"$f":"'7 Gastronomie'!F4*M75","v":1},{"$f":"INDEX(Datenvalidierung!$G$1:$G$3,MATCH(Q75,Datenvalidierung!$F$1:$F$3,0))","v":1},{"$f":"'7 Gastronomie'!H4","v":"Basic für VA <1.000, \nAdvanced für VA 1.000-10.000,\nProfessional für VA >10.000\n\nGilt nicht für Empfänge, Kongresse, Tagungen, Seminare etc."},1,1]
[null,null,null,null,null,null,"7",{"$f":"'7 Gastronomie'!B5","v":"7.1.2"},{"$f":"'7 Gastronomie'!C5","v":"Saisonalität"},{"$f":"IF('7 Gastronomie'!K5=0,\"\",'7 Gastronomie'!K5)","v":""},{"$f":"IFERROR(INDEX(Datenvalidierung!$D$1:$D$5,MATCH('7 Gastronomie'!K5,Datenvalidierung!$C$1:$C$5,0)),0)","v":0},{"$f":"IFERROR(INDEX(Datenvalidierung!$B$1:$B$3,MATCH('7 Gastronomie'!J5,Datenvalidierung!$A$1:$A$3,0)),\"\")","v":""},{"$f":"IF('7 Gastronomie'!J5=Datenvalidierung!$A$3,0,1)","v":1},{"$f":"IF('7 Gastronomie'!L5=0,\"\",'7 Gastronomie'!L5)","v":""},{"$f":"IF(N76=Datenvalidierung!$E$2,1,0)","v":0},{"$f":"IF('7 Gastronomie'!O5=\"Ja\",1,'7 Gastronomie'!O5)","v":0},{"$f":"'7 Gastronomie'!E5","v":"basic"},{"$f":"'7 Gastronomie'!F5*M76","v":1},{"$f":"INDEX(Datenvalidierung!$G$1:$G$3,MATCH(Q76,Datenvalidierung!$F$1:$F$3,0))","v":1},{"$f":"'7 Gastronomie'!H5","v":"Basic für VA <1.000, \nAdvanced für VA 1.000-10.000,\nProfessional für VA >10.000\n\nGilt nicht für Empfänge, Kongresse, Tagungen, Seminare etc."},1,1]
[null,null,null,null,null,null,"7",{"$f":"'7 Gastronomie'!B6","v":"7.1.3"},{"$f":"'7 Gastronomie'!C6","v":"bio-zertifizierte Lebensmittel"},{"$f":"IF('7 Gastronomie'!K6=0,\"\",'7 Gastronomie'!K6)","v":""},{"$f":"IFERROR(INDEX(Datenvalidierung!$D$1:$D$5,MATCH('7 Gastronomie'!K6,Datenvalidierung!$C$1:$C$5,0)),0)","v":0},{"$f":"IFERROR(INDEX(Datenvalidierung!$B$1:$B$3,MATCH('7 Gastronomie'!J6,Datenvalidierung!$A$1:$A$3,0)),\"\")","v":""},{"$f":"IF('7 Gastronomie'!J6=Datenvalidierung!$A$3,0,1)","v":1},{"$f":"IF('7 Gastronomie'!L6=0,\"\",'7 Gastronomie'!L6)","v":""},{"$f":"IF(N77=Datenvalidierung!$E$2,1,0)","v":0},{"$f":"IF('7 Gastronomie'!O6=\"Ja\",1,'7 Gastronomie'!O6)","v":0},{"$f":"'7 Gastronomie'!E6","v":"basic"},{"$f":"'7 Gastronomie'!F6*M77","v":1},{"$f":"INDEX(Datenvalidierung!$G$1:$G$3,MATCH(Q77,Datenvalidierung!$F$1:$F$3,0))","v":1},{"$f":"'7 Gastronomie'!H6","v":"Gilt nicht für Empfänge, Kongresse, Tagungen, Seminare etc."},1,1]
[null,null,null,null,null,null,"7",{"$f":"'7 Gastronomie'!B7","v":"7.1.4"},{"$f":"'7 Gastronomie'!C7","v":"Fair Trade"},{"$f":"IF('7 Gastronomie'!K7=0,\"\",'7 Gastronomie'!K7)","v":""},{"$f":"IFERROR(INDEX(Datenvalidierung!$D$1:$D$5,MATCH('7 Gastronomie'!K7,Datenvalidierung!$C$1:$C$5,0)),0)","v":0},{"$f":"IFERROR(INDEX(Datenvalidierung!$B$1:$B$3,MATCH('7 Gastronomie'!J7,Datenvalidierung!$A$1:$A$3,0)),\"\")","v":""},{"$f":"IF('7 Gastronomie'!J7=Datenvalidierung!$A$3,0,1)","v":1},{"$f":"IF('7 Gastronomie'!L7=0,\"\",'7 Gastronomie'!L7)","v":""},{"$f":"IF(N78=Datenvalidierung!$E$2,1,0)","v":0},{"$f":"IF('7 Gastronomie'!O7=\"Ja\",1,'7 Gastronomie'!O7)","v":0},{"$f":"'7 Gastronomie'!E7","v":"advanced"},{"$f":"'7 Gastronomie'!F7*M78","v":2},{"$f":"INDEX(Datenvalidierung!$G$1:$G$3,MATCH(Q78,Datenvalidierung!$F$1:$F$3,0))","v":2},{"$f":"'7 Gastronomie'!H7","v":"Gilt nicht für Empfänge, Kongresse, Tagungen, Seminare etc."},1,1]
[null,null,null,null,null,null,"7",{"$f":"'7 Gastronomie'!B8","v":"7.1.5"},{"$f":"'7 Gastronomie'!C8","v":"vegetarisches Angebot"},{"$f":"IF('7 Gastronomie'!K8=0,\"\",'7 Gastronomie'!K8)","v":""},{"$f":"IFERROR(INDEX(Datenvalidierung!$D$1:$D$5,MATCH('7 Gastronomie'!K8,Datenvalidierung!$C$1:$C$5,0)),0)","v":0},{"$f":"IFERROR(INDEX(Datenvalidierung!$B$1:$B$3,MATCH('7 Gastronomie'!J8,Datenvalidierung!$A$1:$A$3,0)),\"\")","v":""},{"$f":"IF('7 Gastronomie'!J8=Datenvalidierung!$A$3,0,1)","v":1},{"$f":"IF('7 Gastronomie'!L8=0,\"\",'7 Gastronomie'!L8)","v":""},{"$f":"IF(N79=Datenvalidierung!$E$2,1,0)","v":0},{"$f":"IF('7 Gastronomie'!O8=\"Ja\",1,'7 Gastronomie'!O8)","v":0},{"$f":"'7 Gastronomie'!E8","v":"basic"},{"$f":"'7 Gastronomie'!F8*M79","v":1},{"$f":"INDEX(Datenvalidierung!$G$1:$G$3,MATCH(Q79,Datenvalidierung!$F$1:$F$3,0))","v":1},{"$f":"'7 Gastronomie'!H8","v":"Gilt nicht für Empfänge, Kongresse, Tagungen, Seminare etc."},1,1]
[null,null,null,null,null,null,"7",{"$f":"'7 Gastronomie'!B9","v":"7.1.6"},{"$f":"'7 Gastronomie'!C9","v":"veganes Angebot"},{"$f":"IF('7 Gastronomie'!K9=0,\"\",'7 Gastronomie'!K9)","v":""},{"$f":"IFERROR(INDEX(Datenvalidierung!$D$1:$D$5,MATCH('7 Gastronomie'!K9,Datenvalidierung!$C$1:$C$5,0)),0)","v":0},{"$f":"IFERROR(INDEX(Datenvalidierung!$B$1:$B$3,MATCH('7 Gastronomie'!J9,Datenvalidierung!$A$1:$A$3,0)),\"\")","v":""},{"$f":"IF('7 Gastronomie'!J9=Datenvalidierung!$A$3,0,1)","v":1},{"$f":"IF('7 Gastronomie'!L9=0,\"\",'7 Gastronomie'!L9)","v":""},{"$f":"IF(N80=Datenvalidierung!$E$2,1,0)","v":0},{"$f":"IF('7 Gastronomie'!O9=\"Ja\",1,'7 Gastronomie'!O9)","v":0},{"$f":"'7 Gastronomie'!E9","v":"advanced"},{"$f":"'7 Gastronomie'!F9*M80","v":2},{"$f":"INDEX(Datenvalidierung!$G$1:$G$3,MATCH(Q80,Datenvalidierung!$F$1:$F$3,0))","v":2},{"$f":"'7 Gastronomie'!H9","v":"Gilt nicht für Empfänge, Kongresse, Tagungen, Seminare etc."},1,1]
[null,null,null,null,null,null,"7",{"$f":"'7 Gastronomie'!B10","v":"7.1.7"},{"$f":"'7 Gastronomie'!C10","v":"artgerechte Haltung\n"},{"$f":"IF('7 Gastronomie'!K10=0,\"\",'7 Gastronomie'!K10)","v":""},{"$f":"IFERROR(INDEX(Datenvalidierung!$D$1:$D$5,MATCH('7 Gastronomie'!K10,Datenvalidierung!$C$1:$C$5,0)),0)","v":0},{"$f":"IFERROR(INDEX(Datenvalidierung!$B$1:$B$3,MATCH('7 Gastronomie'!J10,Datenvalidierung!$A$1:$A$3,0)),\"\")","v":""},{"$f":"IF('7 Gastronomie'!J10=Datenvalidierung!$A$3,0,1)","v":1},{"$f":"IF('7 Gastronomie'!L10=0,\"\",'7 Gastronomie'!L10)","v":""},{"$f":"IF(N81=Datenvalidierung!$E$2,1,0)","v":0},{"$f":"IF('7 Gastronomie'!O10=\"Ja\",1,'7 Gastronomie'!O10)","v":0},{"$f":"'7 Gastronomie'!E10","v":"basic"},{"$f":"'7 Gastronomie'!F10*M81","v":1},{"$f":"INDEX(Datenvalidierung!$G$1:$G$3,MATCH(Q81,Datenvalidierung!$F$1:$F$3,0))","v":1},{"$f":"'7 Gastronomie'!H10","v":"Gilt nicht für Empfänge, Kongresse, Tagungen, Seminare etc."},1,1]
[null,null,null,null,null,null,"7",{"$f":"'7 Gastronomie'!B11","v":"7.1.8"},{"$f":"'7 Gastronomie'!C11","v":"regionale Getränke"},{"$f":"IF('7 Gastronomie'!K11=0,\"\",'7 Gastronomie'!K11)","v":""},{"$f":"IFERROR(INDEX(Datenvalidierung!$D$1:$D$5,MATCH('7 Gastronomie'!K11,Datenvalidierung!$C$1:$C$5,0)),0)","v":0},{"$f":"IFERROR(INDEX(Datenvalidierung!$B$1:$B$3,MATCH('7 Gastronomie'!J11,Datenvalidierung!$A$1:$A$3,0)),\"\")","v":""},{"$f":"IF('7 Gastronomie'!J11=Datenvalidierung!$A$3,0,1)","v":1},{"$f":"IF('7 Gastronomie'!L11=0,\"\",'7 Gastronomie'!L11)","v":""},{"$f":"IF(N82=Datenvalidierung!$E$2,1,0)","v":0},{"$f":"IF('7 Gastronomie'!O11=\"Ja\",1,'7 Gastronomie'!O11)","v":0},{"$f":"'7 Gastronomie'!E11","v":"basic"},{"$f":"'7 Gastronomie'!F11*M82","v":1},{"$f":"INDEX(Datenvalidierung!$G$1:$G$3,MATCH(Q82,Datenvalidierung!$F$1:$F$3,0))","v":1},{"$f":"'7 Gastronomie'!H11","v":"Gilt nicht für Empfänge, Kongresse, Tagungen, Seminare etc."},1,1]
[null,null,null,null,null,null,"7",{"$f":"'7 Gastronomie'!B12","v":"7.1.9"},{"$f":"'7 Gastronomie'!C12","v":"Bio Getränke "},{"$f":"IF('7 Gastronomie'!K12=0,\"\",'7 Gastronomie'!K12)","v":""},{"$f":"IFERROR(INDEX(Datenvalidierung!$D$1:$D$5,MATCH('7 Gastronomie'!K12,Datenvalidierung!$C$1:$C$5,0)),0)","v":0},{"$f":"IFERROR(INDEX(Datenvalidierung!$B$1:$B$3,MATCH('7 Gastronomie'!J12,Datenvalidierung!$A$1:$A$3,0)),\"\")","v":""},{"$f":"IF('7 Gastronomie'!J12=Datenvalidierung!$A$3,0,1)","v":1},{"$f":"IF('7 Gastronomie'!L12=0,\"\",'7 Gastronomie'!L12)","v":""},{"$f":"IF(N83=Datenvalidierung!$E$2,1,0)","v":0},{"$f":"IF('7 Gastronomie'!O12=\"Ja\",1,'7 Gastronomie'!O12)","v":0},{"$f":"'7 Gastronomie'!E12","v":"basic"},{"$f":"'7 Gastronomie'!F12*M83","v":1},{"$f":"INDEX(Datenvalidierung!$G$1:$G$3,MATCH(Q83,Datenvalidierung!$F$1:$F$3,0))","v":1},{"$f":"'7 Gastronomie'!H12","v":"Basic für VA <1.000, \nAdvanced für VA 1.000-10.000,\nProfessional für VA >10.000\n\nGilt nicht für Empfänge, Kongresse, Tagungen, Seminare etc."},1,1]
[null,null,null,null,null,null,"7",{"$f":"'7 Gastronomie'!B13","v":"7.1.10"},{"$f":"'7 Gastronomie'!C13","v":"Kulturelle/soziale Aspekte"},{"$f":"IF('7 Gastronomie'!K13=0,\"\",'7 Gastronomie'!K13)","v":""},{"$f":"IFERROR(INDEX(Datenvalidierung!$D$1:$D$5,MATCH('7 Gastronomie'!K13,Datenvalidierung!$C$1:$C$5,0)),0)","v":0},{"$f":"IFERROR(INDEX(Datenvalidierung!$B$1:$B$3,MATCH('7 Gastronomie'!J13,Datenvalidierung!$A$1:$A$3,0)),\"\")","v":""},{"$f":"IF('7 Gastronomie'!J13=Datenvalidierung!$A$3,0,1)","v":1},{"$f":"IF('7 Gastronomie'!L13=0,\"\",'7 Gastronomie'!L13)","v":""},{"$f":"IF(N84=Datenvalidierung!$E$2,1,0)","v":0},{"$f":"IF('7 Gastronomie'!O13=\"Ja\",1,'7 Gastronomie'!O13)","v":0},{"$f":"'7 Gastronomie'!E13","v":"basic"},{"$f":"'7 Gastronomie'!F13*M84","v":1},{"$f":"INDEX(Datenvalidierung!$G$1:$G$3,MATCH(Q84,Datenvalidierung!$F$1:$F$3,0))","v":1},{"$f":"'7 Gastronomie'!H13","v":"Gilt nicht für Empfänge, Kongresse, Tagungen, Seminare etc."},1,1]
[null,null,null,null,null,null,"7",{"$f":"'7 Gastronomie'!B14","v":"7.1.11"},{"$f":"'7 Gastronomie'!C14","v":"Kulturelle/soziale Aspekte pro"},{"$f":"IF('7 Gastronomie'!K14=0,\"\",'7 Gastronomie'!K14)","v":""},{"$f":"IFERROR(INDEX(Datenvalidierung!$D$1:$D$5,MATCH('7 Gastronomie'!K14,Datenvalidierung!$C$1:$C$5,0)),0)","v":0},{"$f":"IFERROR(INDEX(Datenvalidierung!$B$1:$B$3,MATCH('7 Gastronomie'!J14,Datenvalidierung!$A$1:$A$3,0)),\"\")","v":""},{"$f":"IF('7 Gastronomie'!J14=Datenvalidierung!$A$3,0,1)","v":1},{"$f":"IF('7 Gastronomie'!L14=0,\"\",'7 Gastronomie'!L14)","v":""},{"$f":"IF(N85=Datenvalidierung!$E$2,1,0)","v":0},{"$f":"IF('7 Gastronomie'!O14=\"Ja\",1,'7 Gastronomie'!O14)","v":0},{"$f":"'7 Gastronomie'!E14","v":"professional"},{"$f":"'7 Gastronomie'!F14*M85","v":3},{"$f":"INDEX(Datenvalidierung!$G$1:$G$3,MATCH(Q85,Datenvalidierung!$F$1:$F$3,0))","v":3},{"$f":"'7 Gastronomie'!H14","v":"Gilt nicht für Empfänge, Kongresse, Tagungen, Seminare etc."},1,1]
[null,null,null,null,null,null,"7",{"$f":"'7 Gastronomie'!B15","v":"7.1.12"},{"$f":"'7 Gastronomie'!C15","v":"Lebensmittelallergien/-unverträglichkeiten"},{"$f":"IF('7 Gastronomie'!K15=0,\"\",'7 Gastronomie'!K15)","v":""},{"$f":"IFERROR(INDEX(Datenvalidierung!$D$1:$D$5,MATCH('7 Gastronomie'!K15,Datenvalidierung!$C$1:$C$5,0)),0)","v":0},{"$f":"IFERROR(INDEX(Datenvalidierung!$B$1:$B$3,MATCH('7 Gastronomie'!J15,Datenvalidierung!$A$1:$A$3,0)),\"\")","v":""},{"$f":"IF('7 Gastronomie'!J15=Datenvalidierung!$A$3,0,1)","v":1},{"$f":"IF('7 Gastronomie'!L15=0,\"\",'7 Gastronomie'!L15)","v":""},{"$f":"IF(N86=Datenvalidierung!$E$2,1,0)","v":0},{"$f":"IF('7 Gastronomie'!O15=\"Ja\",1,'7 Gastronomie'!O15)","v":0},{"$f":"'7 Gastronomie'!E15","v":"basic"},{"$f":"'7 Gastronomie'!F15*M86","v":1},{"$f":"INDEX(Datenvalidierung!$G$1:$G$3,MATCH(Q86,Datenvalidierung!$F$1:$F$3,0))","v":1},{"$f":"'7 Gastronomie'!H15","v":0},1,1]
[null,null,null,null,null,null,"7",{"$f":"'7 Gastronomie'!B17","v":"7.2.1"},{"$f":"'7 Gastronomie'!C17","v":"Regionalität und Saisonalität der Zutaten und Getränke"},{"$f":"IF('7 Gastronomie'!K17=0,\"\",'7 Gastronomie'!K17)","v":""},{"$f":"IFERROR(INDEX(Datenvalidierung!$D$1:$D$5,MATCH('7 Gastronomie'!K17,Datenvalidierung!$C$1:$C$5,0)),0)","v":0},{"$f":"IFERROR(INDEX(Datenvalidierung!$B$1:$B$3,MATCH('7 Gastronomie'!J17,Datenvalidierung!$A$1:$A$3,0)),\"\")","v":""},{"$f":"IF('7 Gastronomie'!J17=Datenvalidierung!$A$3,0,1)","v":1},{"$f":"IF('7 Gastronomie'!L17=0,\"\",'7 Gastronomie'!L17)","v":""},{"$f":"IF(N87=Datenvalidierung!$E$2,1,0)","v":0},{"$f":"IF('7 Gastronomie'!O17=\"Ja\",1,'7 Gastronomie'!O17)","v":0},{"$f":"'7 Gastronomie'!E17","v":"basic"},{"$f":"'7 Gastronomie'!F17*M87","v":1},{"$f":"INDEX(Datenvalidierung!$G$1:$G$3,MATCH(Q87,Datenvalidierung!$F$1:$F$3,0))","v":1},{"$f":"'7 Gastronomie'!H17","v":0},1,1]
[null,null,null,null,null,null,"7",{"$f":"'7 Gastronomie'!B18","v":"7.2.2"},{"$f":"'7 Gastronomie'!C18","v":"bio-zertifizierte und Fairtrade Lebensmittel "},{"$f":"IF('7 Gastronomie'!K18=0,\"\",'7 Gastronomie'!K18)","v":""},{"$f":"IFERROR(INDEX(Datenvalidierung!$D$1:$D$5,MATCH('7 Gastronomie'!K18,Datenvalidierung!$C$1:$C$5,0)),0)","v":0},{"$f":"IFERROR(INDEX(Datenvalidierung!$B$1:$B$3,MATCH('7 Gastronomie'!J18,Datenvalidierung!$A$1:$A$3,0)),\"\")","v":""},{"$f":"IF('7 Gastronomie'!J18=Datenvalidierung!$A$3,0,1)","v":1},{"$f":"IF('7 Gastronomie'!L18=0,\"\",'7 Gastronomie'!L18)","v":""},{"$f":"IF(N88=Datenvalidierung!$E$2,1,0)","v":0},{"$f":"IF('7 Gastronomie'!O18=\"Ja\",1,'7 Gastronomie'!O18)","v":0},{"$f":"'7 Gastronomie'!E18","v":"basic"},{"$f":"'7 Gastronomie'!F18*M88","v":1},{"$f":"INDEX(Datenvalidierung!$G$1:$G$3,MATCH(Q88,Datenvalidierung!$F$1:$F$3,0))","v":1},{"$f":"'7 Gastronomie'!H18","v":0},1,1]
[null,null,null,null,null,null,"7",{"$f":"'7 Gastronomie'!B19","v":"7.2.3"},{"$f":"'7 Gastronomie'!C19","v":"vegetarisches Catering"},{"$f":"IF('7 Gastronomie'!K19=0,\"\",'7 Gastronomie'!K19)","v":""},{"$f":"IFERROR(INDEX(Datenvalidierung!$D$1:$D$5,MATCH('7 Gastronomie'!K19,Datenvalidierung!$C$1:$C$5,0)),0)","v":0},{"$f":"IFERROR(INDEX(Datenvalidierung!$B$1:$B$3,MATCH('7 Gastronomie'!J19,Datenvalidierung!$A$1:$A$3,0)),\"\")","v":""},{"$f":"IF('7 Gastronomie'!J19=Datenvalidierung!$A$3,0,1)","v":1},{"$f":"IF('7 Gastronomie'!L19=0,\"\",'7 Gastronomie'!L19)","v":""},{"$f":"IF(N89=Datenvalidierung!$E$2,1,0)","v":0},{"$f":"IF('7 Gastronomie'!O19=\"Ja\",1,'7 Gastronomie'!O19)","v":0},{"$f":"'7 Gastronomie'!E19","v":"basic"},{"$f":"'7 Gastronomie'!F19*M89","v":1},{"$f":"INDEX(Datenvalidierung!$G$1:$G$3,MATCH(Q89,Datenvalidierung!$F$1:$F$3,0))","v":1},{"$f":"'7 Gastronomie'!H19","v":0},1,1]
[null,null,null,null,null,null,"7",{"$f":"'7 Gastronomie'!B20","v":"7.2.4"},{"$f":"'7 Gastronomie'!C20","v":"veganes Catering"},{"$f":"IF('7 Gastronomie'!K20=0,\"\",'7 Gastronomie'!K20)","v":""},{"$f":"IFERROR(INDEX(Datenvalidierung!$D$1:$D$5,MATCH('7 Gastronomie'!K20,Datenvalidierung!$C$1:$C$5,0)),0)","v":0},{"$f":"IFERROR(INDEX(Datenvalidierung!$B$1:$B$3,MATCH('7 Gastronomie'!J20,Datenvalidierung!$A$1:$A$3,0)),\"\")","v":""},{"$f":"IF('7 Gastronomie'!J20=Datenvalidierung!$A$3,0,1)","v":1},{"$f":"IF('7 Gastronomie'!L20=0,\"\",'7 Gastronomie'!L20)","v":""},{"$f":"IF(N90=Datenvalidierung!$E$2,1,0)","v":0},{"$f":"IF('7 Gastronomie'!O20=\"Ja\",1,'7 Gastronomie'!O20)","v":0},{"$f":"'7 Gastronomie'!E20","v":"advanced"},{"$f":"'7 Gastronomie'!F20*M90","v":2},{"$f":"INDEX(Datenvalidierung!$G$1:$G$3,MATCH(Q90,Datenvalidierung!$F$1:$F$3,0))","v":2},{"$f":"'7 Gastronomie'!H20","v":0},1,1]
[null,null,null,null,null,null,"7",{"$f":"'7 Gastronomie'!B21","v":"7.2.5"},{"$f":"'7 Gastronomie'!C21","v":"artgerechte Haltung\n"},{"$f":"IF('7 Gastronomie'!K21=0,\"\",'7 Gastronomie'!K21)","v":""},{"$f":"IFERROR(INDEX(Datenvalidierung!$D$1:$D$5,MATCH('7 Gastronomie'!K21,Datenvalidierung!$C$1:$C$5,0)),0)","v":0},{"$f":"IFERROR(INDEX(Datenvalidierung!$B$1:$B$3,MATCH('7 Gastronomie'!J21,Datenvalidierung!$A$1:$A$3,0)),\"\")","v":""},{"$f":"IF('7 Gastronomie'!J21=Datenvalidierung!$A$3,0,1)","v":1},{"$f":"IF('7 Gastronomie'!L21=0,\"\",'7 Gastronomie'!L21)","v":""},{"$f":"IF(N91=Datenvalidierung!$E$2,1,0)","v":0},{"$f":"IF('7 Gastronomie'!O21=\"Ja\",1,'7 Gastronomie'!O21)","v":0},{"$f":"'7 Gastronomie'!E21","v":"basic"},{"$f":"'7 Gastronomie'!F21*M91","v":1},{"$f":"INDEX(Datenvalidierung!$G$1:$G$3,MATCH(Q91,Datenvalidierung!$F$1:$F$3,0))","v":1},{"$f":"'7 Gastronomie'!H21","v":0},1,1]
[null,null,null,null,null,null,"7",{"$f":"'7 Gastronomie'!B23","v":"7.3.1"},{"$f":"'7 Gastronomie'!C23","v":"Anstöße und Anreize I"},{"$f":"IF('7 Gastronomie'!K23=0,\"\",'7 Gastronomie'!K23)","v":""},{"$f":"IFERROR(INDEX(Datenvalidierung!$D$1:$D$5,MATCH('7 Gastronomie'!K23,Datenvalidierung!$C$1:$C$5,0)),0)","v":0},{"$f":"IFERROR(INDEX(Datenvalidierung!$B$1:$B$3,MATCH('7 Gastronomie'!J23,Datenvalidierung!$A$1:$A$3,0)),\"\")","v":""},{"$f":"IF('7 Gastronomie'!J23=Datenvalidierung!$A$3,0,1)","v":1},{"$f":"IF('7 Gastronomie'!L23=0,\"\",'7 Gastronomie'!L23)","v":""},{"$f":"IF(N92=Datenvalidierung!$E$2,1,0)","v":0},{"$f":"IF('7 Gastronomie'!O23=\"Ja\",1,'7 Gastronomie'!O23)","v":0},{"$f":"'7 Gastronomie'!E23","v":"basic"},{"$f":"'7 Gastronomie'!F23*M92","v":1},{"$f":"INDEX(Datenvalidierung!$G$1:$G$3,MATCH(Q92,Datenvalidierung!$F$1:$F$3,0))","v":1},{"$f":"'7 Gastronomie'!H23","v":0},1,1]
[null,null,null,null,null,null,"7",{"$f":"'7 Gastronomie'!B24","v":"7.3.2"},{"$f":"'7 Gastronomie'!C24","v":"Anstöße und Anreize II"},{"$f":"IF('7 Gastronomie'!K24=0,\"\",'7 Gastronomie'!K24)","v":""},{"$f":"IFERROR(INDEX(Datenvalidierung!$D$1:$D$5,MATCH('7 Gastronomie'!K24,Datenvalidierung!$C$1:$C$5,0)),0)","v":0},{"$f":"IFERROR(INDEX(Datenvalidierung!$B$1:$B$3,MATCH('7 Gastronomie'!J24,Datenvalidierung!$A$1:$A$3,0)),\"\")","v":""},{"$f":"IF('7 Gastronomie'!J24=Datenvalidierung!$A$3,0,1)","v":1},{"$f":"IF('7 Gastronomie'!L24=0,\"\",'7 Gastronomie'!L24)","v":""},{"$f":"IF(N93=Datenvalidierung!$E$2,1,0)","v":0},{"$f":"IF('7 Gastronomie'!O24=\"Ja\",1,'7 Gastronomie'!O24)","v":0},{"$f":"'7 Gastronomie'!E24","v":"advanced"},{"$f":"'7 Gastronomie'!F24*M93","v":2},{"$f":"INDEX(Datenvalidierung!$G$1:$G$3,MATCH(Q93,Datenvalidierung!$F$1:$F$3,0))","v":2},{"$f":"'7 Gastronomie'!H24","v":0},1,1]
[null,null,null,null,null,null,"7",{"$f":"'7 Gastronomie'!B25","v":"7.3.3"},{"$f":"'7 Gastronomie'!C25","v":"Lebensmittelreste"},{"$f":"IF('7 Gastronomie'!K25=0,\"\",'7 Gastronomie'!K25)","v":""},{"$f":"IFERROR(INDEX(Datenvalidierung!$D$1:$D$5,MATCH('7 Gastronomie'!K25,Datenvalidierung!$C$1:$C$5,0)),0)","v":0},{"$f":"IFERROR(INDEX(Datenvalidierung!$B$1:$B$3,MATCH('7 Gastronomie'!J25,Datenvalidierung!$A$1:$A$3,0)),\"\")","v":""},{"$f":"IF('7 Gastronomie'!J25=Datenvalidierung!$A$3,0,1)","v":1},{"$f":"IF('7 Gastronomie'!L25=0,\"\",'7 Gastronomie'!L25)","v":""},{"$f":"IF(N94=Datenvalidierung!$E$2,1,0)","v":0},{"$f":"IF('7 Gastronomie'!O25=\"Ja\",1,'7 Gastronomie'!O25)","v":0},{"$f":"'7 Gastronomie'!E25","v":"advanced"},{"$f":"'7 Gastronomie'!F25*M94","v":2},{"$f":"INDEX(Datenvalidierung!$G$1:$G$3,MATCH(Q94,Datenvalidierung!$F$1:$F$3,0))","v":2},{"$f":"'7 Gastronomie'!H25","v":0},1,1]
[null,null,null,null,null,null,"7",{"$f":"'7 Gastronomie'!B27","v":"7.4.1"},{"$f":"'7 Gastronomie'!C27","v":"Mehrweggeschirr"},{"$f":"IF('7 Gastronomie'!K27=0,\"\",'7 Gastronomie'!K27)","v":""},{"$f":"IFERROR(INDEX(Datenvalidierung!$D$1:$D$5,MATCH('7 Gastronomie'!K27,Datenvalidierung!$C$1:$C$5,0)),0)","v":0},{"$f":"IFERROR(INDEX(Datenvalidierung!$B$1:$B$3,MATCH('7 Gastronomie'!J27,Datenvalidierung!$A$1:$A$3,0)),\"\")","v":""},{"$f":"IF('7 Gastronomie'!J27=Datenvalidierung!$A$3,0,1)","v":1},{"$f":"IF('7 Gastronomie'!L27=0,\"\",'7 Gastronomie'!L27)","v":""},{"$f":"IF(N95=Datenvalidierung!$E$2,1,0)","v":0},{"$f":"IF('7 Gastronomie'!O27=\"Ja\",1,'7 Gastronomie'!O27)","v":0},{"$f":"'7 Gastronomie'!E27","v":"professional"},{"$f":"'7 Gastronomie'!F27*M95","v":3},{"$f":"INDEX(Datenvalidierung!$G$1:$G$3,MATCH(Q95,Datenvalidierung!$F$1:$F$3,0))","v":3},{"$f":"'7 Gastronomie'!H27","v":"basic für Indoor;  draußen: Basic für VA <1.000, \nAdvanced für VA 1.000-5.000, \nprofessional für VA >5.000 "},1,1]
[null,null,null,null,null,null,"7",{"$f":"'7 Gastronomie'!B28","v":"7.4.2"},{"$f":"'7 Gastronomie'!C28","v":"Eigenes Geschirr"},{"$f":"IF('7 Gastronomie'!K28=0,\"\",'7 Gastronomie'!K28)","v":""},{"$f":"IFERROR(INDEX(Datenvalidierung!$D$1:$D$5,MATCH('7 Gastronomie'!K28,Datenvalidierung!$C$1:$C$5,0)),0)","v":0},{"$f":"IFERROR(INDEX(Datenvalidierung!$B$1:$B$3,MATCH('7 Gastronomie'!J28,Datenvalidierung!$A$1:$A$3,0)),\"\")","v":""},{"$f":"IF('7 Gastronomie'!J28=Datenvalidierung!$A$3,0,1)","v":1},{"$f":"IF('7 Gastronomie'!L28=0,\"\",'7 Gastronomie'!L28)","v":""},{"$f":"IF(N96=Datenvalidierung!$E$2,1,0)","v":0},{"$f":"IF('7 Gastronomie'!O28=\"Ja\",1,'7 Gastronomie'!O28)","v":0},{"$f":"'7 Gastronomie'!E28","v":"advanced"},{"$f":"'7 Gastronomie'!F28*M96","v":2},{"$f":"INDEX(Datenvalidierung!$G$1:$G$3,MATCH(Q96,Datenvalidierung!$F$1:$F$3,0))","v":2},{"$f":"'7 Gastronomie'!H28","v":"gilt nur Outdoor"},0,1]
[null,null,null,null,null,null,"7",{"$f":"'7 Gastronomie'!B29","v":"7.4.3"},{"$f":"'7 Gastronomie'!C29","v":"Spülmobile/-maschinen"},{"$f":"IF('7 Gastronomie'!K29=0,\"\",'7 Gastronomie'!K29)","v":""},{"$f":"IFERROR(INDEX(Datenvalidierung!$D$1:$D$5,MATCH('7 Gastronomie'!K29,Datenvalidierung!$C$1:$C$5,0)),0)","v":0},{"$f":"IFERROR(INDEX(Datenvalidierung!$B$1:$B$3,MATCH('7 Gastronomie'!J29,Datenvalidierung!$A$1:$A$3,0)),\"\")","v":""},{"$f":"IF('7 Gastronomie'!J29=Datenvalidierung!$A$3,0,1)","v":1},{"$f":"IF('7 Gastronomie'!L29=0,\"\",'7 Gastronomie'!L29)","v":""},{"$f":"IF(N97=Datenvalidierung!$E$2,1,0)","v":0},{"$f":"IF('7 Gastronomie'!O29=\"Ja\",1,'7 Gastronomie'!O29)","v":0},{"$f":"'7 Gastronomie'!E29","v":"basic"},{"$f":"'7 Gastronomie'!F29*M97","v":1},{"$f":"INDEX(Datenvalidierung!$G$1:$G$3,MATCH(Q97,Datenvalidierung!$F$1:$F$3,0))","v":1},{"$f":"'7 Gastronomie'!H29","v":0},1,1]
[null,null,null,null,null,null,"7",{"$f":"'7 Gastronomie'!B30","v":"7.4.4"},{"$f":"'7 Gastronomie'!C30","v":"Mehrweg-/Großgebinde"},{"$f":"IF('7 Gastronomie'!K30=0,\"\",'7 Gastronomie'!K30)","v":""},{"$f":"IFERROR(INDEX(Datenvalidierung!$D$1:$D$5,MATCH('7 Gastronomie'!K30,Datenvalidierung!$C$1:$C$5,0)),0)","v":0},{"$f":"IFERROR(INDEX(Datenvalidierung!$B$1:$B$3,MATCH('7 Gastronomie'!J30,Datenvalidierung!$A$1:$A$3,0)),\"\")","v":""},{"$f":"IF('7 Gastronomie'!J30=Datenvalidierung!$A$3,0,1)","v":1},{"$f":"IF('7 Gastronomie'!L30=0,\"\",'7 Gastronomie'!L30)","v":""},{"$f":"IF(N98=Datenvalidierung!$E$2,1,0)","v":0},{"$f":"IF('7 Gastronomie'!O30=\"Ja\",1,'7 Gastronomie'!O30)","v":0},{"$f":"'7 Gastronomie'!E30","v":"basic"},{"$f":"'7 Gastronomie'!F30*M98","v":1},{"$f":"INDEX(Datenvalidierung!$G$1:$G$3,MATCH(Q98,Datenvalidierung!$F$1:$F$3,0))","v":1},{"$f":"'7 Gastronomie'!H30","v":0},1,1]
[null,null,null,null,null,null,"7",{"$f":"'7 Gastronomie'!B31","v":"7.4.5"},{"$f":"'7 Gastronomie'!C31","v":"Einweggeschirr/-servietten"},{"$f":"IF('7 Gastronomie'!K31=0,\"\",'7 Gastronomie'!K31)","v":""},{"$f":"IFERROR(INDEX(Datenvalidierung!$D$1:$D$5,MATCH('7 Gastronomie'!K31,Datenvalidierung!$C$1:$C$5,0)),0)","v":0},{"$f":"IFERROR(INDEX(Datenvalidierung!$B$1:$B$3,MATCH('7 Gastronomie'!J31,Datenvalidierung!$A$1:$A$3,0)),\"\")","v":""},{"$f":"IF('7 Gastronomie'!J31=Datenvalidierung!$A$3,0,1)","v":1},{"$f":"IF('7 Gastronomie'!L31=0,\"\",'7 Gastronomie'!L31)","v":""},{"$f":"IF(N99=Datenvalidierung!$E$2,1,0)","v":0},{"$f":"IF('7 Gastronomie'!O31=\"Ja\",1,'7 Gastronomie'!O31)","v":0},{"$f":"'7 Gastronomie'!E31","v":"basic"},{"$f":"'7 Gastronomie'!F31*M99","v":1},{"$f":"INDEX(Datenvalidierung!$G$1:$G$3,MATCH(Q99,Datenvalidierung!$F$1:$F$3,0))","v":1},{"$f":"'7 Gastronomie'!H31","v":"Basic für VA <1.000, \nAdvanced für VA 1.000-10.000,\nProfessional für VA >10.000"},1,1]
[null,null,null,null,null,null,"7",{"$f":"'7 Gastronomie'!B32","v":"7.4.6"},{"$f":"'7 Gastronomie'!C32","v":"keine Einwegkunststoff-verpackungen"},{"$f":"IF('7 Gastronomie'!K32=0,\"\",'7 Gastronomie'!K32)","v":""},{"$f":"IFERROR(INDEX(Datenvalidierung!$D$1:$D$5,MATCH('7 Gastronomie'!K32,Datenvalidierung!$C$1:$C$5,0)),0)","v":0},{"$f":"IFERROR(INDEX(Datenvalidierung!$B$1:$B$3,MATCH('7 Gastronomie'!J32,Datenvalidierung!$A$1:$A$3,0)),\"\")","v":""},{"$f":"IF('7 Gastronomie'!J32=Datenvalidierung!$A$3,0,1)","v":1},{"$f":"IF('7 Gastronomie'!L32=0,\"\",'7 Gastronomie'!L32)","v":""},{"$f":"IF(N100=Datenvalidierung!$E$2,1,0)","v":0},{"$f":"IF('7 Gastronomie'!O32=\"Ja\",1,'7 Gastronomie'!O32)","v":0},{"$f":"'7 Gastronomie'!E32","v":"basic"},{"$f":"'7 Gastronomie'!F32*M100","v":1},{"$f":"INDEX(Datenvalidierung!$G$1:$G$3,MATCH(Q100,Datenvalidierung!$F$1:$F$3,0))","v":1},{"$f":"'7 Gastronomie'!H32","v":0},1,1]
[null,null,null,null,null,null,"7",{"$f":"'7 Gastronomie'!B33","v":"7.4.7"},{"$f":"'7 Gastronomie'!C33","v":"Leitungswasser"},{"$f":"IF('7 Gastronomie'!K33=0,\"\",'7 Gastronomie'!K33)","v":""},{"$f":"IFERROR(INDEX(Datenvalidierung!$D$1:$D$5,MATCH('7 Gastronomie'!K33,Datenvalidierung!$C$1:$C$5,0)),0)","v":0},{"$f":"IFERROR(INDEX(Datenvalidierung!$B$1:$B$3,MATCH('7 Gastronomie'!J33,Datenvalidierung!$A$1:$A$3,0)),\"\")","v":""},{"$f":"IF('7 Gastronomie'!J33=Datenvalidierung!$A$3,0,1)","v":1},{"$f":"IF('7 Gastronomie'!L33=0,\"\",'7 Gastronomie'!L33)","v":""},{"$f":"IF(N101=Datenvalidierung!$E$2,1,0)","v":0},{"$f":"IF('7 Gastronomie'!O33=\"Ja\",1,'7 Gastronomie'!O33)","v":0},{"$f":"'7 Gastronomie'!E33","v":"advanced"},{"$f":"'7 Gastronomie'!F33*M101","v":2},{"$f":"INDEX(Datenvalidierung!$G$1:$G$3,MATCH(Q101,Datenvalidierung!$F$1:$F$3,0))","v":2},{"$f":"'7 Gastronomie'!H33","v":"basic für Kongresse, Tagungen, Seminare etc."},1,1]
[null,null,null,null,null,null,"8",{"$f":"'8 Soziale Aspekte & Inklusion'!B4","v":"8.1.1"},{"$f":"'8 Soziale Aspekte & Inklusion'!C4","v":"Anti-Diskriminierende Öffentlichkeitsarbeit"},{"$f":"IF('8 Soziale Aspekte & Inklusion'!K4=0,\"\",'8 Soziale Aspekte & Inklusion'!K4)","v":""},{"$f":"IFERROR(INDEX(Datenvalidierung!$D$1:$D$5,MATCH('8 Soziale Aspekte & Inklusion'!K4,Datenvalidierung!$C$1:$C$5,0)),0)","v":0},{"$f":"IFERROR(INDEX(Datenvalidierung!$B$1:$B$3,MATCH('8 Soziale Aspekte & Inklusion'!J4,Datenvalidierung!$A$1:$A$3,0)),\"\")","v":""},{"$f":"IF('8 Soziale Aspekte & Inklusion'!J4=Datenvalidierung!$A$3,0,1)","v":1},{"$f":"IF('8 Soziale Aspekte & Inklusion'!L4=0,\"\",'8 Soziale Aspekte & Inklusion'!L4)","v":""},{"$f":"IF(N102=Datenvalidierung!$E$2,1,0)","v":0},{"$f":"IF('8 Soziale Aspekte & Inklusion'!O4=\"Ja\",1,'8 Soziale Aspekte & Inklusion'!O4)","v":0},{"$f":"'8 Soziale Aspekte & Inklusion'!E4","v":"basic"},{"$f":"'8 Soziale Aspekte & Inklusion'!F4*M102","v":1},{"$f":"INDEX(Datenvalidierung!$G$1:$G$3,MATCH(Q102,Datenvalidierung!$F$1:$F$3,0))","v":1},{"$f":"'8 Soziale Aspekte & Inklusion'!H4","v":0},1,1]
[null,null,null,null,null,null,"8",{"$f":"'8 Soziale Aspekte & Inklusion'!B5","v":"8.1.2"},{"$f":"'8 Soziale Aspekte & Inklusion'!C5","v":"Reduzierung sozialer Barrieren"},{"$f":"IF('8 Soziale Aspekte & Inklusion'!K5=0,\"\",'8 Soziale Aspekte & Inklusion'!K5)","v":""},{"$f":"IFERROR(INDEX(Datenvalidierung!$D$1:$D$5,MATCH('8 Soziale Aspekte & Inklusion'!K5,Datenvalidierung!$C$1:$C$5,0)),0)","v":0},{"$f":"IFERROR(INDEX(Datenvalidierung!$B$1:$B$3,MATCH('8 Soziale Aspekte & Inklusion'!J5,Datenvalidierung!$A$1:$A$3,0)),\"\")","v":""},{"$f":"IF('8 Soziale Aspekte & Inklusion'!J5=Datenvalidierung!$A$3,0,1)","v":1},{"$f":"IF('8 Soziale Aspekte & Inklusion'!L5=0,\"\",'8 Soziale Aspekte & Inklusion'!L5)","v":""},{"$f":"IF(N103=Datenvalidierung!$E$2,1,0)","v":0},{"$f":"IF('8 Soziale Aspekte & Inklusion'!O5=\"Ja\",1,'8 Soziale Aspekte & Inklusion'!O5)","v":0},{"$f":"'8 Soziale Aspekte & Inklusion'!E5","v":"advanced"},{"$f":"'8 Soziale Aspekte & Inklusion'!F5*M103","v":2},{"$f":"INDEX(Datenvalidierung!$G$1:$G$3,MATCH(Q103,Datenvalidierung!$F$1:$F$3,0))","v":2},{"$f":"'8 Soziale Aspekte & Inklusion'!H5","v":0},1,1]
[null,null,null,null,null,null,"8",{"$f":"'8 Soziale Aspekte & Inklusion'!B6","v":"8.1.3"},{"$f":"'8 Soziale Aspekte & Inklusion'!C6","v":"Barrierefreies Informationsmaterial"},{"$f":"IF('8 Soziale Aspekte & Inklusion'!K6=0,\"\",'8 Soziale Aspekte & Inklusion'!K6)","v":""},{"$f":"IFERROR(INDEX(Datenvalidierung!$D$1:$D$5,MATCH('8 Soziale Aspekte & Inklusion'!K6,Datenvalidierung!$C$1:$C$5,0)),0)","v":0},{"$f":"IFERROR(INDEX(Datenvalidierung!$B$1:$B$3,MATCH('8 Soziale Aspekte & Inklusion'!J6,Datenvalidierung!$A$1:$A$3,0)),\"\")","v":""},{"$f":"IF('8 Soziale Aspekte & Inklusion'!J6=Datenvalidierung!$A$3,0,1)","v":1},{"$f":"IF('8 Soziale Aspekte & Inklusion'!L6=0,\"\",'8 Soziale Aspekte & Inklusion'!L6)","v":""},{"$f":"IF(N104=Datenvalidierung!$E$2,1,0)","v":0},{"$f":"IF('8 Soziale Aspekte & Inklusion'!O6=\"Ja\",1,'8 Soziale Aspekte & Inklusion'!O6)","v":0},{"$f":"'8 Soziale Aspekte & Inklusion'!E6","v":"advanced"},{"$f":"'8 Soziale Aspekte & Inklusion'!F6*M104","v":2},{"$f":"INDEX(Datenvalidierung!$G$1:$G$3,MATCH(Q104,Datenvalidierung!$F$1:$F$3,0))","v":2},{"$f":"'8 Soziale Aspekte & Inklusion'!H6","v":0},1,1]
[null,null,null,null,null,null,"8",{"$f":"'8 Soziale Aspekte & Inklusion'!B7","v":"8.1.4"},{"$f":"'8 Soziale Aspekte & Inklusion'!C7","v":"Vergünstigungen"},{"$f":"IF('8 Soziale Aspekte & Inklusion'!K7=0,\"\",'8 Soziale Aspekte & Inklusion'!K7)","v":""},{"$f":"IFERROR(INDEX(Datenvalidierung!$D$1:$D$5,MATCH('8 Soziale Aspekte & Inklusion'!K7,Datenvalidierung!$C$1:$C$5,0)),0)","v":0},{"$f":"IFERROR(INDEX(Datenvalidierung!$B$1:$B$3,MATCH('8 Soziale Aspekte & Inklusion'!J7,Datenvalidierung!$A$1:$A$3,0)),\"\")","v":""},{"$f":"IF('8 Soziale Aspekte & Inklusion'!J7=Datenvalidierung!$A$3,0,1)","v":1},{"$f":"IF('8 Soziale Aspekte & Inklusion'!L7=0,\"\",'8 Soziale Aspekte & Inklusion'!L7)","v":""},{"$f":"IF(N105=Datenvalidierung!$E$2,1,0)","v":0},{"$f":"IF('8 Soziale Aspekte & Inklusion'!O7=\"Ja\",1,'8 Soziale Aspekte & Inklusion'!O7)","v":0},{"$f":"'8 Soziale Aspekte & Inklusion'!E7","v":"advanced"},{"$f":"'8 Soziale Aspekte & Inklusion'!F7*M105","v":2},{"$f":"INDEX(Datenvalidierung!$G$1:$G$3,MATCH(Q105,Datenvalidierung!$F$1:$F$3,0))","v":2},{"$f":"'8 Soziale Aspekte & Inklusion'!H7","v":"Gilt nur für kostenpflichtige VA"},1,1]
[null,null,null,null,null,null,"8",{"$f":"'8 Soziale Aspekte & Inklusion'!B8","v":"8.1.5"},{"$f":"'8 Soziale Aspekte & Inklusion'!C8","v":"kostenloser Zugang"},{"$f":"IF('8 Soziale Aspekte & Inklusion'!K8=0,\"\",'8 Soziale Aspekte & Inklusion'!K8)","v":""},{"$f":"IFERROR(INDEX(Datenvalidierung!$D$1:$D$5,MATCH('8 Soziale Aspekte & Inklusion'!K8,Datenvalidierung!$C$1:$C$5,0)),0)","v":0},{"$f":"IFERROR(INDEX(Datenvalidierung!$B$1:$B$3,MATCH('8 Soziale Aspekte & Inklusion'!J8,Datenvalidierung!$A$1:$A$3,0)),\"\")","v":""},{"$f":"IF('8 Soziale Aspekte & Inklusion'!J8=Datenvalidierung!$A$3,0,1)","v":1},{"$f":"IF('8 Soziale Aspekte & Inklusion'!L8=0,\"\",'8 Soziale Aspekte & Inklusion'!L8)","v":""},{"$f":"IF(N106=Datenvalidierung!$E$2,1,0)","v":0},{"$f":"IF('8 Soziale Aspekte & Inklusion'!O8=\"Ja\",1,'8 Soziale Aspekte & Inklusion'!O8)","v":0},{"$f":"'8 Soziale Aspekte & Inklusion'!E8","v":"professional"},{"$f":"'8 Soziale Aspekte & Inklusion'!F8*M106","v":3},{"$f":"INDEX(Datenvalidierung!$G$1:$G$3,MATCH(Q106,Datenvalidierung!$F$1:$F$3,0))","v":3},{"$f":"'8 Soziale Aspekte & Inklusion'!H8","v":"basic für kostenlose VA Outdoor"},1,1]
[null,null,null,null,null,null,"8",{"$f":"'8 Soziale Aspekte & Inklusion'!B9","v":"8.1.6"},{"$f":"'8 Soziale Aspekte & Inklusion'!C9","v":"präsenzlose Teilnahme"},{"$f":"IF('8 Soziale Aspekte & Inklusion'!K9=0,\"\",'8 Soziale Aspekte & Inklusion'!K9)","v":""},{"$f":"IFERROR(INDEX(Datenvalidierung!$D$1:$D$5,MATCH('8 Soziale Aspekte & Inklusion'!K9,Datenvalidierung!$C$1:$C$5,0)),0)","v":0},{"$f":"IFERROR(INDEX(Datenvalidierung!$B$1:$B$3,MATCH('8 Soziale Aspekte & Inklusion'!J9,Datenvalidierung!$A$1:$A$3,0)),\"\")","v":""},{"$f":"IF('8 Soziale Aspekte & Inklusion'!J9=Datenvalidierung!$A$3,0,1)","v":1},{"$f":"IF('8 Soziale Aspekte & Inklusion'!L9=0,\"\",'8 Soziale Aspekte & Inklusion'!L9)","v":""},{"$f":"IF(N107=Datenvalidierung!$E$2,1,0)","v":0},{"$f":"IF('8 Soziale Aspekte & Inklusion'!O9=\"Ja\",1,'8 Soziale Aspekte & Inklusion'!O9)","v":0},{"$f":"'8 Soziale Aspekte & Inklusion'!E9","v":"basic"},{"$f":"'8 Soziale Aspekte & Inklusion'!F9*M107","v":1},{"$f":"INDEX(Datenvalidierung!$G$1:$G$3,MATCH(Q107,Datenvalidierung!$F$1:$F$3,0))","v":1},{"$f":"'8 Soziale Aspekte & Inklusion'!H9","v":"gilt nur für Kongresse, Tagungen, Seminare etc."},1,1]
[null,null,null,null,null,null,"8",{"$f":"'8 Soziale Aspekte & Inklusion'!B11","v":"8.2.1"},{"$f":"'8 Soziale Aspekte & Inklusion'!C11","v":"Schutz vor Umwelteinflüssen"},{"$f":"IF('8 Soziale Aspekte & Inklusion'!K11=0,\"\",'8 Soziale Aspekte & Inklusion'!K11)","v":""},{"$f":"IFERROR(INDEX(Datenvalidierung!$D$1:$D$5,MATCH('8 Soziale Aspekte & Inklusion'!K11,Datenvalidierung!$C$1:$C$5,0)),0)","v":0},{"$f":"IFERROR(INDEX(Datenvalidierung!$B$1:$B$3,MATCH('8 Soziale Aspekte & Inklusion'!J11,Datenvalidierung!$A$1:$A$3,0)),\"\")","v":""},{"$f":"IF('8 Soziale Aspekte & Inklusion'!J11=Datenvalidierung!$A$3,0,1)","v":1},{"$f":"IF('8 Soziale Aspekte & Inklusion'!L11=0,\"\",'8 Soziale Aspekte & Inklusion'!L11)","v":""},{"$f":"IF(N108=Datenvalidierung!$E$2,1,0)","v":0},{"$f":"IF('8 Soziale Aspekte & Inklusion'!O11=\"Ja\",1,'8 Soziale Aspekte & Inklusion'!O11)","v":0},{"$f":"'8 Soziale Aspekte & Inklusion'!E11","v":"basic"},{"$f":"'8 Soziale Aspekte & Inklusion'!F11*M108","v":1},{"$f":"INDEX(Datenvalidierung!$G$1:$G$3,MATCH(Q108,Datenvalidierung!$F$1:$F$3,0))","v":1},{"$f":"'8 Soziale Aspekte & Inklusion'!H11","v":"gilt nur Outdoor"},0,1]
[null,null,null,null,null,null,"8",{"$f":"'8 Soziale Aspekte & Inklusion'!B12","v":"8.2.2"},{"$f":"'8 Soziale Aspekte & Inklusion'!C12","v":"Schutz vor negativen gesundheitlichen Folgen"},{"$f":"IF('8 Soziale Aspekte & Inklusion'!K12=0,\"\",'8 Soziale Aspekte & Inklusion'!K12)","v":""},{"$f":"IFERROR(INDEX(Datenvalidierung!$D$1:$D$5,MATCH('8 Soziale Aspekte & Inklusion'!K12,Datenvalidierung!$C$1:$C$5,0)),0)","v":0},{"$f":"IFERROR(INDEX(Datenvalidierung!$B$1:$B$3,MATCH('8 Soziale Aspekte & Inklusion'!J12,Datenvalidierung!$A$1:$A$3,0)),\"\")","v":""},{"$f":"IF('8 Soziale Aspekte & Inklusion'!J12=Datenvalidierung!$A$3,0,1)","v":1},{"$f":"IF('8 Soziale Aspekte & Inklusion'!L12=0,\"\",'8 Soziale Aspekte & Inklusion'!L12)","v":""},{"$f":"IF(N109=Datenvalidierung!$E$2,1,0)","v":0},{"$f":"IF('8 Soziale Aspekte & Inklusion'!O12=\"Ja\",1,'8 Soziale Aspekte & Inklusion'!O12)","v":0},{"$f":"'8 Soziale Aspekte & Inklusion'!E12","v":"advanced"},{"$f":"'8 Soziale Aspekte & Inklusion'!F12*M109","v":2},{"$f":"INDEX(Datenvalidierung!$G$1:$G$3,MATCH(Q109,Datenvalidierung!$F$1:$F$3,0))","v":2},{"$f":"'8 Soziale Aspekte & Inklusion'!H12","v":0},1,1]
[null,null,null,null,null,null,"8",{"$f":"'8 Soziale Aspekte & Inklusion'!B13","v":"8.2.3"},{"$f":"'8 Soziale Aspekte & Inklusion'!C13","v":"Sicherheits- und Gesundheitskonzept"},{"$f":"IF('8 Soziale Aspekte & Inklusion'!K13=0,\"\",'8 Soziale Aspekte & Inklusion'!K13)","v":""},{"$f":"IFERROR(INDEX(Datenvalidierung!$D$1:$D$5,MATCH('8 Soziale Aspekte & Inklusion'!K13,Datenvalidierung!$C$1:$C$5,0)),0)","v":0},{"$f":"IFERROR(INDEX(Datenvalidierung!$B$1:$B$3,MATCH('8 Soziale Aspekte & Inklusion'!J13,Datenvalidierung!$A$1:$A$3,0)),\"\")","v":""},{"$f":"IF('8 Soziale Aspekte & Inklusion'!J13=Datenvalidierung!$A$3,0,1)","v":1},{"$f":"IF('8 Soziale Aspekte & Inklusion'!L13=0,\"\",'8 Soziale Aspekte & Inklusion'!L13)","v":""},{"$f":"IF(N110=Datenvalidierung!$E$2,1,0)","v":0},{"$f":"IF('8 Soziale Aspekte & Inklusion'!O13=\"Ja\",1,'8 Soziale Aspekte & Inklusion'!O13)","v":0},{"$f":"'8 Soziale Aspekte & Inklusion'!E13","v":"basic"},{"$f":"'8 Soziale Aspekte & Inklusion'!F13*M110","v":1},{"$f":"INDEX(Datenvalidierung!$G$1:$G$3,MATCH(Q110,Datenvalidierung!$F$1:$F$3,0))","v":1},{"$f":"'8 Soziale Aspekte & Inklusion'!H13","v":"advanced für VA \n< 5000 Personen"},1,1]
[null,null,null,null,null,null,"8",{"$f":"'8 Soziale Aspekte & Inklusion'!B14","v":"8.2.4"},{"$f":"'8 Soziale Aspekte & Inklusion'!C14","v":"Awareness-Konzept"},{"$f":"IF('8 Soziale Aspekte & Inklusion'!K14=0,\"\",'8 Soziale Aspekte & Inklusion'!K14)","v":""},{"$f":"IFERROR(INDEX(Datenvalidierung!$D$1:$D$5,MATCH('8 Soziale Aspekte & Inklusion'!K14,Datenvalidierung!$C$1:$C$5,0)),0)","v":0},{"$f":"IFERROR(INDEX(Datenvalidierung!$B$1:$B$3,MATCH('8 Soziale Aspekte & Inklusion'!J14,Datenvalidierung!$A$1:$A$3,0)),\"\")","v":""},{"$f":"IF('8 Soziale Aspekte & Inklusion'!J14=Datenvalidierung!$A$3,0,1)","v":1},{"$f":"IF('8 Soziale Aspekte & Inklusion'!L14=0,\"\",'8 Soziale Aspekte & Inklusion'!L14)","v":""},{"$f":"IF(N111=Datenvalidierung!$E$2,1,0)","v":0},{"$f":"IF('8 Soziale Aspekte & Inklusion'!O14=\"Ja\",1,'8 Soziale Aspekte & Inklusion'!O14)","v":0},{"$f":"'8 Soziale Aspekte & Inklusion'!E14","v":"professional"},{"$f":"'8 Soziale Aspekte & Inklusion'!F14*M111","v":3},{"$f":"INDEX(Datenvalidierung!$G$1:$G$3,MATCH(Q111,Datenvalidierung!$F$1:$F$3,0))","v":3},{"$f":"'8 Soziale Aspekte & Inklusion'!H14","v":0},1,1]
[null,null,null,null,null,null,"8",{"$f":"'8 Soziale Aspekte & Inklusion'!B16","v":"8.3.1"},{"$f":"'8 Soziale Aspekte & Inklusion'!C16","v":"Belastungsreduktion"},{"$f":"IF('8 Soziale Aspekte & Inklusion'!K16=0,\"\",'8 Soziale Aspekte & Inklusion'!K16)","v":""},{"$f":"IFERROR(INDEX(Datenvalidierung!$D$1:$D$5,MATCH('8 Soziale Aspekte & Inklusion'!K16,Datenvalidierung!$C$1:$C$5,0)),0)","v":0},{"$f":"IFERROR(INDEX(Datenvalidierung!$B$1:$B$3,MATCH('8 Soziale Aspekte & Inklusion'!J16,Datenvalidierung!$A$1:$A$3,0)),\"\")","v":""},{"$f":"IF('8 Soziale Aspekte & Inklusion'!J16=Datenvalidierung!$A$3,0,1)","v":1},{"$f":"IF('8 Soziale Aspekte & Inklusion'!L16=0,\"\",'8 Soziale Aspekte & Inklusion'!L16)","v":""},{"$f":"IF(N112=Datenvalidierung!$E$2,1,0)","v":0},{"$f":"IF('8 Soziale Aspekte & Inklusion'!O16=\"Ja\",1,'8 Soziale Aspekte & Inklusion'!O16)","v":0},{"$f":"'8 Soziale Aspekte & Inklusion'!E16","v":"basic"},{"$f":"'8 Soziale Aspekte & Inklusion'!F16*M112","v":1},{"$f":"INDEX(Datenvalidierung!$G$1:$G$3,MATCH(Q112,Datenvalidierung!$F$1:$F$3,0))","v":1},{"$f":"'8 Soziale Aspekte & Inklusion'!H16","v":"advanced für Indoor"},1,1]
[null,null,null,null,null,null,"8",{"$f":"'8 Soziale Aspekte & Inklusion'!B17","v":"8.3.2"},{"$f":"'8 Soziale Aspekte & Inklusion'!C17","v":"Nachbarschaftsbeteiligung"},{"$f":"IF('8 Soziale Aspekte & Inklusion'!K17=0,\"\",'8 Soziale Aspekte & Inklusion'!K17)","v":""},{"$f":"IFERROR(INDEX(Datenvalidierung!$D$1:$D$5,MATCH('8 Soziale Aspekte & Inklusion'!K17,Datenvalidierung!$C$1:$C$5,0)),0)","v":0},{"$f":"IFERROR(INDEX(Datenvalidierung!$B$1:$B$3,MATCH('8 Soziale Aspekte & Inklusion'!J17,Datenvalidierung!$A$1:$A$3,0)),\"\")","v":""},{"$f":"IF('8 Soziale Aspekte & Inklusion'!J17=Datenvalidierung!$A$3,0,1)","v":1},{"$f":"IF('8 Soziale Aspekte & Inklusion'!L17=0,\"\",'8 Soziale Aspekte & Inklusion'!L17)","v":""},{"$f":"IF(N113=Datenvalidierung!$E$2,1,0)","v":0},{"$f":"IF('8 Soziale Aspekte & Inklusion'!O17=\"Ja\",1,'8 Soziale Aspekte & Inklusion'!O17)","v":0},{"$f":"'8 Soziale Aspekte & Inklusion'!E17","v":"professional"},{"$f":"'8 Soziale Aspekte & Inklusion'!F17*M113","v":3},{"$f":"INDEX(Datenvalidierung!$G$1:$G$3,MATCH(Q113,Datenvalidierung!$F$1:$F$3,0))","v":3},{"$f":"'8 Soziale Aspekte & Inklusion'!H17","v":0},1,1]
[null,null,null,null,null,null,"9",{"$f":"'9 Kommunikation'!B4","v":"9.1.1"},{"$f":"'9 Kommunikation'!C4","v":"Auswahlkriterien für Partner:innen"},{"$f":"IF('9 Kommunikation'!K4=0,\"\",'9 Kommunikation'!K4)","v":""},{"$f":"IFERROR(INDEX(Datenvalidierung!$D$1:$D$5,MATCH('9 Kommunikation'!K4,Datenvalidierung!$C$1:$C$5,0)),0)","v":0},{"$f":"IFERROR(INDEX(Datenvalidierung!$B$1:$B$3,MATCH('9 Kommunikation'!J4,Datenvalidierung!$A$1:$A$3,0)),\"\")","v":""},{"$f":"IF('9 Kommunikation'!J4=Datenvalidierung!$A$3,0,1)","v":1},{"$f":"IF('9 Kommunikation'!L4=0,\"\",'9 Kommunikation'!L4)","v":""},{"$f":"IF(N114=Datenvalidierung!$E$2,1,0)","v":0},{"$f":"IF('9 Kommunikation'!O4=\"Ja\",1,'9 Kommunikation'!O4)","v":0},{"$f":"'9 Kommunikation'!E4","v":"advanced"},{"$f":"'9 Kommunikation'!F4*M114","v":2},{"$f":"INDEX(Datenvalidierung!$G$1:$G$3,MATCH(Q114,Datenvalidierung!$F$1:$F$3,0))","v":2},{"$f":"'9 Kommunikation'!H4","v":0},1,1]
[null,null,null,null,null,null,"9",{"$f":"'9 Kommunikation'!B5","v":"9.1.2"},{"$f":"'9 Kommunikation'!C5","v":"Kommunikation mit Stakeholdern"},{"$f":"IF('9 Kommunikation'!K5=0,\"\",'9 Kommunikation'!K5)","v":""},{"$f":"IFERROR(INDEX(Datenvalidierung!$D$1:$D$5,MATCH('9 Kommunikation'!K5,Datenvalidierung!$C$1:$C$5,0)),0)","v":0},{"$f":"IFERROR(INDEX(Datenvalidierung!$B$1:$B$3,MATCH('9 Kommunikation'!J5,Datenvalidierung!$A$1:$A$3,0)),\"\")","v":""},{"$f":"IF('9 Kommunikation'!J5=Datenvalidierung!$A$3,0,1)","v":1},{"$f":"IF('9 Kommunikation'!L5=0,\"\",'9 Kommunikation'!L5)","v":""},{"$f":"IF(N115=Datenvalidierung!$E$2,1,0)","v":0},{"$f":"IF('9 Kommunikation'!O5=\"Ja\",1,'9 Kommunikation'!O5)","v":0},{"$f":"'9 Kommunikation'!E5","v":"basic"},{"$f":"'9 Kommunikation'!F5*M115","v":1},{"$f":"INDEX(Datenvalidierung!$G$1:$G$3,MATCH(Q115,Datenvalidierung!$F$1:$F$3,0))","v":1},{"$f":"'9 Kommunikation'!H5","v":0},1,1]
[null,null,null,null,null,null,"9",{"$f":"'9 Kommunikation'!B6","v":"9.1.3"},{"$f":"'9 Kommunikation'!C6","v":"Partner:innen-Feedback"},{"$f":"IF('9 Kommunikation'!K6=0,\"\",'9 Kommunikation'!K6)","v":""},{"$f":"IFERROR(INDEX(Datenvalidierung!$D$1:$D$5,MATCH('9 Kommunikation'!K6,Datenvalidierung!$C$1:$C$5,0)),0)","v":0},{"$f":"IFERROR(INDEX(Datenvalidierung!$B$1:$B$3,MATCH('9 Kommunikation'!J6,Datenvalidierung!$A$1:$A$3,0)),\"\")","v":""},{"$f":"IF('9 Kommunikation'!J6=Datenvalidierung!$A$3,0,1)","v":1},{"$f":"IF('9 Kommunikation'!L6=0,\"\",'9 Kommunikation'!L6)","v":""},{"$f":"IF(N116=Datenvalidierung!$E$2,1,0)","v":0},{"$f":"IF('9 Kommunikation'!O6=\"Ja\",1,'9 Kommunikation'!O6)","v":0},{"$f":"'9 Kommunikation'!E6","v":"basic"},{"$f":"'9 Kommunikation'!F6*M116","v":1},{"$f":"INDEX(Datenvalidierung!$G$1:$G$3,MATCH(Q116,Datenvalidierung!$F$1:$F$3,0))","v":1},{"$f":"'9 Kommunikation'!H6","v":0},1,1]
[null,null,null,null,null,null,"9",{"$f":"'9 Kommunikation'!B8","v":"9.2.1"},{"$f":"'9 Kommunikation'!C8","v":"Kommunikation mit Besucher:innen"},{"$f":"IF('9 Kommunikation'!K8=0,\"\",'9 Kommunikation'!K8)","v":""},{"$f":"IFERROR(INDEX(Datenvalidierung!$D$1:$D$5,MATCH('9 Kommunikation'!K8,Datenvalidierung!$C$1:$C$5,0)),0)","v":0},{"$f":"IFERROR(INDEX(Datenvalidierung!$B$1:$B$3,MATCH('9 Kommunikation'!J8,Datenvalidierung!$A$1:$A$3,0)),\"\")","v":""},{"$f":"IF('9 Kommunikation'!J8=Datenvalidierung!$A$3,0,1)","v":1},{"$f":"IF('9 Kommunikation'!L8=0,\"\",'9 Kommunikation'!L8)","v":""},{"$f":"IF(N117=Datenvalidierung!$E$2,1,0)","v":0},{"$f":"IF('9 Kommunikation'!O8=\"Ja\",1,'9 Kommunikation'!O8)","v":0},{"$f":"'9 Kommunikation'!E8","v":"basic"},{"$f":"'9 Kommunikation'!F8*M117","v":1},{"$f":"INDEX(Datenvalidierung!$G$1:$G$3,MATCH(Q117,Datenvalidierung!$F$1:$F$3,0))","v":1},{"$f":"'9 Kommunikation'!H8","v":0},1,1]
[null,null,null,null,null,null,"9",{"$f":"'9 Kommunikation'!B9","v":"9.2.2"},{"$f":"'9 Kommunikation'!C9","v":"Information & Unterstützung"},{"$f":"IF('9 Kommunikation'!K9=0,\"\",'9 Kommunikation'!K9)","v":""},{"$f":"IFERROR(INDEX(Datenvalidierung!$D$1:$D$5,MATCH('9 Kommunikation'!K9,Datenvalidierung!$C$1:$C$5,0)),0)","v":0},{"$f":"IFERROR(INDEX(Datenvalidierung!$B$1:$B$3,MATCH('9 Kommunikation'!J9,Datenvalidierung!$A$1:$A$3,0)),\"\")","v":""},{"$f":"IF('9 Kommunikation'!J9=Datenvalidierung!$A$3,0,1)","v":1},{"$f":"IF('9 Kommunikation'!L9=0,\"\",'9 Kommunikation'!L9)","v":""},{"$f":"IF(N118=Datenvalidierung!$E$2,1,0)","v":0},{"$f":"IF('9 Kommunikation'!O9=\"Ja\",1,'9 Kommunikation'!O9)","v":0},{"$f":"'9 Kommunikation'!E9","v":"basic"},{"$f":"'9 Kommunikation'!F9*M118","v":1},{"$f":"INDEX(Datenvalidierung!$G$1:$G$3,MATCH(Q118,Datenvalidierung!$F$1:$F$3,0))","v":1},{"$f":"'9 Kommunikation'!H9","v":0},1,1]
[null,null,null,null,null,null,"9",{"$f":"'9 Kommunikation'!B10","v":"9.2.3"},{"$f":"'9 Kommunikation'!C10","v":"Besucher:innen-Feedback"},{"$f":"IF('9 Kommunikation'!K10=0,\"\",'9 Kommunikation'!K10)","v":""},{"$f":"IFERROR(INDEX(Datenvalidierung!$D$1:$D$5,MATCH('9 Kommunikation'!K10,Datenvalidierung!$C$1:$C$5,0)),0)","v":0},{"$f":"IFERROR(INDEX(Datenvalidierung!$B$1:$B$3,MATCH('9 Kommunikation'!J10,Datenvalidierung!$A$1:$A$3,0)),\"\")","v":""},{"$f":"IF('9 Kommunikation'!J10=Datenvalidierung!$A$3,0,1)","v":1},{"$f":"IF('9 Kommunikation'!L10=0,\"\",'9 Kommunikation'!L10)","v":""},{"$f":"IF(N119=Datenvalidierung!$E$2,1,0)","v":0},{"$f":"IF('9 Kommunikation'!O10=\"Ja\",1,'9 Kommunikation'!O10)","v":0},{"$f":"'9 Kommunikation'!E10","v":"basic"},{"$f":"'9 Kommunikation'!F10*M119","v":1},{"$f":"INDEX(Datenvalidierung!$G$1:$G$3,MATCH(Q119,Datenvalidierung!$F$1:$F$3,0))","v":1},{"$f":"'9 Kommunikation'!H10","v":0},1,1]
[null,null,null,null,null,null,"9",{"$f":"'9 Kommunikation'!B11","v":"9.2.4"},{"$f":"'9 Kommunikation'!C11","v":"Öffentlichkeitsarbeit"},{"$f":"IF('9 Kommunikation'!K11=0,\"\",'9 Kommunikation'!K11)","v":""},{"$f":"IFERROR(INDEX(Datenvalidierung!$D$1:$D$5,MATCH('9 Kommunikation'!K11,Datenvalidierung!$C$1:$C$5,0)),0)","v":0},{"$f":"IFERROR(INDEX(Datenvalidierung!$B$1:$B$3,MATCH('9 Kommunikation'!J11,Datenvalidierung!$A$1:$A$3,0)),\"\")","v":""},{"$f":"IF('9 Kommunikation'!J11=Datenvalidierung!$A$3,0,1)","v":1},{"$f":"IF('9 Kommunikation'!L11=0,\"\",'9 Kommunikation'!L11)","v":""},{"$f":"IF(N120=Datenvalidierung!$E$2,1,0)","v":0},{"$f":"IF('9 Kommunikation'!O11=\"Ja\",1,'9 Kommunikation'!O11)","v":0},{"$f":"'9 Kommunikation'!E11","v":"professional"},{"$f":"'9 Kommunikation'!F11*M120","v":3},{"$f":"INDEX(Datenvalidierung!$G$1:$G$3,MATCH(Q120,Datenvalidierung!$F$1:$F$3,0))","v":3},{"$f":"'9 Kommunikation'!H11","v":0},1,1]

{"sheet":"1 Unternehmensführung ...","index":6,"n_rows":19,"n_cols":15,"rows_kept":19,"cut":false,"hidden":false,"merged":[]}
[null,1,"Unternehmensführung & Organisationskultur",null,null,null,null,null,null,null,null,null,null,null,"zurück zur Übersicht"]
[null,null,"Kriterium","Beschreibung","Level","Levelpunkte","Nachweis","Ausnahmen",null,"Umsetzung geplant?","Priorisierung","Umsetzung Status","Detailplanung der Maßnahme für Nachhaltigkeitskonzept","Beschreibung der Umsetzung (im Nachhinein auszufüllen)","Audit - Maßnahme umgesetzt"]
[null,"1.1","Nachhaltigkeitsmanagement"]
[null,"1.1.1","Nachhaltigkeitsbeauftragte:r*","Für die gesamte Organisation oder zumindest für die Veranstaltung wird ein:e qualifizierte:r Nachhaltigkeitsbeauftragte:r bzw. ein Nachhaltigkeitsteam benannt.","basic",{"$f":"INDEX(Datenvalidierung!$G$1:$G$3,MATCH(E4,Datenvalidierung!$F$1:$F$3,0))","v":1},"Name, Kontaktdaten und Qualifikation des/der Nachhaltigkeitsbeauftragten"]
[null,"1.1.2","Nachhaltigkeitskonzept*","Im Vorfeld der Verantslatung ist ein Nachhaltigkeitskonzept vorzulegen. Dieses beeinhaltet\n- ein Nachhaltigkeitsleitbild\n- eine Identifikation und Analyse der zu bearbeitenden Handlungsfelder (Wesentlichkeitsanalyse),\n- das Erfassen und Bewerten von Nachhaltigkeitsauswirkungen, Chancen, Risiken sowie\n- einen Maßnahmenplan unter Anwendung des vorliegenden Kriterienkatalogs (Ausfüllen der Spalte M).\n\nSiehe GEHH-Vorlage","advanced",{"$f":"INDEX(Datenvalidierung!$G$1:$G$3,MATCH(E5,Datenvalidierung!$F$1:$F$3,0))","v":2},"Vorlage Nachhaligkeitskonzept"]
[null,"1.1.3","Einfache Ausgangsbilanz*","Die zentralen Umwelt- bzw. Nachhaltigkeitskennzahlen werden vor der Veranstaltung geschätzt und nach der Veranstaltung mit den erhobenen Kennzahlen abgeglichen. Darunter fallen\n- Energieverbrauch,\n- Wasserverbrauch,\n- Abfallaufkommen pro Kopf nach Abfallart.\n\nSiehe GEHH-Vorlage (Spalte A)","basic",{"$f":"IF(J7=\"Ja\",0,INDEX(Datenvalidierung!$G$1:$G$3,MATCH(E6,Datenvalidierung!$F$1:$F$3,0)))","v":1},"Vorlage der Ausgangsbilanz vor der Veranstaltung sowie Bericht mit den erhobenen Kennzahlen nach der Veranstaltung "]
[null,"1.1.4","Erweiterte Ausgangsbilanz","Die relevanten Umwelt- bzw. Nachhaltigkeitskennzahlen werden vor der Veranstaltung geschätzt und nach der Veranstaltung mit den erhobenen Kennzahlen abgeglichen. Darunter fallen u.a.\n- Energieverbrauch,\n- Wasserverbrauch,\n- Abfallaufkommen pro Kopf nach Abfallart.\n\nSiehe GEHH-Vorlage (Spalte B)","advanced",{"$f":"IF(J6=\"Ja\",INDEX(Datenvalidierung!$G$1:$G$3,MATCH(E7,Datenvalidierung!$F$1:$F$3,0))-F6,INDEX(Datenvalidierung!$G$1:$G$3,MATCH(E7,Datenvalidierung!$F$1:$F$3,0)))","v":2},"Vorlage der Ausgangsbilanz vor der Veranstaltung sowie Bericht mit Kennzahlen nach der Veranstaltung (Berücksichtigung von vorgelegten Kernindikatoren)"]
[null,"1.1.5","Nachhaltigkeitsbericht","Die relevanten Umwelt- bzw. Nachhaltigkeitskennzahlen der Veranstaltung werden in einem Umwelt-/ Nachhaltigkeitsbericht veröffentlicht. Der Bericht enthält\n- das Nachhaltigkeitsleitbild,\n- die Nachhaltigkeitsziele (laut Nachhaltigkeitskonzept),\n- eine Beschreibung der umgesetzten Maßnahmen im Abgleich mit den Zielen,\n- den Abgleich von Ausgangsbilanz und Abschlussbilanz sowie\n- ggf. die Klimabilanz der Veranstaltung und\n- aus den Ergebnissen abgeleitete Ziele für Folgeveranstaltungen.\n\nGrundlage hierfür müssen das Nachhaltigkeitskonzept und die Ausgangsbilanz sein.","advanced",{"$f":"INDEX(Datenvalidierung!$G$1:$G$3,MATCH(E8,Datenvalidierung!$F$1:$F$3,0))","v":2},"Nachhaltigkeitsbericht"]
[null,"1.2","Qualifikation & Identifikation"]
[null,"1.2.1","Nachhaltigkeitswissen","Der/Die Nachhaltigkeitsbeauftragte:r nimmt im Laufe der Veranstaltungsplanung an mindestens einer Schulung/Weiterbildung zu nachhaltiger Veranstaltungsdurchführung teil oder kann eine entsprechende Weiterbildung/Qualifizierung nachweisen (z.B. Transformationsmanger:in Nachhaltige Kultur, Beauftragte für Nachhaltige Events nach ISO 20121, Green Club Training o.ä.).\n\nDie Green Events Handreichung ist dem Hauptorgateam bekannt.","basic",{"$f":"INDEX(Datenvalidierung!$G$1:$G$3,MATCH(E10,Datenvalidierung!$F$1:$F$3,0))","v":1},"Angaben zu den Weiterbildungen/Schulung und durch wen, zum Beispiel durch GEHH oder Nachweis entsprechender Qualifizierung, Mindesterfüllung: Handreichung GEHH ist bekannt"]
[null,"1.2.2","Erweitertes Nachhaltigkeitswissen","Der/Die Nachhaltigkeitsbeauftragte:r nimmt mindestens einmal pro Jahr an einer Schulung/Weiterbildung zu nachhaltiger Veranstaltungsdurchführung teil.\n\nListe mit möglichen Weiterbildungen/Angeboten wird durch GEHH bereitgestellt","advanced",{"$f":"INDEX(Datenvalidierung!$G$1:$G$3,MATCH(E11,Datenvalidierung!$F$1:$F$3,0))","v":2},"Nachweis der Teilnahme an Weiterbildungen und Anzahl der Mitarbeitenden, die an der Weiterbildung/Schulung teilgenommen haben "]
[null,"1.2.3","Nachhaltigkeitsbriefing","Alle direkten Mitarbeitenden der/des Veranstaltenden werden zu den Nachhaltigkeitsmaßnahmen der Veranstaltung gebrieft und mit dem Nachhaltigkeitsleitbild und -konzept vertraut gemacht. Weitere Maßnahmen, die die Identifikation des Teams mit dem Leitbild fördern sind wünschenswert.","basic",{"$f":"INDEX(Datenvalidierung!$G$1:$G$3,MATCH(E12,Datenvalidierung!$F$1:$F$3,0))","v":1},"Offizielle E-Mail, Briefing oder Infosheets ans Team, in denen das Leitbild und das Konzept präsentiert werden."]
[null,"1.3","Kosten"]
["10.1","1.3.1","Dokumentation von Mehrkosten","Die Kosten für die nachhaltige Ausrichtung der Veranstaltung werden dokumentiert.","advanced",{"$f":"INDEX(Datenvalidierung!$G$1:$G$3,MATCH(E14,Datenvalidierung!$F$1:$F$3,0))","v":2},"Datenblatt zur Kostenerhebung und -kalkulation"]
[null,"1.3.2","Kostenkommunikation","Mischkalkulationen und zusätzliche Kosten für nachhaltigere Angebote werden transparent an Gäste kommuniziert.","basic",{"$f":"INDEX(Datenvalidierung!$G$1:$G$3,MATCH(E15,Datenvalidierung!$F$1:$F$3,0))","v":1},"Nachweis der Kommunikationsmittel wie Poster, Emails, Website, etc."]
[null,"1.3.3","Solidarische Kostenumlegung","Einnahmeausfälle (zum Beispiel durch Finanzierung von ermäßigten/kostenlosen Tickets für Einkommensschwache) werden umgelegt (z. B Solidaritätszuschlag beim Ticket).","advanced",{"$f":"INDEX(Datenvalidierung!$G$1:$G$3,MATCH(E16,Datenvalidierung!$F$1:$F$3,0))","v":2},"Nachweis der vorgenommenen Maßnahme"]
[]
[]
[null,null,"*= Pflichtkriterium"]

{"sheet":"2 Veranstaltungsstätte","index":7,"n_rows":20,"n_cols":15,"rows_kept":20,"cut":false,"hidden":false,"merged":[]}
[null,2,"Veranstaltungsstätte/-ort",null,null,null,null,null,null,null,null,null,null,null,"zurück zur Übersicht"]
[null,null,"Kriterium","Beschreibung","Level","Levelpunkte","Nachweis","Ausnahmen",null,"Umsetzung geplant?","Priorisierung","Umsetzung Status","Detailplanung der Maßnahme für Nachhaltigkeitskonzept","Beschreibung der Umsetzung (im Nachhinein auszufüllen)","Audit - Maßnahme umgesetzt"]
["2.1","2.1","Standortwahl"]
["2.1",{"$f":"IF(ISBLANK(D4),A4,IF(RIGHT(A2,1)=RIGHT(A3),A4&\".\"&RIGHT(B3,1)+1,A4&\".1\"))","v":"2.1.1"},"klimafreundliche Erreichbarkeit","Der Veranstaltungsort ist klimafreundlich erreichbar. Das bedeutet eine fußläufige Entfernung von max. 500m zu ÖPNV-Haltestellen mit mind. 30-minütiger Taktung oder alternative Einrichtung eines (klimafreundlichen) Shuttle-Service (z. B. mit Gruppentaxis). Zudem sind Fahrradstellplätze vorhanden.","basic",{"$f":"INDEX(Datenvalidierung!$G$1:$G$3,MATCH(E4,Datenvalidierung!$F$1:$F$3,0))","v":1},"Lage und Anbindung Veranstaltungsort, ggf. Vertrag mit Shuttledienst o.ä; Fotodokumentation der Fahrradstellplätze"]
["2.1","2.1.2","barrierearme Erreichbarkeit und Teilnahme","Bei der Wahl der Veranstaltungsstätte werden Aspekte der Barrierefreiheit berücksichtigt. Die Checkliste Barrierefreie Veranstaltungen der Bundesfachstelle Barrierefreiheit wird berücksichtigt und zu mindestens 50% erfüllt. \n\nSiehe https://www.bundesfachstelle-barrierefreiheit.de/SharedDocs/Downloads/DE/Veroeffentlichungen/checkliste-barrierefreie-veranstaltung.pdf?__blob=publicationFile&v=6)","basic",{"$f":"IF(J6=\"Ja\",0,INDEX(Datenvalidierung!$G$1:$G$3,MATCH(E5,Datenvalidierung!$F$1:$F$3,0)))","v":1},"Vorlage der unterzeichneten Checkliste"]
["2.1","2.1.3","barrierefreie Erreichbarkeit und Teilnahme pro","Bei der Wahl der Veranstaltungsstätte werden Aspekte der Barrierefreheit berücksichtigt. Die Checkliste Barrierefreie Veranstaltungen der Bundesfachstelle Barrierefreiheit wird berücksichtigt und zu mindestens 80% erfüllt.\n\nSiehe https://www.bundesfachstelle-barrierefreiheit.de/SharedDocs/Downloads/DE/Veroeffentlichungen/checkliste-barrierefreie-veranstaltung.pdf?__blob=publicationFile&v=6)","professional",{"$f":"IF(J5=\"Ja\",INDEX(Datenvalidierung!$G$1:$G$3,MATCH(E6,Datenvalidierung!$F$1:$F$3,0))-F5,INDEX(Datenvalidierung!$G$1:$G$3,MATCH(E6,Datenvalidierung!$F$1:$F$3,0)))","v":3},"Vorlage der unterzeichneten Checkliste"]
["2.1","2.1.4","Beratung barrierefreie Gestaltung","Die Veranstaltenden lassen sich professionell zur barrierefreien Gestaltung des Veranstaltungsortes beraten.\n\nFür Information und Beratung siehe\nhttps://kompetent-barrierefrei.de/","professional",{"$f":"INDEX(Datenvalidierung!$G$1:$G$3,MATCH(E7,Datenvalidierung!$F$1:$F$3,0))","v":3},"Nennung der Person/Beratungsstelle sowie ggf. Vertrag"]
["2.1","2.1.5","nachhaltige Veranstaltungsstätte","Bei der Auswahl der Veranstaltungsstätte werden Nachhaltigkeitsaspekte berücksichtigt. \nEntweder es kann ein\n- Zertifiziertes Nachhaltigkeits-/Umweltmanagementsystem oder anderes Nachhaltigkeitszertifikat (z.B.EMAS, ISO 20121, Green Globe, GWÖ, Ökoprofit)\n\noder \n\n- ein Energieausweis mit einem niedrigen Heizenergieverbrauch und \n- ein Abfallkonzept vorgelegt werden.","advanced",{"$f":"IF(Informationsblatt!$F$12=\"Outdoor\",0,INDEX(Datenvalidierung!$G$1:$G$3,MATCH(E8,Datenvalidierung!$F$1:$F$3,0)))","v":2},"Nachhaltigkeits-/Umwelt-Zertifizierung der Veranstaltungsstätte (z. B. EMAS, Green Globe) oder Energieausweis und Abfallkonzept der Veranstaltungsstätte","gilt nur Indoor"]
["2.1","2.1.6","geeignete Freiflächen","Bei der Auswahl von Freiflächen werden jene bevorzugt, die über bereits installierte Infrastruktur zur Strom- und Trinkwasserversorgung sowie zur Abwasserentsorgung verfügen.","advanced",{"$f":"IF(Informationsblatt!$F$12=\"Indoor\",0,INDEX(Datenvalidierung!$G$1:$G$3,MATCH(E9,Datenvalidierung!$F$1:$F$3,0)))","v":2},"Nennung der Freifläche und Veranstaltungsplan mit Lage von technischer Infrastruktur","gilt nur Outdoor"]
["2.2","2.2","Ressourcenschonender Betrieb der Veranstaltung"]
["2.2","2.2.1","Energie","Es liegt ein Energiesparplan vor.","basic",{"$f":"INDEX(Datenvalidierung!$G$1:$G$3,MATCH(E11,Datenvalidierung!$F$1:$F$3,0))","v":1},"Vorlage des Energiesparplans"]
["2.2","2.2.2","Materialien","Es werden Maßnahmen ergriffen, um Verbrauchsmaterialien sparsam einzusetzen, beispielsweise:\n- Nutzung nachfüllbarer Seifenspender,\n- Doppelseitiger Druck für Dokumente,\n- Wiederauffüllbare Wasserflaschen,\n- Wiederverwendbare Stoffbanner und Schilder,\n- ...","basic",{"$f":"INDEX(Datenvalidierung!$G$1:$G$3,MATCH(E12,Datenvalidierung!$F$1:$F$3,0))","v":1},"Beschreibung, welche Maßnahmen umgesetzt werden und wie die Mitarbeitenden informiert worden sind"]
["2.2","2.2.3","Reinigungsmittel","Es werden ausschließlich biologisch abbaubare Reinigungsmittel (Allzweck-, Küchen-, Fenster- und Sanitärreiniger) verwendet. \nDies ist durch einschlägige Siegel, wie EU Ecolabel für Allzweck- und Sanitärreiniger (2011 / 383 / EU) oder äquivalent, belegt.\n \nZur Orientierung siehe Hamburger Beschaffungsleitfaden, Kapitel \"Reinigungsmittel\".","basic",{"$f":"INDEX(Datenvalidierung!$G$1:$G$3,MATCH(E13,Datenvalidierung!$F$1:$F$3,0))","v":1},"Vorlage der Kaufbelege"]
["2.2","2.2.4","Wasser","Verbrauch von Frischwasser wird möglichst gering gehalten, z.B. durch\n- bewussten Umgang mit Wasser,\n- Toiletten mit Spülstopptasten,\n- wasserlose Urinale,\n- Einsatz von Strahlreglern bei Wasserhähnen,\n- Verwendung von Regenwasser.","basic",{"$f":"INDEX(Datenvalidierung!$G$1:$G$3,MATCH(E14,Datenvalidierung!$F$1:$F$3,0))","v":1},"Beschreibung der Maßnahmen"]
["2.2","2.2.5","Abwasser","Abwasser wird nicht direkt in Gewässer eingeleitet, Abwasserentsorgung entspricht gesetzlichen Vorgaben (ggf. erfolgt eine behördliche Prüfung und Genehmigung).","basic",{"$f":"IF(Informationsblatt!$F$12=\"Indoor\",0,INDEX(Datenvalidierung!$G$1:$G$3,MATCH(E15,Datenvalidierung!$F$1:$F$3,0)))","v":1},"Behördliche Genehmigung wird ggf. vorgelegt.","gilt nur Outdoor"]
["2.2","2.2.6","Mobile Toiletten","Es stehen der Veranstaltungsgröße entsprechend ausreichend Toiletten zur Verfügung.\n\nWo eingesetzt, kommen nur kläranlagenverträgliche Sanitärzusätze mit Blauer Engel-Zertifizierung zum Einsatz.\n\nSiehe https://www.blauer-engel.de/de/produktwelt/sanitaerzusaetze-fuer-campingtoiletten ","basic",{"$f":"IF(OR(J17=\"Ja\",Informationsblatt!$F$12=\"Indoor\"),0,INDEX(Datenvalidierung!$G$1:$G$3,MATCH(E16,Datenvalidierung!$F$1:$F$3,0)))","v":1},"Berechnung der Anzahl in Anlehnung an die MVStättVO in Abhängigkeit von Veranstaltungsgröße.\nAngabe von Anzahl und Art der Toilettensysteme.","gilt nur Outdoor"]
["2.2","2.2.7","Mobile Toiletten pro","Es stehen der Veranstaltungsgröße entsprechend ausreichend Toiletten zur Verfügung.\n\nEs kommen außschließlich umweltverträgliche Toilettensysteme zum Einsatz (bevorzugt wassergespült und an die Kanalisation angeschlossen, alternativ Komposttoiletten).","professional",{"$f":"IF(J16=\"Ja\",INDEX(Datenvalidierung!$G$1:$G$3,MATCH(E17,Datenvalidierung!$F$1:$F$3,0))-F16,INDEX(Datenvalidierung!$G$1:$G$3,MATCH(E17,Datenvalidierung!$F$1:$F$3,0)))","v":3},"Berechnung der Anzahl in Anlehnung an die MVStättVO in Abhängigkeit von Veranstaltungsgröße.\nAngabe von Anzahl und Art der Toilettensysteme (in der Ausgangsbilanz).","gilt nur Outdoor"]
["2.3","2.3","Natur- und Flächenschutz",null,null,{"$f":"IF(AND(F19=0,F20=0),0,\"\")","v":""}]
["2.3","2.3.1","Ausschluss geschützter Gebiete","Die Veranstaltung findet explizit nicht auf Flächen statt, die in landes- oder EU-rechtlich geschützten Gebieten liegen (u.a. Naturschutzgebiete, Natura 2000 Gebiete, Vogelschutzgebiete) oder bei/in sensiblen Ökosystemen (z.B. Moore).","basic",{"$f":"IF(Informationsblatt!$F$12=\"Indoor\",0,INDEX(Datenvalidierung!$G$1:$G$3,MATCH(E19,Datenvalidierung!$F$1:$F$3,0)))","v":1},"Vorlage der Flurkarte oder Angabe der Adresse/Koordinaten/ Link zum Veranstaltungsort","gilt nur Outdoor"]
["2.3","2.3.2","Schutzkonzept","Es wird ein Schutzkonzept für Veranstaltungen auf unversiegelten und versiegelten Flächen zur Vermeidung von deren (dauerhaften) Beeinträchtigung und Störung erstellt. Dies erfolg ggf. in Absprache mit dem zuständigen Grünflächenamt.\n\nInhalte: \n- Definition notwendiger Schutzmaßnahmen für Tiere und Pflanzen (bspw. Berücksichtigung von Brut-/Aufzuchtzeiten, Verzicht auf Feuerwerk und nicht biologisch abbaubares Konfetti etc.), Ökosysteme und Böden (temporäre Bauten nur auf versiegelten Flächen bzw. mit Bodenschutzsystemen, kein Befahren von nicht belastbaren Flächen etc.)\n- Umsetzung der Maßnahmen,\n- Kommunikation der Schutzmaßnahmen,\n- Berücksichtigung von geschützten Gebieten in unmittelbarer Nähe.\n\nsiehe GEHH-Vorlage","basic",{"$f":"IF(Informationsblatt!$F$12=\"Indoor\",0,INDEX(Datenvalidierung!$G$1:$G$3,MATCH(E20,Datenvalidierung!$F$1:$F$3,0)))","v":1},"Vorlage des Schutzkonzeptes inkl. Lageplan","gilt nur Outdoor"]

{"sheet":"3 Standbetreiberinnen & Konzept","index":8,"n_rows":11,"n_cols":15,"rows_kept":11,"cut":false,"hidden":false,"merged":[]}
[null,3,"Standbetreiber:innen & Konzept",null,null,null,null,null,null,null,null,null,null,null,"zurück zur Übersicht"]
[null,null,"Kriterium","Beschreibung","Level","Levelpunkte","Nachweis","Ausnahmen",null,"Umsetzung geplant?","Priorisierung","Umsetzung Status","Detailplanung der Maßnahme für Nachhaltigkeitskonzept","Beschreibung der Umsetzung (im Nachhinein auszufüllen)","Audit - Maßnahme umgesetzt"]
["3.1","3.1","Programmgestaltung"]
["3.1.1","3.1.1","Veranstaltungsprogramm","Das Veranstaltungsprogramm hat einen deutlichen inhaltlichen Bezug zu Themen nachhaltiger Entwicklung.","professional",{"$f":"INDEX(Datenvalidierung!$G$1:$G$3,MATCH(E4,Datenvalidierung!$F$1:$F$3,0))","v":3},"Vorlage des Veranstaltungsprogramms mit Hervorhebung der relevanten Aspekte"]
["3.1.2","3.1.2","Gleichstellung","Referent:innen, Künstler:innen, Moderator:innen und sonstige Programmmitwirkende sind zu mindestens 30% weiblich gelesene Personen. \n\nDarüber hinaus wird empfohlen, weitere Diversitätsaspekte zu berücksichtigen, wie die Einbindung von Menschen\n- mit Migrations- und Flüchtlichngshintergrund, \n- mit Behinderungen,  \n- aus gesellschaftlichen Minderheiten, usw.","advanced",{"$f":"INDEX(Datenvalidierung!$G$1:$G$3,MATCH(E5,Datenvalidierung!$F$1:$F$3,0))","v":2},"Übersicht über gebuchte Referent:innen und Künstler:innen mit Hinweisen zu Identität, Herkunft etc."]
["3.2","3.2","Beauftragung & Verträge"]
["3.2.1","3.2.1","Einbindung lokaler Akteur:innen","Lokale Initiativen und gemeinnützige Organisationen werden gezielt in die Veranstaltung eingebunden und/oder erhalten die Möglichkeit sich selbst und ihre Ziele sichtbar zu vertreten. Zielwert: mind. eine Initiative pro 500 Teilnehmende","basic",{"$f":"INDEX(Datenvalidierung!$G$1:$G$3,MATCH(E7,Datenvalidierung!$F$1:$F$3,0))","v":1},"Auflistung"]
["3.2.2","3.2.2","regionale Beauftragung","Standbetreiber:innen, Referent:innen und Künstler:innen aus der Region (250 km Umkreis) bzw. mit kurzem Anreiseweg werden bevorzugt beauftragt und machen mindestens 50% der Mitwirkenden aus.",{"$f":"IF(Informationsblatt!F16=grosser__5.000,\"advanced\",IF(Informationsblatt!F16=grosser__10.000,\"professional\",\"basic\"))","v":"basic"},{"$f":"INDEX(Datenvalidierung!$G$1:$G$3,MATCH(E8,Datenvalidierung!$F$1:$F$3,0))","v":1},"Auflistung mit Hinweisen zum Anreiseort","advanced für VA ab 5.000 Personen; \nprofessional für VA ab 10.000 Personen"]
["3.2.3","3.2.3","nachhaltigkeitsorientierte Auftragsvergabe","Die Auswahl der Dienstleistenden wird nach Nachhaltigkeitskriterien getroffen. Es werden zu mindestens 50% (gemessen am Auftragsvolumen) lokale/regionale Akteur:innen (aus einem max. Umrkeis von 250 km) mit ökologischem und/oder sozialem Engagement beauftragt. Die Bewertung erfolgt im Einklang mit dem Nachhaltigkeitsleitbild der Veranstaltung.\n\nEine Vorlage für die Liste der Dienstleistenden wird von GEHH gestellt",{"$f":"IF(Informationsblatt!F16=grosser__10.000,\"professional\",\"advanced\")","v":"advanced"},{"$f":"INDEX(Datenvalidierung!$G$1:$G$3,MATCH(E9,Datenvalidierung!$F$1:$F$3,0))","v":2},"Liste aller Dienstleistenden mit Nennung von jeweils 3 Nachhaltigkeitsaspekten (aus dem Nachhaltigkeitsleitbild der Veranstaltung), die diese erfüllen. ","professional für VA über 10.000 Personen"]
["3.2.4","3.2.4","verbindliche Nachhaltigkeitskriterien","Verträge mit Dienstleistenden, Standbetreiber:innen und anderen Partner:innen enthalten klare und verbindliche Nachhaltigkeitskriterien z.B. in Form einer Checkliste. ","advanced",{"$f":"INDEX(Datenvalidierung!$G$1:$G$3,MATCH(E10,Datenvalidierung!$F$1:$F$3,0))","v":2},"Vorlage Verträge/verbindliche Checkliste"]
["3.2.5","3.2.5","Nachhaltigkeitsanreize","Standbetreiber:innen erhalten Anreize (z.B. vergünstigte Standmiete), Hilfestellungen (z.B. Logisitk) und Informationen für einen nachhaltigen Standbetrieb.","advanced",{"$f":"INDEX(Datenvalidierung!$G$1:$G$3,MATCH(E11,Datenvalidierung!$F$1:$F$3,0))","v":2},"Beschreibung der Anreizsysteme"]

{"sheet":"4 Klimaschutzmaßnahmen","index":9,"n_rows":23,"n_cols":15,"rows_kept":23,"cut":false,"hidden":false,"merged":[]}
[null,4,"Klimaschutzmaßnahmen",null,null,null,null,null,null,null,null,null,null,null,"zurück zur Übersicht"]
[null,null,"Kriterium","Beschreibung","Level","Levelpunkte","Nachweis","Ausnahmen",null,"Umsetzung geplant?","Priorisierung","Umsetzung Status","Detailplanung der Maßnahme für Nachhaltigkeitskonzept","Beschreibung der Umsetzung (im Nachhinein auszufüllen)","Audit - Maßnahme umgesetzt"]
["4.1","4.1","Klimawirkung \nder Veranstaltung"]
["4.1",{"$f":"IF(ISBLANK(D4),A4,IF(RIGHT(A2,1)=RIGHT(A3),A4&\".\"&RIGHT(B3,1)+1,A4&\".1\"))","v":"4.1.1"},"einfache Klimabilanz","Klimarelevante Aktivitäten (direkte und indirekte Treibhausgasemissionen) werden erfasst, Einsparpotentiale ermittelt und Reduktionsziele  für Folgeveranstaltungen formuliert. Dabei ist einzubeziehen:\n- An- und Abreise und sonstige veranstaltungsbezogene Wege der Mitarbeitenden,\n- Energieverbrauch (Strom und Heizen)\n- Abfallmengen\n- Speisen und Getränke\n\nbspw. https://uba-event-free.co2-rechner.pro/de_DE/","basic",{"$f":"IF(J5=\"Ja\",0,INDEX(Datenvalidierung!$G$1:$G$3,MATCH(E4,Datenvalidierung!$F$1:$F$3,0)))","v":1},"Vorlage Klimabilanz, Übersicht THG-Emissionen und Reduktionsziele; ggf. als Teil des Nachhaltigkeitsberichts"]
["4.1","4.1.2","erweiterte Klimabilanz","Klimarelevante Aktivitäten (direkte und indirekte Treibhausgasemissionen) werden erfasst, Einsparpotentiale ermittelt und Reduktionsziele für Folgeveranstaltungen formuliert. Dabei ist einzubeziehen:\n- An- und Abreise und sonstige veranstaltungsbezogene Wege der Mitarbeitenden,\n- Transportwege\n- An- und Abreise von Besucher:innen und Mitwirkenden\n- Energieverbrauch (Strom und Heizen)\n- Abfallmengen\n- Speisen und Getränke.","advanced",{"$f":"IF(J4=\"Ja\",INDEX(Datenvalidierung!$G$1:$G$3,MATCH(E5,Datenvalidierung!$F$1:$F$3,0))-F4,INDEX(Datenvalidierung!$G$1:$G$3,MATCH(E5,Datenvalidierung!$F$1:$F$3,0)))","v":2},"Vorlage Klimabilanz, Übersicht THG-Emissionen und Reduktionsziele; ggf. als Teil des Nachhaltigkeitsberichts"]
["4.1","4.1.3","Klimakompensation und Klimaverantwortung","Nicht vermeidbare Treibhausgasemissionen werden kompensiert. Die Kompensationsprojekte stammen von seriösen Anbietern (bspw. transparente Darlegung der Emissionsberechnung, Beschreibung aus welchen Projekten und aus welchen Ländern die Zertifikate stammen und Benennung des verwendeten Qualitätsstandards) und zählen zum Gold Standard.\n\nAlternativ wird das Konzept der Klimaverantwortung verfolgt, bei dem die nicht vermeidbaren Emissionen mit einem realistischen CO2-Preis multipliziert werden. Daraus regibt sich das Klimabudget der Veranstaltung, welches dann eigenverantwortlich in effektiven Klimaschutz investiert wird (extern oder intern).","professional",{"$f":"INDEX(Datenvalidierung!$G$1:$G$3,MATCH(E6,Datenvalidierung!$F$1:$F$3,0))","v":3},"Nachweis Kompensation, Zertifikat oder Darstellung des Klimabudgets und der getätigten/geplanten Investitionen"]
["4.2","4.2","Mobilität"]
["4.2","4.2.1","Kommunikation","Es werden ausschließlich klimafreundliche Anreisemöglichkeiten im Vorfeld dargestellt und Informationen auf der Website/im Programm etc. dazu bereitgestellt. Dazu gehört\n- Anbindung an den ÖPNV, \n- attraktive Fahrradrouten,\n- Weglängen,\n- ggf. Hinweis auf Mitfahrbörse.","basic",{"$f":"INDEX(Datenvalidierung!$G$1:$G$3,MATCH(E8,Datenvalidierung!$F$1:$F$3,0))","v":1},"Nachweis der Kommunikation (z.B. Links)"]
["4.2","4.2.2","Fahrplanoptimierung","Für Veranstaltungen bis 5.000 Personen: Das Veranstaltungsprogramm richtet sich nach den gegebenen Fahrtzeiten des ÖPNV.\n\nFür Veranstaltungen ab 5.000 Personen: In Zusammenarbeit mit den örtlichen Verkehrsbetrieben werden die Fahrtzeiten und Taktung an die Veranstaltungszeiten angepasst. ","advanced",{"$f":"INDEX(Datenvalidierung!$G$1:$G$3,MATCH(E9,Datenvalidierung!$F$1:$F$3,0))","v":2},"entsprechende Unterlagen wie Veranstaltungsprogramm, Verkehrskonzept"]
["4.2","4.2.3","integrierte ÖPNV-Fahrkarte","Bei kostenpflichtigen Großveranstaltungen ist eine ÖPNV-Fahrkarte im Ticketpreis enthalten.","advanced",{"$f":"IF(AND(Informationsblatt!F14=\"Nein\",IFERROR(MATCH(Informationsblatt!F16,Datenvalidierung!$K$1:$K$3)>0,0)),0,INDEX(Datenvalidierung!$G$1:$G$3,MATCH(E10,Datenvalidierung!$F$1:$F$3,0)))","v":2},"Vertrag mit ÖPNV Unternehmen, Vorlage Ticket","gilt nur für kostenpflichtige VA mit >10.000 Besuchenden"]
["4.2","4.2.4","Erreichbarkeit von Nebenveranstaltungen","Alle Veranstaltungsorte der Nebenveranstaltungen sind zu Fuß, mit dem Fahrrad, mit öffentlichen Verkehrsmitteln oder mit einem Sammel-Shuttledienst erreichbar. Stationen des ÖPNV bzw. des Shuttle-Dienstes sind max. 500 m entfernt und die Fahrten erfolgen in mind. 30-minütiger Taktung.","basic",{"$f":"IF(Informationsblatt!F20=\"Nein\",0,INDEX(Datenvalidierung!$G$1:$G$3,MATCH(E11,Datenvalidierung!$F$1:$F$3,0)))","v":1},"Lageplan Veranstaltungsorte und Erläuterung, wie diese erreicht werden","gilt nur, falls Neben-veranstaltungen geplant sind"]
["4.2","4.2.5","Fahrradstellplätze","Es gibt ausreichend und sichere Fahrradstellplätze vor Ort. Die benötitge Anzahl wird anhand individueller Veranstaltungsmerkmale (Teilnehmendenzahl, Lage, Wetter/Saison) berechnet und begründet dargelegt.","advanced",{"$f":"IF(Informationsblatt!$F$12=\"Indoor\",0,INDEX(Datenvalidierung!$G$1:$G$3,MATCH(E12,Datenvalidierung!$F$1:$F$3,0)))","v":2},"Vorlage der Berechnung, Fotodokumentation, Vertrag mit Fahrradgarderoben-Dienstleistenden","gilt nur Outdoor"]
["4.2","4.2.6","Förderung und Anreize","Der klimafreundliche Individualverkehr wird durch mindestens 2 der folgenden Maßnahmen aktiv gefördert:\n- Einrichtung von Reparaturstationen und Services für Fahrräder,\n- Aufladestationen für E-Fahrräder\n- gezielte Teilnahmevergünstigungen bei klimafreundlicher Anreise,\n- Einrichtung von Parkgebühren für PKW bzw. keine/wenig PKW-Stellplätze oder\n- andere Maßnahmen mit vergleichbarer Wirkung","professional",{"$f":"INDEX(Datenvalidierung!$G$1:$G$3,MATCH(E13,Datenvalidierung!$F$1:$F$3,0))","v":3},"Entsprechende Unterlagen zur Beauftragung"]
["4.2","4.2.7","Reisepolicy","Für Mitwirkende wie Künstler:innen, Referent:innen etc. wird eine Reisepolicy erstellt und herausgegeben. Diese beinhaltet mindestens die Vorgabe, dass Flugreisen unter 1.000 km nicht erstattet werden.\n\nWeitere mögliche Vorgaben:\n- keine Erstattung von Fahrten mit Verbrennermotoren\n- ...","basic",{"$f":"INDEX(Datenvalidierung!$G$1:$G$3,MATCH(E14,Datenvalidierung!$F$1:$F$3,0))","v":1},"Vorlage Reisepolicy, Beschreibung der Maßnahmen"]
["4.2","4.2.8","Logisitk","Die Logistik erfolgt emissionsarm durch den Einsatz von umweltfreundlichen Fahrzeugen, die Reduzierung/das Zusammenlegen von Fahrten, kurze Beschaffungswege, die Auswahl leichter Materialien etc. Das gilt für sämtliche Transportfahrten vor, während und nach der Veranstaltung durch den/die Veranstaltenden.\n\nExterne Dienstleistende sind hier nicht einzubeziehen, wenn auch dererseits eine emissionsarme Logisitk wünschenswert wäre.","advanced",{"$f":"INDEX(Datenvalidierung!$G$1:$G$3,MATCH(E15,Datenvalidierung!$F$1:$F$3,0))","v":2},"Beschreibung der durchgeführten Maßnahmen"]
["4.3","4.3","Energie"]
["4.3","4.3.1","Energiebedarfsplanung","Im Vorfeld der Veranstaltung wird der Energiebedarf prognostiziert, möglichst anhand von Angaben zum Strombedarf durch die Veranstaltungstechnik, Stände etc. Es wird die vorhandene Technik vor Ort genutzt, fehlende Technik wird bei regionalen Dienstleistenden gemietet.","basic",{"$f":"IF(Informationsblatt!$F$12=\"Indoor\",0,INDEX(Datenvalidierung!$G$1:$G$3,MATCH(E17,Datenvalidierung!$F$1:$F$3,0)))","v":1},"Energieplan/-konzept, Erläuterung des Bedarfs","gilt nur Outdoor"]
["4.3","4.3.2","Zertifizierter Ökostrom","Sofern ein Stromanschluss vorhanden ist, wird zertifizierter Ökostrom bezogen.","advanced",{"$f":"INDEX(Datenvalidierung!$G$1:$G$3,MATCH(E18,Datenvalidierung!$F$1:$F$3,0))","v":2},"Nennung des Ökostrom-Anbieters und -Tarifs"]
["4.3","4.3.3","eigene Energieerzeugung","Es werden Möglichkeiten der eigenen Energieerzeugung aus erneuerbaren Quellen vor Ort genutzt. Mindestens eine der folgenden Quellen kommt zum Einsatz:\n- PV-Anlagen\n- Pedal Power,\n- Windkraft,\n- grüner Wasserstoff.","advanced",{"$f":"IF(Informationsblatt!$F$12=\"Indoor\",0,INDEX(Datenvalidierung!$G$1:$G$3,MATCH(E19,Datenvalidierung!$F$1:$F$3,0)))","v":2},"Beschreibung und ggf. Fotodokumentation der Maßnahmen","gilt nur Outdoor"]
["4.3","4.3.4","keine Generatoren","Auf den Einsatz von Generatoren wird verzichtet. Sollte dies nicht möglich sein, wird auf fossile Brennstoffe verzichtet.","basic",{"$f":"IF(Informationsblatt!$F$12=\"Indoor\",0,INDEX(Datenvalidierung!$G$1:$G$3,MATCH(E20,Datenvalidierung!$F$1:$F$3,0)))","v":1},"Erklärung, Auflistung welche Generatoren eingesetzt wurden","gilt nur Outdoor"]
["4.3","4.3.5","keine Heizpilze","Auf den Einsatz von Heizpilzen oder -strahlern wird verzichtet.","basic",{"$f":"INDEX(Datenvalidierung!$G$1:$G$3,MATCH(E21,Datenvalidierung!$F$1:$F$3,0))","v":1},"Erklärung"]
["4.3","4.3.6","effiziente Veranstaltungstechnik","Bei Neuanschaffungen und Miete wird energieeffizente Technik ausgewählt, z.B. technische Geräte mit höchster Energieeffizenzklasse und energiesparende Beleuchtungstechnik in den Veranstaltungsbereichen. \n\nGilt nicht für Technik der Veranstaltungsstätte, sondern nur für extra beschaffte Technik durch den/ die Veranstaltende:n.",{"$f":"IF(Informationsblatt!F16=grosser__10.000,\"advanced\",\"basic\")","v":"basic"},{"$f":"INDEX(Datenvalidierung!$G$1:$G$3,MATCH(E22,Datenvalidierung!$F$1:$F$3,0))","v":1},"Beschreibung der durchgeführten Maßnahmen","Advanced für Veranstaltung >10.000"]
["4.3","4.3.7","effiziente Gastrotechnik","Es kommt energieeffizente Gastrotechnik zum Einsatz, z.B. Kühlschränke, Zapfanlagen mit Trockenkühlung. Energieintensive Geräte werden nur sehr sparsam verwendet. Es wird auf Open Front Cooler und Trockeneis verzichtet.\n\nGilt nicht für Technik der Veranstaltungsstätte, sondern nur für extra beschaffte Technik durch den/ die Veranstaltende:n. \n","basic",{"$f":"INDEX(Datenvalidierung!$G$1:$G$3,MATCH(E23,Datenvalidierung!$F$1:$F$3,0))","v":1},"Beschreibung der durchgeführten Maßnahmen"]

{"sheet":"5 Beschaffung","index":10,"n_rows":23,"n_cols":15,"rows_kept":23,"cut":false,"hidden":false,"merged":[]}
[null,5,"Beschaffung & Abfallmanagement",null,null,null,null,null,null,null,null,null,null,null,"zurück zur Übersicht"]
[null,null,"Kriterium","Beschreibung","Level","Levelpunkte","Nachweis","Ausnahmen",null,"Umsetzung geplant?","Priorisierung","Umsetzung Status","Detailplanung der Maßnahme für Nachhaltigkeitskonzept","Beschreibung der Umsetzung (im Nachhinein auszufüllen)","Audit - Maßnahme umgesetzt"]
["5.1","5.1","Veranstaltungsmaterial"]
["5.1",{"$f":"IF(ISBLANK(D4),A4,IF(RIGHT(A2,1)=RIGHT(A3),A4&\".\"&RIGHT(B3,1)+1,A4&\".1\"))","v":"5.1.1"},"nachhaltige Dekoration und Ausstattung","Die Beschaffung von Dekoration und Ausstattung (z.B. Mobiliar) erfolgt ressourcenschonend.\n\nBei der Auswahl und Beschaffung von Dekoration und Ausstattung werden Nachhaltigkeitsaspekte berücksichtigt. D.h. das Material ist ökozertifiziert und/oder fair produziert und gehandelt und es ist wiederverwendbar.\n\n\nSiehe ggf. Hamburger Beschaffungsleitfaden zur Orientierung ","basic",{"$f":"IF(J5=\"Ja\",0,INDEX(Datenvalidierung!$G$1:$G$3,MATCH(E4,Datenvalidierung!$F$1:$F$3,0)))","v":1},"Beschaffungsliste mit Hinweisen zu Zertifizierungen"]
["5.1","5.1.2","Verzicht auf neue Dekoration und Ausstattung","Auf die Neuanschaffung von Dekoration und Ausstattung (z.B. Mobiliar) wird gänzlich verzichtet.\n\nEs wird vorhandenes Material wiederverwendet oder geliehen/gemietet.","advanced",{"$f":"IF(J4=\"Ja\",INDEX(Datenvalidierung!$G$1:$G$3,MATCH(E5,Datenvalidierung!$F$1:$F$3,0))-F4,INDEX(Datenvalidierung!$G$1:$G$3,MATCH(E5,Datenvalidierung!$F$1:$F$3,0)))","v":2},"Beschreibung der Maßnahme, ggf. Mietverträge"]
["5.1","5.1.3","ökologische Druckerzeugnisse","Druckerzeugnisse aus Papier werden genau nach Bedarf und mit geringem Ressourcenaufwand beschafft, d.h.\n- ökologisches Papier (Blauer Engel),\n- klimafreundlicher Druck (Blauer Engel oder andere Zertifizierungen für Druckereien werden berücksichtigt).","basic",{"$f":"IF(J7=\"Ja\",0,INDEX(Datenvalidierung!$G$1:$G$3,MATCH(E6,Datenvalidierung!$F$1:$F$3,0)))","v":1},"Beschreibung der Maßnahme & Beschaffungsliste inkl. Zertifizierungen"]
["5.1","5.1.4","Verzicht auf Druckerzeugnisse","Auf die Beschaffung von Druckerzeugnissen aus Papier wird gänzlich verzichtet.","advanced",{"$f":"IF(J6=\"Ja\",INDEX(Datenvalidierung!$G$1:$G$3,MATCH(E7,Datenvalidierung!$F$1:$F$3,0))-F6,INDEX(Datenvalidierung!$G$1:$G$3,MATCH(E7,Datenvalidierung!$F$1:$F$3,0)))","v":2},"Beschreibung der Maßnahme (welche Alternativen wurden gefunden?)"]
["5.1","5.1.5","ökologische & faire Give Aways","Bei der Beschaffung von Give Aways werden folgende Kriterien berücksichtigt:\n- Es werden bedarfsgerechte Mengen beschafft.\n- Es kommen keine Give Aways zum Einsatz, die mit großen Abfallmengen und/oder umweltschädlichen Abfällen verbunden sind.\n- Die Produkte sind ökozertifiziert und/oder fair produziert und gehandelt (z.B. Material aus nachwachsenden Rohstoffen, biologisch abbaubar, faire Produktionsbedingungen).",{"$f":"IF(Informationsblatt!F16=grosser__10.000,\"advanced\",\"basic\")","v":"basic"},{"$f":"IF(J9=\"Ja\",0,INDEX(Datenvalidierung!$G$1:$G$3,MATCH(E8,Datenvalidierung!$F$1:$F$3,0)))","v":1},"Beschreibung der Maßnahme & Beschaffungsliste inkl. Zertifizierungen","Advanced für Veranstaltungen >10.000"]
["5.1","5.1.6","Verzicht auf Give Aways","Auf den Einsatz von Give Aways wird gänzlich verzichtet.","advanced",{"$f":"IF(J8=\"Ja\",INDEX(Datenvalidierung!$G$1:$G$3,MATCH(E9,Datenvalidierung!$F$1:$F$3,0))-F8,INDEX(Datenvalidierung!$G$1:$G$3,MATCH(E9,Datenvalidierung!$F$1:$F$3,0)))","v":2},"Beschreibung der Maßnahme (z.B. welche Alternativen wurden gefunden?)"]
["5.1","5.1.7","ressourcenschonender\nBlumenschmuck","Blumenschmuck besteht entweder aus Schnittblumen aus saisonalem und regionalem Freilandanbau oder unbeheizten Gewächshäusern, oder es kommen mehrfach nutzbare (ggf. gemietete) Alternativen, wie z.B. Topfpflanzen, zum Einsatz.","basic",{"$f":"IF(J11=\"Ja\",0,INDEX(Datenvalidierung!$G$1:$G$3,MATCH(E10,Datenvalidierung!$F$1:$F$3,0)))","v":1},"Beschreibung der Maßnahme & Beschaffungsliste inkl. Zertifizierungen"]
["5.1","5.1.8","Verzicht auf Blumenschmuck","Auf den Einsatz von Blumenschmuck wird gänzlich verzichtet.","advanced",{"$f":"IF(J10=\"Ja\",INDEX(Datenvalidierung!$G$1:$G$3,MATCH(E11,Datenvalidierung!$F$1:$F$3,0))-F10,INDEX(Datenvalidierung!$G$1:$G$3,MATCH(E11,Datenvalidierung!$F$1:$F$3,0)))","v":2},"Beschreibung der Maßnahme (z.B. welche Alternativen wurden gefunden?)"]
["5.1","5.1.9","Banner und Planen","Beim Design und der Produktion von Bannern und Planen werden Nachhaltigkeitsaspekte berücksichtigt, d.h. die Produkte sind \n- mehrjährig nutzbar, \n- frei von PVC und\n- bestehen aus recyclefähigen Materialien.","advanced",{"$f":"INDEX(Datenvalidierung!$G$1:$G$3,MATCH(E12,Datenvalidierung!$F$1:$F$3,0))","v":2},"Rechnung mit Beschreibung von Druck und Stoff, Fotodokumentation Banner/Planen, Entwürfe der werbebanner/Werbeträger, Druckerei, Angaben zum Anteil/Art"]
["5.1","5.1.10","ökologische & faire Kleidung","Bei der Beschaffung von Kleidung (Merchandise, Arbeitskleidung etc.) sind Nachhaltigkeitsaspekte zu berücksichtigen, d.h. \ndie Textiilen bestehen aus Bio-Baumwolle, sind fair produziert und gehandelt sowie recyclefähig. Diese Aspekte sind durch entsprechende Siegel belegt.","basic",{"$f":"IF(J14=\"Ja\",0,INDEX(Datenvalidierung!$G$1:$G$3,MATCH(E13,Datenvalidierung!$F$1:$F$3,0)))","v":1},"Auflistung, Erklärung zur Einhaltung, Vertragliche Vereinbarung mit Sponsoren"]
["5.1","5.1.1","Verzicht auf neue Kleidung","Auf die neue Beschaffung von Merchandise und veranstaltungsspezifische Kleidung für Mitarbeitende wird verzichtet. ","advanced",{"$f":"IF(J13=\"Ja\",INDEX(Datenvalidierung!$G$1:$G$3,MATCH(E14,Datenvalidierung!$F$1:$F$3,0))-F13,INDEX(Datenvalidierung!$G$1:$G$3,MATCH(E14,Datenvalidierung!$F$1:$F$3,0)))","v":2},"Beschreibung der Maßnahme (z.B. welche Alternativen wurden gefunden?)"]
["5.1","5.1.2","Papierlose Öffentlichkeitsarbeit","Die Öffentlichkeitsarbeit zur Veranstaltung erfolgt zu 100% papierlos, z.B. durch Nutzung von papierlosen Alternativen wie\n- Onlinekommunikation,\n- digitale Anmeldung zur Veranstaltung,\n- digitales Veranstaltungsprogramm, \n- Verwendung einer Veranstaltungs-App.","basic",{"$f":"INDEX(Datenvalidierung!$G$1:$G$3,MATCH(E15,Datenvalidierung!$F$1:$F$3,0))","v":1},"Erläuterung der Maßnahmen"]
["5.2","5.2","Abfallmanagement"]
["5.2","5.2.1","Abfallkonzept","Es wird ein Abfallkonzept erstellt. Darin enthalten sind Maßnahmen zur Vermeidung und Trennung von Abfällen sowie zu deren Umsetzung und Kontrolle.\n\nSiehe GEHH-Vorlage","basic",{"$f":"IF(OR(Informationsblatt!$F$12=\"Indoor\",Informationsblatt!$F$16=\"<1.000\"),0,INDEX(Datenvalidierung!$G$1:$G$3,MATCH(E17,Datenvalidierung!$F$1:$F$3,0)))","v":1},"Vorlage Abfallkonzept und Erläuterung zur Umsetzung/Kontrolle","gilt nur Outdoor und nur für VA > 1000 Personen"]
["5.2","5.2.2","Briefing zu Abfallvermeidung/-trennung","Die Mitarbeitenden, Standbetreibenden und Dienstleistenden werden zum Konzept für Abfallvermeidung und -trennung insbesondere im nicht-öffentlichen Veranstaltungsbereich gebrieft. \n\nDie Veranstaltenden setzen die Anforderungen der Gewerbeabfallverordnung (GewAbfV) konsequent um. ","basic",{"$f":"INDEX(Datenvalidierung!$G$1:$G$3,MATCH(E18,Datenvalidierung!$F$1:$F$3,0))","v":1},"Email,  Meetingagenda oder unterzeichnete Erklärung der beteiligten Mitarbeitenden und Dienstleistenden"]
["5.2","5.2.3","Abfalltrennung im Besucher:innenbereich","Im Besucher:innenbereich werden verschiedene Behälter zur Abfalltrennung bereitgestellt. Hierbei wird insbesondere unterschieden zwischen Verpackungen, Papier/Pappe, Glas und Biomüll. Eine getrennte Entsorgung wird umgesetzt.","advanced",{"$f":"INDEX(Datenvalidierung!$G$1:$G$3,MATCH(E19,Datenvalidierung!$F$1:$F$3,0))","v":2},"Abfallkonzept bzw. Abfallrechnung, vertragliche Vereinbarung mit Cateringunternehmen/Dienstleister:innen, Anteil an recycleten Abfällen"]
["5.2","5.2.4","Beschriftung und Piktogramme","Die Abfallstationen und Abfallbehälter der verschiedenen Trennfraktionenwerden eindeutig und sichtbar ausgewiesen sowie beschriftet (z. B. mit Hilfe von Piktogrammen). Sowohl im öffentlichen als auch im nicht-öffentlichen Bereich der Veranstaltung. ","basic",{"$f":"INDEX(Datenvalidierung!$G$1:$G$3,MATCH(E20,Datenvalidierung!$F$1:$F$3,0))","v":1},"Fotodokumentation"]
["5.2","5.2.5","Kontrolle und Unterstützung","Vor Ort wird Personal zum Einsammeln und ordnungsgemäßen Trennen von Abfall eingesetzt. Zum Beispiel unterstützt das Personal die Besucher:innen an zentralen Abfallstationen beim sortenreinen Trennen.","professional",{"$f":"IF(Informationsblatt!$F$16=kleiner_1.000,0,INDEX(Datenvalidierung!$G$1:$G$3,MATCH(E21,Datenvalidierung!$F$1:$F$3,0)))","v":3},"Beschreibung der Maßnahme, Informationen zum Briefing des Personals","nur für VA >1.000 Personen"]
["5.2"]
["5.2"]

{"sheet":"6 Unterkunft","index":11,"n_rows":6,"n_cols":15,"rows_kept":6,"cut":false,"hidden":false,"merged":[]}
[null,6,"Unterkunft",null,null,null,null,null,null,null,null,null,null,null,"zurück zur Übersicht"]
[null,null,"Kriterium","Beschreibung","Level","Levelpunkte","Nachweis","Ausnahmen",null,"Umsetzung geplant?","Priorisierung","Umsetzung Status","Detailplanung der Maßnahme für Nachhaltigkeitskonzept","Beschreibung der Umsetzung (im Nachhinein auszufüllen)","Audit - Maßnahme umgesetzt"]
["6.1","6.1","Hotelauswahl"]
["6.1.1","6.1.1","Nachhaltige Unterkünfte","Mitwirkende werden mindestens zu 50% in (zertifizierten) Hotels mit Umwelt-/ und Sozialstandards oder transparentem Nachhaltigkeitskonzept untergebracht. Gemessen an der Anzahl der Nächte.\n\nEin Katalog mit einigen zertifizierten Hotels findet sich auf der Website von HH Convention: https://www.hamburg-convention.com/nachhaltigkeit/hotels-locations/","basic",{"$f":"IF(J5=\"Ja\",0,INDEX(Datenvalidierung!$G$1:$G$3,MATCH(E4,Datenvalidierung!$F$1:$F$3,0)))","v":1},"Name der Unterkunft, ggf. Verträge, Zertifizierung der Unterkunft, Auflistung der Übernachtungen"]
["6.1.2","6.1.2","Nachhaltige Unterkünfte pro","Mitwirkende werden zu 100% in (zertifizierten) Hotels mit Umwelt-/ und Sozialstandards oder transparentem Nachhaltigkeitskonzept untergebracht.\n\nEin Katalog mit einigen zertifizierten Hotels findet sich auf der Website von HH Convention: https://www.hamburg-convention.com/nachhaltigkeit/hotels-locations/","professional",{"$f":"IF(J4=\"Ja\",INDEX(Datenvalidierung!$G$1:$G$3,MATCH(E5,Datenvalidierung!$F$1:$F$3,0))-F4,INDEX(Datenvalidierung!$G$1:$G$3,MATCH(E5,Datenvalidierung!$F$1:$F$3,0)))","v":3},"Name der Unterkunft, ggf. Verträge, Zertifizierung der Unterkunft"]
["6.1.3","6.1.3","Erreichbarkeit","Die Unterkunft liegt nah am Veranstaltungsort und/oder ist gut und klimafreundlich erreichbar. Fußwege zum Veranstaltungsort oder zur nächsten ÖPNV-Station sind max. 500 m lang und der ÖPNV verkehrt in mind. 20-minütiger Taktung.",{"$f":"IF(Veranstaltungsgroesse=grosser__5.000,\"advanced\",IF(Veranstaltungsgroesse=grosser__10.000,\"professional\",\"basic\"))","v":"basic"},{"$f":"INDEX(Datenvalidierung!$G$1:$G$3,MATCH(E6,Datenvalidierung!$F$1:$F$3,0))","v":1},"Lage der Unterkunft","Advanced für Veranstaltungen >5.000, professional für >10.000"]

{"sheet":"7 Gastronomie","index":12,"n_rows":33,"n_cols":15,"rows_kept":33,"cut":false,"hidden":false,"merged":[]}
[null,7,"Gastronomie",null,null,null,null,null,null,null,null,null,null,null,"zurück zur Übersicht"]
[null,null,"Kriterium","Beschreibung","Level","Levelpunkte","Nachweis","Ausnahmen",null,"Umsetzung geplant?","Priorisierung","Umsetzung Status","Detailplanung der Maßnahme für Nachhaltigkeitskonzept","Beschreibung der Umsetzung (im Nachhinein auszufüllen)","Audit - Maßnahme umgesetzt"]
["7.1","7.1","Speisewirtschaft"]
["7.1",{"$f":"IF(ISBLANK(D4),A4,IF(RIGHT(A2,1)=RIGHT(A3),A4&\".\"&RIGHT(B3,1)+1,A4&\".1\"))","v":"7.1.1"},"Regionalität der Zutaten","Bei jedem Essensstand werden mindestens 50 % der Hauptzutaten für Speisen, definiert als die gewichtsmäßig größten Bestandteile eines Gerichts, regional, aus einem Umkreis von maximal 250 km, bezogen. Die Bestimmung erfolgt anhand des Gesamtgewichts dieser Hauptzutaten.\n\nBetrifft den Anbau/die Aufzucht.\nSiehe GEHH-Vorlage für Catering-Liste",{"$f":"IF(Veranstaltungsgroesse=grosser__10.000,\"professional\",IF(OR(Veranstaltungsgroesse=grosser_1.000,Veranstaltungsgroesse=grosser__5.000),\"advanced\",\"basic\"))","v":"basic"},{"$f":"IF(Informationsblatt!$F$18=\"Ja\",0,INDEX(Datenvalidierung!$G$1:$G$3,MATCH(E4,Datenvalidierung!$F$1:$F$3,0)))","v":1},"Liste der gewichtsmäßig wichtigsten Zutaten mit Gewichtsangabe und Hinweis zur Herkunft","Basic für VA <1.000, \nAdvanced für VA 1.000-10.000,\nProfessional für VA >10.000\n\nGilt nicht für Empfänge, Kongresse, Tagungen, Seminare etc."]
["7.1","7.1.2","Saisonalität","Bei jedem Essensstand sind die Speisen dem saisonalen Angebot angepasst und mindestens zwei Hauptzutaten für Speisen, definiert als die gewichtsmäßig größten Bestandteile eines Gerichts, müssen saisonal frisch verfügbar und regional erzeugt. \n\nSiehe GEHH-Vorlage für Catering-Liste",{"$f":"IF(Veranstaltungsgroesse=grosser__10.000,\"professional\",IF(OR(Veranstaltungsgroesse=grosser_1.000,Veranstaltungsgroesse=grosser__5.000),\"advanced\",\"basic\"))","v":"basic"},{"$f":"IF(Informationsblatt!$F$18=\"Ja\",0,INDEX(Datenvalidierung!$G$1:$G$3,MATCH(E5,Datenvalidierung!$F$1:$F$3,0)))","v":1},"Liste der gewichtsmäßig wichtigsten Zutaten mit Gewichtsangabe und Hinweis zur Herkunft","Basic für VA <1.000, \nAdvanced für VA 1.000-10.000,\nProfessional für VA >10.000\n\nGilt nicht für Empfänge, Kongresse, Tagungen, Seminare etc."]
["7.1","7.1.3","bio-zertifizierte Lebensmittel","Bei jedem Essensstand ist mindestens eine Hauptzutat der Speisen, definiert als die gewichtsmäßig größten Bestandteile eines Gerichts, bio-zertifziert.\n\nSiehe GEHH-Vorlage für Catering-Liste","basic",{"$f":"IF(Informationsblatt!$F$18=\"Ja\",0,INDEX(Datenvalidierung!$G$1:$G$3,MATCH(E6,Datenvalidierung!$F$1:$F$3,0)))","v":1},"Liste der wichtigsten Zutaten mit Hinweis zur Herkunft und Bio-Zertifizierung","Gilt nicht für Empfänge, Kongresse, Tagungen, Seminare etc."]
["7.1","7.1.4","Fair Trade","Kaffee, Reis, Tee, Schokolade, Bananen und Ananasse sind fair produzierte und gehandelte Lebensmittel, belegt durch eine Auszeichnung durch Fair Trade, Naturland Fair, Rapunzel Hand in Hand oder GEPA-Zertifizierung oder einem gleichwertigen Gütezeichen.","advanced",{"$f":"IF(Informationsblatt!$F$18=\"Ja\",0,INDEX(Datenvalidierung!$G$1:$G$3,MATCH(E7,Datenvalidierung!$F$1:$F$3,0)))","v":2},"Kopie der Speise-/Getränkekarte, Kaufbelege, ggf. vertragliche Vereinbarung","Gilt nicht für Empfänge, Kongresse, Tagungen, Seminare etc."]
["7.1","7.1.5","vegetarisches Angebot","Jeder Essensstand bietet mindestens ein vegetarisches Gericht an.","basic",{"$f":"IF(Informationsblatt!$F$18=\"Ja\",0,INDEX(Datenvalidierung!$G$1:$G$3,MATCH(E8,Datenvalidierung!$F$1:$F$3,0)))","v":1},"Kopie der Speise-/Getränkekarte, ggf. vertragliche Vereinbarung","Gilt nicht für Empfänge, Kongresse, Tagungen, Seminare etc."]
["7.1","7.1.6","veganes Angebot","Jeder Essensstand bietet mindestens ein veganes Gericht an.","advanced",{"$f":"IF(Informationsblatt!$F$18=\"Ja\",0,INDEX(Datenvalidierung!$G$1:$G$3,MATCH(E9,Datenvalidierung!$F$1:$F$3,0)))","v":2},"Kopie der Speise-/Getränkekarte, ggf. vertragliche Vereinbarung","Gilt nicht für Empfänge, Kongresse, Tagungen, Seminare etc."]
["7.1","7.1.7","artgerechte Haltung\n","Tierische Produkte erfüllen Kriterien zur artgerechten Tierhaltung (Tierwohl-Label Stufe 4, EU-Biolabel, Neuland, Naturland, Bioland, demeter).  \nEs kommen keine bedenklichen Lebensmittel (z. B. Gänsestopfleber oder Kaviar) zum Einsatz. \nEs werden keine Produkte aus besonders bedrohten Tierbeständen angeboten. \nEiprodukte stammen mindestens aus Freilandhaltung.\n\nvgl. den WWF Fischratgeber (https://fischratgeber.wwf.de/)","basic",{"$f":"IF(Informationsblatt!$F$18=\"Ja\",0,INDEX(Datenvalidierung!$G$1:$G$3,MATCH(E10,Datenvalidierung!$F$1:$F$3,0)))","v":1},"Zutatenliste, Kaufbelege, ggf. vertragliche Vereinbarung","Gilt nicht für Empfänge, Kongresse, Tagungen, Seminare etc."]
["7.1","7.1.8","regionale Getränke","Die angebotenen Getränke stammen zu mindestens 50% aus regionaler Erzeugung (Umkreis 250 km).\n\nBetrifft mindestens Produktion und Abfüllung, möglichst auch den Anbau der Hauptbestandteile.","basic",{"$f":"IF(Informationsblatt!$F$18=\"Ja\",0,INDEX(Datenvalidierung!$G$1:$G$3,MATCH(E11,Datenvalidierung!$F$1:$F$3,0)))","v":1},"Liste des gesamten Getränkeangebots mit Hinweis zur Herkunft","Gilt nicht für Empfänge, Kongresse, Tagungen, Seminare etc."]
["7.1","7.1.9","Bio Getränke ","Die angebotenen Getränke sind zu mindestens 50% bio-zertifiziert.",{"$f":"IF(Veranstaltungsgroesse=grosser__10.000,\"professional\",IF(OR(Veranstaltungsgroesse=grosser_1.000,Veranstaltungsgroesse=grosser__5.000),\"advanced\",\"basic\"))","v":"basic"},{"$f":"IF(Informationsblatt!$F$18=\"Ja\",0,INDEX(Datenvalidierung!$G$1:$G$3,MATCH(E12,Datenvalidierung!$F$1:$F$3,0)))","v":1},"Liste des gesamten Getränkeangebots mit Hinweis zum Bio-Status","Basic für VA <1.000, \nAdvanced für VA 1.000-10.000,\nProfessional für VA >10.000\n\nGilt nicht für Empfänge, Kongresse, Tagungen, Seminare etc."]
["7.1","7.1.10","Kulturelle/soziale Aspekte","Wenn Fleisch angeboten wird, gibt es Alternativen zu Schweinefleisch.","basic",{"$f":"IF(Informationsblatt!$F$18=\"Ja\",0,INDEX(Datenvalidierung!$G$1:$G$3,MATCH(E13,Datenvalidierung!$F$1:$F$3,0)))","v":1},"Liste des bezogenen Fleischs mit entsprechenden Angaben","Gilt nicht für Empfänge, Kongresse, Tagungen, Seminare etc."]
["7.1","7.1.11","Kulturelle/soziale Aspekte pro","Wenn Fleisch angeboten wird, gibt es entsprechende Angebote in koscher und halal.\n\nSiehe GEHH-Vorlage für Catering-Liste","professional",{"$f":"IF(Informationsblatt!$F$18=\"Ja\",0,INDEX(Datenvalidierung!$G$1:$G$3,MATCH(E14,Datenvalidierung!$F$1:$F$3,0)))","v":3},"Liste des bezogenen Fleischs mit entsprechenden Angaben","Gilt nicht für Empfänge, Kongresse, Tagungen, Seminare etc."]
["7.1","7.1.12","Lebensmittelallergien/-unverträglichkeiten","Es werden alle Inhaltsstoffe und Allergene gemäß LMIV ausgewiesen.\n\nSiehe https://www.ihk.de/blueprint/servlet/resource/blob/5567202/5608813a6fb6d0649b7c17d353c5e9d2/kennzeichnung-von-lebensmitteln-im-gastgewerbe-data.pdf","basic",{"$f":"INDEX(Datenvalidierung!$G$1:$G$3,MATCH(E15,Datenvalidierung!$F$1:$F$3,0))","v":1},"Kopie der Speise-/Getränkekarte, Allergenübersicht"]
["7.2","7.2","Crew- und sonstiges Catering"]
["7.2",{"$f":"IF(ISBLANK(D17),A17,IF(RIGHT(A15,1)=RIGHT(A16),A17&\".\"&RIGHT(B16,1)+1,A17&\".1\"))","v":"7.2.1"},"Regionalität und Saisonalität der Zutaten und Getränke","Mindestens 50 % der Getränke und Hauptzutaten für Speisen, definiert als die gewichtsmäßig größten Bestandteile eines Gerichts, müssen regional, aus einem Umkreis von maximal 250 km, bezogen werden. Die Bestimmung erfolgt anhand des Gesamtgewichts dieser Hauptzutaten.  Betrifft den Anbau/die Aufzucht.\n\nDie Speisen sind dem saisonalen Angebot angepasst, mindestens zwei Hauptzutaten (gemessen am Gewicht) sind saisonal frisch verfügbar und regional erzeugt. ","basic",{"$f":"INDEX(Datenvalidierung!$G$1:$G$3,MATCH(E17,Datenvalidierung!$F$1:$F$3,0))","v":1},"Liste der gewichtsmäßig wichtigsten Zutaten mit Gewichtsangabe und Hinweis zur Herkunft"]
["7.2","7.2.2","bio-zertifizierte und Fairtrade Lebensmittel ","Mindestens eine Hauptzutat der Speisen, definiert als die gewichtsmäßig größten Bestandteile eines Gerichts,  ist bio-zertifziert.\n\nKaffee, Reis, Tee, Schokolade, Bananen und Ananasse sind fair produzierte und gehandelte Lebensmittel, einschlägige Siegel werden berücksichtigt.\n\nSiehe GEHH-Vorlage für Catering-Liste","basic",{"$f":"INDEX(Datenvalidierung!$G$1:$G$3,MATCH(E18,Datenvalidierung!$F$1:$F$3,0))","v":1},"Liste der wichtigsten Zutaten mit Hinweis zur Herkunft und Bio-Zertifizierung.\n\nKopie der Speise-/Getränkekarte, Kaufbelege, ggf. vertragliche Vereinbarung"]
["7.2","7.2.3","vegetarisches Catering","Das Catering ist zu 100% vegetarisch.\n","basic",{"$f":"INDEX(Datenvalidierung!$G$1:$G$3,MATCH(E19,Datenvalidierung!$F$1:$F$3,0))","v":1},"Kopie der Speise-/Getränkekarte bzw. der Zutatenliste, Kaufbelege, ggf. vertragliche Vereinbarung"]
["7.2","7.2.4","veganes Catering","Das Catering ist zu 100% vegan.\n","advanced",{"$f":"INDEX(Datenvalidierung!$G$1:$G$3,MATCH(E20,Datenvalidierung!$F$1:$F$3,0))","v":2},"Kopie der Speise-/Getränkekarte bzw. der Zutatenliste, Kaufbelege, ggf. vertragliche Vereinbarung"]
["7.2","7.2.5","artgerechte Haltung\n","Tierische Produkte erfüllen Kriterien zur artgerechten Tierhaltung (Tierwohl-Label Stufe 4, EU-Biolabel, Neuland, Naturland, Bioland, demeter).  \nEs kommen keine bedenklichen Lebensmittel (z. B. Gänsestopfleber oder Kaviar) zum Einsatz. \nEs werden keine Produkte aus besonders bedrohten Tierbeständen angeboten. \nEiprodukte stammen mindestens aus Freilandhaltung.\nEs gibt Fleischalternativen in halal und koscher, mindestens aber Alternativen zu Schweinefleisch.","basic",{"$f":"INDEX(Datenvalidierung!$G$1:$G$3,MATCH(E21,Datenvalidierung!$F$1:$F$3,0))","v":1},"Zutatenliste, Kaufbelege, ggf. vertragliche Vereinbarung"]
["7.3",{"$f":"IF(ISBLANK(D22),A22,IF(RIGHT(A14,1)=RIGHT(A15),A22&\".\"&RIGHT(B15,1)+1,A22&\".1\"))","v":"7.3"},"Konsumverhalten"]
["7.3",{"$f":"IF(ISBLANK(D23),A23,IF(RIGHT(A21,1)=RIGHT(A22),A23&\".\"&RIGHT(B22,1)+1,A23&\".1\"))","v":"7.3.1"},"Anstöße und Anreize I","Der nachhaltige Konsum von Lebensmitteln wird durch Informationen zu deren Herkunft gefördert. \n\nNachhaltigere Gerichte werden prominent platziert, also auf der Speisekarte hervorgehoben oder in der Auslage sichtbarer/leichter zugänglich gemacht. \n\nVegetarische und vegane Gerichte werden preisgünstiger als Fleisch- und Fischgerichte angeboten und auf der Speisekarte hervorgehoben.","basic",{"$f":"INDEX(Datenvalidierung!$G$1:$G$3,MATCH(E23,Datenvalidierung!$F$1:$F$3,0))","v":1},"Kopie der Speise-/Getränkekarte, ggf. vertragliche Vereinbarung"]
["7.3","7.3.2","Anstöße und Anreize II","Der nachhaltige Konsum von Lebensmitteln wird gefördert, indem die Emissionen der Hauptgerichte ausgewiesen werden.\n\nSiehe z.B. folgender Rechner\nhttps://www.klimateller.de/\nhttps://interaktiv.tagesspiegel.de/lab/co2-bilanz-von-essen-der-klimarechner-fuer-deine-kueche/","advanced",{"$f":"INDEX(Datenvalidierung!$G$1:$G$3,MATCH(E24,Datenvalidierung!$F$1:$F$3,0))","v":2},"Kopie der Speise-/Getränkekarte, ggf. vertragliche Vereinbarung"]
["7.3","7.3.3","Lebensmittelreste","Lebensmittelabfälle werden durch gezielte Kalkulation und Organisation, Kooperation mit Foodsharingunternehmen o.Ä. vermieden. Wo möglich wird eine genaue Mengenkalkulation durch verbindliche Anmeldung der Teilnehmenden zu Mahlzeiten vorgenommen. ","advanced",{"$f":"INDEX(Datenvalidierung!$G$1:$G$3,MATCH(E25,Datenvalidierung!$F$1:$F$3,0))","v":2},"Beschreibung der Maßnahme"]
["7.4",{"$f":"IF(ISBLANK(D26),A26,IF(RIGHT(A23,1)=RIGHT(A25),A26&\".\"&RIGHT(B25,1)+1,A26&\".1\"))","v":"7.4"},"Mehrweg & Verpackungen"]
["7.4",{"$f":"IF(ISBLANK(D27),A27,IF(RIGHT(A25,1)=RIGHT(A26),A27&\".\"&RIGHT(B26,1)+1,A27&\".1\"))","v":"7.4.1"},"Mehrweggeschirr","Es kommt ausschließlich Mehrweggeschirr (Becher, Geschirr und Besteck) zum Einsatz. Bei Bedarf wird ein einheitliches und verständliches Pfandsystem eingerichtet. ",{"$f":"IF(OR(Informationsblatt!F12=\"Indoor\",Veranstaltungsgroesse=kleiner_1.000),\"basic\",IF(Veranstaltungsgroesse=grosser_1.000,\"advanced\",\"professional\"))","v":"professional"},{"$f":"IF(J31=\"Ja\",INDEX(Datenvalidierung!$G$1:$G$3,MATCH(E27,Datenvalidierung!$F$1:$F$3,0))-F31,INDEX(Datenvalidierung!$G$1:$G$3,MATCH(E27,Datenvalidierung!$F$1:$F$3,0)))","v":3},"Anteil und Art der Mehrwegprodukte, Auflistung, vertragliche Vereinbarung mit Cateringunternehmen/\nDienstler:innen","basic für Indoor;  draußen: Basic für VA <1.000, \nAdvanced für VA 1.000-5.000, \nprofessional für VA >5.000 "]
["7.4","7.4.2","Eigenes Geschirr","Besucher:innen dürfen eigenes Geschirr mitbringen und werden explizit im Vorfeld der Veranstaltung dazu aufgefordert. ","advanced",{"$f":"IF(Informationsblatt!$F$12=\"Indoor\",0,INDEX(Datenvalidierung!$G$1:$G$3,MATCH(E28,Datenvalidierung!$F$1:$F$3,0)))","v":2},"Erläuterung der Umsetzung, vertragliche Vereinbarung mit Cateringunternehmen/\nDienstler:innen","gilt nur Outdoor"]
["7.4","7.4.3","Spülmobile/-maschinen","Bei der Verwendung von Spülmobilen/-maschinen kommen ausschließlich umweltfreundliche Spülmittel zum Einsatz und die Geräte sind an das örtliche Abwassersystem angeschlossen.","basic",{"$f":"INDEX(Datenvalidierung!$G$1:$G$3,MATCH(E29,Datenvalidierung!$F$1:$F$3,0))","v":1},"Erläuterung der Umsetzung, ggf. vertragliche Vereinbarung mit Cateringunternehmen/\nDienstleister:innen"]
["7.4","7.4.4","Mehrweg-/Großgebinde","Für Getränke kommen ausschließlich Mehrweg- oder Großgebinde zum Einsatz. Es werden keine Portionsverpackungen (z. B. bei Ketchup, Zucker) verwendet.\n\nSiehe ggf. Hamburger Beschaffungsleitfaden","basic",{"$f":"INDEX(Datenvalidierung!$G$1:$G$3,MATCH(E30,Datenvalidierung!$F$1:$F$3,0))","v":1},"vertragliche Vereinbarung mit Cateringunternehmen oder Kaufbelege der verwendeten Produkte"]
["7.4","7.4.5","Einweggeschirr/-servietten","Bei der Verwendung von Einweggeschirr besteht dieses aus unbeschichtetem, chlorfreigebleichtem, FSC- oder Blauer Engel-zertifiziertem Papier/Pappe.\nEs werden ausschließlich Servietten, Küchenrollen und Papierhandtücher, ungebleichte Back-/Koch- und Heißfilterpapiere (z. B. Kaffee- und Teefilter) verwendet, die den Anforderungen des Blauen Engels entsprechen. \nAuf Einwegbecher/ -geschirr wird ein Pfand erhoben, sodass das Sammeln und eine sortenreine Trennung vereinfacht wird.",{"$f":"IF(Veranstaltungsgroesse=grosser__10.000,\"professional\",IF(OR(Veranstaltungsgroesse=grosser_1.000,Veranstaltungsgroesse=grosser__5.000),\"advanced\",\"basic\"))","v":"basic"},{"$f":"IF(J27=\"Ja\",0,INDEX(Datenvalidierung!$G$1:$G$3,MATCH(E31,Datenvalidierung!$F$1:$F$3,0)))","v":1},"Begründung, warum kein Mehrweggeschirr verwendet werden kann und Auflistung der verwendeten Einwegprodukte; Erläuterung des Pfandsystems","Basic für VA <1.000, \nAdvanced für VA 1.000-10.000,\nProfessional für VA >10.000"]
["7.4","7.4.6","keine Einwegkunststoff-verpackungen","Es werden keine Verpackungen aus expandiertem oder geschäumtem Polystyrol verwendet. Es kommen keine Einwegkunststoffprodukte (hierunter fallen auch sämtliche biologisch abbaubare und biobasierte Kunststoffe) zum Einsatz.\n\nSiehe Einwegkunststoffverbotsverordnung (EWKVerbotsV)","basic",{"$f":"INDEX(Datenvalidierung!$G$1:$G$3,MATCH(E32,Datenvalidierung!$F$1:$F$3,0))","v":1},"vertragliche Vereinbarung mit Cateringunternehmen"]
["7.4","7.4.7","Leitungswasser","Es wird Leitungswasser umsonst zur Verfügung gestellt.",{"$f":"IF(Informationsblatt!$F$18=\"Ja\",\"basic\",\"advanced\")","v":"advanced"},{"$f":"INDEX(Datenvalidierung!$G$1:$G$3,MATCH(E33,Datenvalidierung!$F$1:$F$3,0))","v":2},"Beschreibung Einhaltung des Kriteriums, ggf. vertragliche Vereinbarung mit Cateringunternehmen etc.","basic für Kongresse, Tagungen, Seminare etc."]

{"sheet":"8 Soziale Aspekte & Inklusion","index":13,"n_rows":17,"n_cols":15,"rows_kept":17,"cut":false,"hidden":false,"merged":[]}
[null,8,"Soziale Aspekte & Inklusion",null,null,null,null,null,null,null,null,null,null,null,"zurück zur Übersicht"]
[null,null,"Kriterium","Beschreibung","Level","Levelpunkte","Nachweis","Ausnahmen",null,"Umsetzung geplant?","Priorisierung","Umsetzung Status","Detailplanung der Maßnahme für Nachhaltigkeitskonzept","Beschreibung der Umsetzung (im Nachhinein auszufüllen)","Audit - Maßnahme umgesetzt"]
["8.1","8.1","Zugänglichkeit der Veranstaltung"]
["8.1",{"$f":"IF(ISBLANK(D4),A4,IF(RIGHT(A2,1)=RIGHT(A3),A4&\".\"&RIGHT(B3,1)+1,A4&\".1\"))","v":"8.1.1"},"Anti-Diskriminierende Öffentlichkeitsarbeit","Die Öffentlichkeitsarbeit auf allen Kommunikationskanälen erfolgt nach anti-diskriminierenden Kommunikationsregeln und mit gendersensibler Sprache. \n\nhttps://www.greeneventshamburg.de/massnahme/anti-diskriminierende-oeffentlichkeitsarbeit\n \nhttps://sexismus-lexikon.de/practice/ ","basic",{"$f":"INDEX(Datenvalidierung!$G$1:$G$3,MATCH(E4,Datenvalidierung!$F$1:$F$3,0))","v":1},"Vorlage von Beispielen"]
["8.1","8.1.2","Reduzierung sozialer Barrieren","Soziale Barrieren für die Teilnahme an der Veranstaltung werden reduziert. Dazu werden mindestens 3 für die Veranstaltung passende Maßnahmen ergriffen, z.B.\n- Uni-Sex-Toiletten, \n- öffentliche Wickelmöglichkeiten,\n- Ruheräume,\n- integrierte Plätze für Menschen mit Behinderung, \n- gendersensible Beschilderung und leicht verständliche Piktogramme,\n- gut lesbare Hinweisschilder und leichte Sprache\n- Gebärdendolmetscher:innen/Programm mit Untertiteln, \n- Audiodeskriptionen, \n- mehrsprachige Programmpunkte, \n- Rahmenprogramm für Kinder und Familien.","advanced",{"$f":"INDEX(Datenvalidierung!$G$1:$G$3,MATCH(E5,Datenvalidierung!$F$1:$F$3,0))","v":2},"Vorlage Accessibilty Statement, Vorlage des Programms"]
["8.1","8.1.3","Barrierefreies Informationsmaterial","Die Checkliste barrierefreie Veranstaltungen wird zu 80% in diesem Bereich erfüllt.\n\nSiehe https://www.bundesfachstelle-barrierefreiheit.de/SharedDocs/Downloads/DE/Veroeffentlichungen/checkliste-barrierefreie-veranstaltung.pdf?__blob=publicationFile&v=6)","advanced",{"$f":"INDEX(Datenvalidierung!$G$1:$G$3,MATCH(E6,Datenvalidierung!$F$1:$F$3,0))","v":2},"Vorlage Checkliste"]
["8.1","8.1.4","Vergünstigungen","Bei kostenpflichten Veranstaltungen: Menschen mit geringem Einkommen wird durch Preisreduktion (z.B. durch Soli-Tickets) die Teilnahme ermöglicht.","advanced",{"$f":"IF(Informationsblatt!F14=\"Nein\",0,INDEX(Datenvalidierung!$G$1:$G$3,MATCH(E7,Datenvalidierung!$F$1:$F$3,0)))","v":2},"Accessibilty Statement, Erläuterung des Preiskonzepts","Gilt nur für kostenpflichtige VA"]
["8.1","8.1.5","kostenloser Zugang","Die Veranstaltung ist frei und kostenlos zugänglich.",{"$f":"IF(OR(Informationsblatt!F14=\"Nein\",Informationsblatt!F12=\"Outdoor\"),\"basic\",\"professional\")","v":"professional"},{"$f":"INDEX(Datenvalidierung!$G$1:$G$3,MATCH(E8,Datenvalidierung!$F$1:$F$3,0))","v":3},"Erklärung","basic für kostenlose VA Outdoor"]
[null,"8.1.6","präsenzlose Teilnahme","Die präsenzlose Teilnahme an der Veranstaltung wird ermöglicht","basic",{"$f":"IF(Informationsblatt!$F$18=\"Nein\",0,INDEX(Datenvalidierung!$G$1:$G$3,MATCH(E9,Datenvalidierung!$F$1:$F$3,0)))","v":1},"Einladung, Website, etc. mit Verweis auf Online-Zugang","gilt nur für Kongresse, Tagungen, Seminare etc."]
["8.2",{"$f":"IF(ISBLANK(D10),A10,IF(RIGHT(A7,1)=RIGHT(A8),A10&\".\"&RIGHT(B8,1)+1,A10&\".1\"))","v":"8.2"},"Gesundheit & Sicherheit"]
["8.2",{"$f":"IF(ISBLANK(D11),A11,IF(RIGHT(A8,1)=RIGHT(A10),A11&\".\"&RIGHT(B10,1)+1,A11&\".1\"))","v":"8.2.1"},"Schutz vor Umwelteinflüssen","Es werden Flächen mit Schutzvorkehrungen bei Hitze und Unwetter eingerichtet und die aktuelle Wetterlage wird kommuniziert. Insbesondere bei Hitze wird kostenloses Trinkwasser zur Verfügung gestellt.","basic",{"$f":"IF(Informationsblatt!$F$12=\"Indoor\",0,INDEX(Datenvalidierung!$G$1:$G$3,MATCH(E11,Datenvalidierung!$F$1:$F$3,0)))","v":1},"Beschreibung der durchgeführten Maßnahmen, Sicherheitskonzept","gilt nur Outdoor"]
["8.2",{"$f":"IF(ISBLANK(D12),A12,IF(RIGHT(A10,1)=RIGHT(A11),A12&\".\"&RIGHT(B11,1)+1,A12&\".1\"))","v":"8.2.2"},"Schutz vor negativen gesundheitlichen Folgen","Negativen gesundheitlichen Folgen für die Teilnehmenden durch die Veranstaltungsaktivitäten wird durch mindestens zwei der folgenden Maßnahmen vorgebeugt: \n- Bereitstellung von Gehörschutz, \n- ausreichend Möglichkeiten zur Händedesinfektion, \n- Vermeidung von blendendem Licht (Stroboskopeffekte, etc.), \n- Angebot von reizarmen Rückzugsmöglichkeiten,\n- Outdoor: Rauchen verboten oder nur in ausgewiesenen Bereichen erlaubt.","advanced",{"$f":"INDEX(Datenvalidierung!$G$1:$G$3,MATCH(E12,Datenvalidierung!$F$1:$F$3,0))","v":2},"Beschreibung der durchgeführten Maßnahmen"]
["8.2",{"$f":"IF(ISBLANK(D13),A13,IF(RIGHT(A11,1)=RIGHT(A12),A13&\".\"&RIGHT(B12,1)+1,A13&\".1\"))","v":"8.2.3"},"Sicherheits- und Gesundheitskonzept","Es wird ein Sicherheits- und Gesundheitskonzept erstellt. Dieses enthält Maßnahmen zu folgenden Punkten: \n- Schutz vor Umwelteinflüssen/Extremwettereignnissen, \n- Vorbeugung negativer gesundheitlicher Folgen,\n- Schulung von Mitarbeiter:innen (Berücksichtigung der (landes-) rechtlichen Vorgaben, insbesondere der Versammlungsstättenverordnung und dem Gesetz zum Schutz der öffentlichen Sicherheit und Ordnung).",{"$f":"IF(OR(Informationsblatt!F16=\"<1.000\",Informationsblatt!F16=\"<2.000\",Informationsblatt!F16=\"<5.000\"),\"advanced\",\"basic\")","v":"basic"},{"$f":"INDEX(Datenvalidierung!$G$1:$G$3,MATCH(E13,Datenvalidierung!$F$1:$F$3,0))","v":1},"Vorlage Sicherheitskonzept, Beschreibung Mitarbeiterschulung","advanced für VA \n< 5000 Personen"]
["8.2","8.2.4","Awareness-Konzept","Es wird ein Awarenesskonzept mit Ansprechpersonen, Feedback-Möglichkeiten und Präventionsmaßnahmen zur Verhinderung von sexualisierter Gewalt erstellt.\n\nSiehe GEHH-Vorlage","professional",{"$f":"INDEX(Datenvalidierung!$G$1:$G$3,MATCH(E14,Datenvalidierung!$F$1:$F$3,0))","v":3},"Vorlage Awareness-Konzept"]
["8.3","8.3","Anwohner:innen"]
["8.3","8.3.1","Belastungsreduktion","Belastungen für Anwohner:innen werden möglichst gering gehalten, indem mindestens 2 der folgenden Maßnahmen umgesetzt werden:\n\n- Reduktion des PKW-Aufkommens,\n- Vermeidung von Vermüllung durch Besuchende, \n- Umsetzung eines Schallschutzkonzepts, \n- Verhinderung von öffentlichem Urinieren, \n- Einrichtung einer Hotline / erreichbarer Ansprechpartner:innen für die Nachbarschaft, \n- Sensibilisierung der Besucher:innen für Belange der Anwohner:innen.",{"$f":"IF(Informationsblatt!$F$12=\"Indoor\",\"advanced\",\"basic\")","v":"basic"},{"$f":"INDEX(Datenvalidierung!$G$1:$G$3,MATCH(E16,Datenvalidierung!$F$1:$F$3,0))","v":1},"Vorlage Schallschutzkonzet, Beschreibung durchgeführter Maßnahmen","advanced für Indoor"]
["8.3","8.3.2","Nachbarschaftsbeteiligung","Die Nachbarschaft wird aktiv angesprochen und durch mindestens eine der folgenden Maßnahmen eingebunden:\n- kostenlosen Zugang zur Veranstaltung, \n- Führungen auf dem Veranstaltungsgelände, \n- Beteiligung an der Programmgestaltung.","professional",{"$f":"INDEX(Datenvalidierung!$G$1:$G$3,MATCH(E17,Datenvalidierung!$F$1:$F$3,0))","v":3},"Beschreibung der umgesetzten Maßnahmen"]

{"sheet":"9 Kommunikation","index":14,"n_rows":11,"n_cols":15,"rows_kept":11,"cut":false,"hidden":false,"merged":[]}
[null,9,"Kommunikation",null,null,null,null,null,null,null,null,null,null,null,"zurück zur Übersicht"]
[null,null,"Kriterium","Beschreibung","Level","Levelpunkte","Nachweis","Ausnahmen",null,"Umsetzung geplant?","Priorisierung","Umsetzung Status","Detailplanung der Maßnahme für Nachhaltigkeitskonzept","Beschreibung der Umsetzung (im Nachhinein auszufüllen)","Audit - Maßnahme umgesetzt"]
["9.1","9.1","Interne Kommunikation"]
["9.1",{"$f":"IF(ISBLANK(D4),A4,A4&\".\"&ROW(A1))","v":"9.1.1"},"Auswahlkriterien für Partner:innen","Die Auswahl der Kooperationspartner:innen (ideelle Zusammenarbeit) und Sponsor:innen (finanzielle Zusammenarbeit) wird nach Nachhaltigkeitskriterien getroffen. Es werden vorzugsweise lokale/regionale Akteur:innen mit ökologischem und/oder sozialem Engagement einbezogen. Die Bewertung erfolgt im Einklang mit dem Nachhaltigkeitsleitbild der Veranstaltung.\n\nSiehe GEHH-Vorlage Partner:innen-Liste","advanced",{"$f":"INDEX(Datenvalidierung!$G$1:$G$3,MATCH(E4,Datenvalidierung!$F$1:$F$3,0))","v":2},"Liste aller Partner:innen mit Nennung von jeweils 3 Nachhaltigkeitsaspekten (aus dem Nachhaltigkeitsleitbild der Veranstaltung), die diese erfüllen. "]
["9.1",{"$f":"IF(ISBLANK(D5),A5,A5&\".\"&ROW(A2))","v":"9.1.2"},"Kommunikation mit Stakeholdern","Alle Mitwirkenden und Partner:innen werden über die Nachhaltigkeitsstandards und -maßnahmen der Veranstaltung informiert. Dazu gehören insbesondere diejenigen Akteur:innen, die im Rahmen der Stakeholderanalyse identifiziert wurden u.a.\n- das Kernteam, \n- erweitertes Personal, \n- Dienstleistungsunternehmen, \n- Betreiber:innen der Veranstaltungsstätte, \n- Künstler:innen, \n- Sponsor:innen.","basic",{"$f":"INDEX(Datenvalidierung!$G$1:$G$3,MATCH(E5,Datenvalidierung!$F$1:$F$3,0))","v":1},"Nachweis der Kommunikation"]
["9.1","9.1.3","Partner:innen-Feedback","Partner:innen wird aktiv die Möglichkeit geboten, ihr Feedback zu den Nachhaltigkeitsmaßnahmen der Veranstaltung abzugeben. Dazu wird ein analoges oder digitales Feedbacksystem eingerichtet.","basic",{"$f":"INDEX(Datenvalidierung!$G$1:$G$3,MATCH(E6,Datenvalidierung!$F$1:$F$3,0))","v":1},"Nachweis der Kommunikation, Feedbacksystem"]
["9.2","9.2","Kommunikation nach außen"]
["9.2",{"$f":"IF(ISBLANK(D8),A8,A8&\".\"&ROW(A1))","v":"9.2.1"},"Kommunikation mit Besucher:innen","Die Nachhaltigkeitsziele und -maßnahmen der Veranstaltung werden an die Besucher:innen vor und während der Veranstaltung kommuniziert, um sie zum Mitmachen aufzufordern. Dies geschieht z.B.\n- im Rahmen der allgemeinen Informationen (z.B. zur Anreise),\n- bei der Anmeldung/ beim Ticketkauf,\n- durch Hinweise und Erklärungen vor Ort.","basic",{"$f":"INDEX(Datenvalidierung!$G$1:$G$3,MATCH(E8,Datenvalidierung!$F$1:$F$3,0))","v":1},"Nachweis der Kommunikation (durch z. B. Hinweise auf der Website, Fotodokumentation von Informationstafeln auf der Veranstaltung)"]
["9.2",{"$f":"IF(ISBLANK(D9),A9,A9&\".\"&ROW(A2))","v":"9.2.2"},"Information & Unterstützung","Informationen über nicht vermeidbare Hindernisse und räumliche Barrieren vor Ort werden bereits im Vorfeld zur Verfügung gestellt. Es wird ein Kontakt für Fragen zur Barrierefreiheit benannt, bei Veranstaltungen mit persönlicher Anmeldung wird Unterstützungsbedarf im Vorfeld abgefragt. Assistenzhunde sind auf dem Veranstaltungsgelände zugelassen.","basic",{"$f":"INDEX(Datenvalidierung!$G$1:$G$3,MATCH(E9,Datenvalidierung!$F$1:$F$3,0))","v":1},"Erklärung, Beschreibung, ggf. Accessiblilty Statement"]
["9.2","9.2.3","Besucher:innen-Feedback","Besucher:innen wird aktiv die Möglichkeit geboten, ihr Feedback zu den Nachhaltigkeitsmaßnahmen der Veranstaltung abzugeben. Dazu wird ein analoges oder digitales Feedbacksystem eingerichtet.","basic",{"$f":"INDEX(Datenvalidierung!$G$1:$G$3,MATCH(E10,Datenvalidierung!$F$1:$F$3,0))","v":1},"Name der Ansprechperson vor Ort, Erläuterung, wie Feedback festgehalten wird"]
["9.2","9.2.4","Öffentlichkeitsarbeit","Die Nachhaltigkeitsziele und -maßnahmen werden in der allgemeinen Öffentlichkeit (d.h. über die Besucher:innen hinaus) thematisiert. Dies geschieht z.B.\n- durch einen Bereich Nachhaltigkeit auf der Veranstaltungswebsite, \n- über Soziale Medien, \n- in Pressemitteilungen.\nAuch mit (noch) nicht erreichten Zielen wird transparent umgegangen. ","professional",{"$f":"INDEX(Datenvalidierung!$G$1:$G$3,MATCH(E11,Datenvalidierung!$F$1:$F$3,0))","v":3},"Nachweis der Kommunikation (durch z. B. Hinweise auf der Website), Anzahl Pressemitteilungen, veröffentlicher Nachhaltigkeits-/Umweltbericht"]